Body_Code,Body_Name,Service_Area,Responsible_Unit,Expense_Type,Expense_Code,Narrative,Date,Transaction_Number,Amount,Supplier_Name
http://statistics.data.gov.uk/id/local-authority/38,Oxfordshire County Council,SCS Other Cost Centres,Control Account Trojan Residential Care,Balance Sheet General,B2040,ABACUS Accounts Payable Control A/c,13/12/2011,3100039547,-1414.16,The Laurels Care Home
http://statistics.data.gov.uk/id/local-authority/38,Oxfordshire County Council,SCS Other Cost Centres,Control Account Trojan Residential Care,Balance Sheet General,B2040,ABACUS Accounts Payable Control A/c,13/12/2011,3100040042,-6697.15,OSJ - Mayott House
http://statistics.data.gov.uk/id/local-authority/38,Oxfordshire County Council,Highways & Transport,Traffic Signals Principal Roads,Private Contractors,56202,Maint Costs 2nd Sche,07/12/2011,3100040859,-3849,telent Technology Services
http://statistics.data.gov.uk/id/local-authority/38,Oxfordshire County Council,Highways & Transport,Traffic Signals Principal Roads,Private Contractors,56202,Maint Costs 2nd Sche,07/12/2011,3100040860,-1735,telent Technology Services
http://statistics.data.gov.uk/id/local-authority/38,Oxfordshire County Council,SCS Other Cost Centres,Control Account Trojan Residential Care,Balance Sheet General,B2040,ABACUS Accounts Payable Control A/c,13/12/2011,3100041390,-600,GCH (St Katherine's) Ltd
http://statistics.data.gov.uk/id/local-authority/38,Oxfordshire County Council,SCS Other Cost Centres,Control Account Trojan Residential Care,Balance Sheet General,B2040,ABACUS Accounts Payable Control A/c,13/12/2011,3100041601,-33276.25,Kcare Nursing Agency
http://statistics.data.gov.uk/id/local-authority/38,Oxfordshire County Council,Social & Community Services,LD Day Services Oxford Day Servs,Energy Costs,23100,Electricity,07/12/2011,3100042288,-456.78,Npower Ltd
http://statistics.data.gov.uk/id/local-authority/38,Oxfordshire County Council,Highways & Transport,Bridges General,Energy Costs,23100,Electricity,07/12/2011,3100042289,-545.29,Npower Ltd
http://statistics.data.gov.uk/id/local-authority/38,Oxfordshire County Council,Highways & Transport,Bridges General,Energy Costs,23100,Electricity,07/12/2011,3100042290,-546.44,Npower Ltd
http://statistics.data.gov.uk/id/local-authority/38,Oxfordshire County Council,Highways & Transport,Bridges General,Energy Costs,23100,Electricity,07/12/2011,3100042291,-553.5,Npower Ltd
http://statistics.data.gov.uk/id/local-authority/38,Oxfordshire County Council,Sustainable Development,Closed Landfill,Energy Costs,23100,Electricity,07/12/2011,3100042292,-641.01,Npower Ltd
http://statistics.data.gov.uk/id/local-authority/38,Oxfordshire County Council,Sustainable Development,Closed Landfill,Energy Costs,23100,Electricity,07/12/2011,3100042293,-662.34,Npower Ltd
http://statistics.data.gov.uk/id/local-authority/38,Oxfordshire County Council,Sustainable Development,Closed Landfill,Energy Costs,23100,Electricity,07/12/2011,3100042294,-662.37,Npower Ltd
http://statistics.data.gov.uk/id/local-authority/38,Oxfordshire County Council,Sustainable Development,Closed Landfill,Energy Costs,23100,Electricity,07/12/2011,3100042295,-662.37,Npower Ltd
http://statistics.data.gov.uk/id/local-authority/38,Oxfordshire County Council,Sustainable Development,Closed Landfill,Energy Costs,23100,Electricity,07/12/2011,3100042296,-662.37,Npower Ltd
http://statistics.data.gov.uk/id/local-authority/38,Oxfordshire County Council,Quality & Compliance,The Harlow Centre,Energy Costs,23100,Electricity,07/12/2011,3100042297,-2862.84,Npower Ltd
http://statistics.data.gov.uk/id/local-authority/38,Oxfordshire County Council,Quality & Compliance,The Harlow Centre,Energy Costs,23100,Electricity,07/12/2011,3100042298,-2898.68,Npower Ltd
http://statistics.data.gov.uk/id/local-authority/38,Oxfordshire County Council,Quality & Compliance,The Harlow Centre,Energy Costs,23100,Electricity,07/12/2011,3100042299,-2920.41,Npower Ltd
http://statistics.data.gov.uk/id/local-authority/38,Oxfordshire County Council,Quality & Compliance,The Harlow Centre,Energy Costs,23100,Electricity,07/12/2011,3100042300,-3105.65,Npower Ltd
http://statistics.data.gov.uk/id/local-authority/38,Oxfordshire County Council,Quality & Compliance,The Harlow Centre,Energy Costs,23100,Electricity,07/12/2011,3100042301,-3105.74,Npower Ltd
http://statistics.data.gov.uk/id/local-authority/38,Oxfordshire County Council,Quality & Compliance,The Harlow Centre,Energy Costs,23100,Electricity,07/12/2011,3100042302,-3110.84,Npower Ltd
http://statistics.data.gov.uk/id/local-authority/38,Oxfordshire County Council,Quality & Compliance,The Harlow Centre,Energy Costs,23100,Electricity,07/12/2011,3100042303,-3110.84,Npower Ltd
http://statistics.data.gov.uk/id/local-authority/38,Oxfordshire County Council,Quality & Compliance,The Harlow Centre,Energy Costs,23100,Electricity,07/12/2011,3100042304,-3209.32,Npower Ltd
http://statistics.data.gov.uk/id/local-authority/38,Oxfordshire County Council,Quality & Compliance,The Harlow Centre,Energy Costs,23100,Electricity,07/12/2011,3100042305,-3214.4,Npower Ltd
http://statistics.data.gov.uk/id/local-authority/38,Oxfordshire County Council,Quality & Compliance,The Harlow Centre,Energy Costs,23100,Electricity,07/12/2011,3100042306,-3214.58,Npower Ltd
http://statistics.data.gov.uk/id/local-authority/38,Oxfordshire County Council,Quality & Compliance,The Harlow Centre,Energy Costs,23100,Electricity,07/12/2011,3100042307,-3214.58,Npower Ltd
http://statistics.data.gov.uk/id/local-authority/38,Oxfordshire County Council,Quality & Compliance,The Harlow Centre,Energy Costs,23100,Electricity,07/12/2011,3100042308,-3214.58,Npower Ltd
http://statistics.data.gov.uk/id/local-authority/38,Oxfordshire County Council,SCS Other Cost Centres,Control Account Trojan Residential Care,Balance Sheet General,B2040,ABACUS Accounts Payable Control A/c,13/12/2011,3100042323,-5608.57,OSJ  - Townsend House
http://statistics.data.gov.uk/id/local-authority/38,Oxfordshire County Council,SCS Other Cost Centres,Control Account Trojan Residential Care,Balance Sheet General,B2040,ABACUS Accounts Payable Control A/c,13/12/2011,3100042472,-14005.75,The Old Vicarage
http://statistics.data.gov.uk/id/local-authority/38,Oxfordshire County Council,Education & Early Intervention,Zone 3 - West,Transport Related,33101,Home to School Trans,07/12/2011,3100042487,-616.5,Mcleans Coaches
http://statistics.data.gov.uk/id/local-authority/38,Oxfordshire County Council,Education & Early Intervention,Abbey Sch Swim Pool,Energy Costs,23100,Electricity,07/12/2011,3100042537,-669.8,Npower Ltd
http://statistics.data.gov.uk/id/local-authority/38,Oxfordshire County Council,Children's Social Care,Mainstream Residential,Balance Sheet General,B2030,Goods Received not Invoiced,08/12/2011,3100042665,-13000,Farrow House Ltd
http://statistics.data.gov.uk/id/local-authority/38,Oxfordshire County Council,Social & Community Services,"Older Pers Day Cntrs, Abingdon DC",WATER,25200,Metered Water,12/12/2011,3100042688,-575.48,Thames Water Utilities Ltd
http://statistics.data.gov.uk/id/local-authority/38,Oxfordshire County Council,Social & Community Services,"Older Pers Day Cntrs, Abingdon DC",WATER,25200,Metered Water,12/12/2011,3100042689,-524.96,Thames Water Utilities Ltd
http://statistics.data.gov.uk/id/local-authority/38,Oxfordshire County Council,Highways & Transport,Highways General,WATER,25200,Metered Water,12/12/2011,3100042690,-889.19,Thames Water Utilities Ltd
http://statistics.data.gov.uk/id/local-authority/38,Oxfordshire County Council,Highways & Transport,Highways General,WATER,25200,Metered Water,12/12/2011,3100042691,-565.15,Thames Water Utilities Ltd
http://statistics.data.gov.uk/id/local-authority/38,Oxfordshire County Council,SCS Other Cost Centres,Control Account Trojan Residential Care,Balance Sheet General,B2040,ABACUS Accounts Payable Control A/c,13/12/2011,3100042740,-10224.07,Sense West
http://statistics.data.gov.uk/id/local-authority/38,Oxfordshire County Council,Social & Community Services,Alert Contract,Other Agency and Contracted Services,57351,4 Weekly,21/12/2011,3100042763,-857.6,OXFORD CITIZENS HOUSING
http://statistics.data.gov.uk/id/local-authority/38,Oxfordshire County Council,Social & Community Services,Alert Contract,Other Agency and Contracted Services,57351,4 Weekly,21/12/2011,3100042856,-5735.2,OXFORD CITIZENS HOUSING
http://statistics.data.gov.uk/id/local-authority/38,Oxfordshire County Council,Highways Management,Error Suspense,Balance Sheet General,B2030,Goods Received not Invoiced,22/12/2011,3100042909,-112021.67,Drayton Construction Ltd
http://statistics.data.gov.uk/id/local-authority/38,Oxfordshire County Council,SCS Other Cost Centres,Home Support trading account for PBs,Other Agency and Contracted Services,57300,Home Support (Ext) OS&HCD,28/12/2011,3100043008,-923.07,Primary Healthcare
http://statistics.data.gov.uk/id/local-authority/38,Oxfordshire County Council,Property Asset Management,Corporate Properties,Rent & Rates,24300,Landlord Service Cha,05/12/2011,3150004309,-511.19,Milton Investment Fund Ltd
http://statistics.data.gov.uk/id/local-authority/38,Oxfordshire County Council,Property Asset Management,Corporate Properties,Rent & Rates,24300,Landlord Service Cha,05/12/2011,3150004310,-1233.9,Milton Investment Fund Ltd
http://statistics.data.gov.uk/id/local-authority/38,Oxfordshire County Council,SCS Pooled Budgets,Extra Care Housing,Other Agency and Contracted Services,57150,Extra Care Housing Personal Care Charges,14/12/2011,3150004341,-13392.75,Home Choice Care
http://statistics.data.gov.uk/id/local-authority/38,Oxfordshire County Council,In-House,Miscellaneous,Pension Fund Balance Sheet,PB810,Give As You Earn,14/12/2011,3300001240,638.05,Charities Aid Foundation
http://statistics.data.gov.uk/id/local-authority/38,Oxfordshire County Council,Scheduled Bodies,Oxfordshire County Council,Pension Fund Revenue,PR507,Combined Benefits Basic Pension,14/12/2011,3300001245,6508.35,West Midlands Pension Fund
http://statistics.data.gov.uk/id/local-authority/38,Oxfordshire County Council,Scheduled Bodies,Oxford Brookes Univeristy,Contributions Leaving the Fund,PR401,Transfers out,16/12/2011,3300001259,11606.85,Univs Superann Scheme Ltd Trust Fun
http://statistics.data.gov.uk/id/local-authority/38,Oxfordshire County Council,SCS Other Cost Centres,Control Account Trojan Residential Care,Balance Sheet General,B2040,ABACUS Accounts Payable Control A/c,13/12/2011,3301390379,3559.53,OSJ - Mayott House
http://statistics.data.gov.uk/id/local-authority/38,Oxfordshire County Council,SCS Other Cost Centres,Control Account Trojan Residential Care,Balance Sheet General,B2040,ABACUS Accounts Payable Control A/c,13/12/2011,3301390530,1112.87,The Laurels Care Home
http://statistics.data.gov.uk/id/local-authority/38,Oxfordshire County Council,Children's Social Care,Aim Higher Funding,Voluntary Associations,55402,Service Agreements - Family Support,01/12/2011,3301394680,5000,Thomley Activity Centre
http://statistics.data.gov.uk/id/local-authority/38,Oxfordshire County Council,Education & Early Intervention,Learner Grants,"Equipment, Furniture and Materials",41100,Educational Supplies,14/12/2011,3301395135,1120,Kingfisher Kindergarten
http://statistics.data.gov.uk/id/local-authority/38,Oxfordshire County Council,Highways & Transport,Traffic Signals Principal Roads,Private Contractors,56202,Maint Costs 2nd Sche,07/12/2011,3301395565,713.2,telent Technology Services
http://statistics.data.gov.uk/id/local-authority/38,Oxfordshire County Council,Highways & Transport,Traffic Signals Principal Roads,Private Contractors,56202,Maint Costs 2nd Sche,07/12/2011,3301395566,608,telent Technology Services
http://statistics.data.gov.uk/id/local-authority/38,Oxfordshire County Council,STD Insurance,Motor Fleet,Motor Insurance Fund Rev AC,Z5151,Motor IF Own Damage,02/12/2011,3301400013,3543.87,AWP Body Repairs
http://statistics.data.gov.uk/id/local-authority/38,Oxfordshire County Council,STD Insurance,Other,Liability Insurance Fund Rev AC,Z5257,Liability IF Fees,13/12/2011,3301400016,977.6,DWF LLP
http://statistics.data.gov.uk/id/local-authority/38,Oxfordshire County Council,Education & Early Intervention,Learner Grants,"Equipment, Furniture and Materials",41100,Educational Supplies,19/12/2011,3301400156,1260,Ladygrove Day Nursery & Nursery Sch
http://statistics.data.gov.uk/id/local-authority/38,Oxfordshire County Council,Education & Early Intervention,Supp Graduate Leader,"Equipment, Furniture and Materials",41100,Educational Supplies,14/12/2011,3301400724,1076,Tiddliwinks Playgroup
http://statistics.data.gov.uk/id/local-authority/38,Oxfordshire County Council,Education & Early Intervention,Supp Graduate Leader,"Equipment, Furniture and Materials",41100,Educational Supplies,01/12/2011,3301400729,1345,Kingfisher Kindergarten
http://statistics.data.gov.uk/id/local-authority/38,Oxfordshire County Council,Law & Governance Services,Legal Services,Expenses,46500,Legal Fees & Exp,14/12/2011,3301401453,2225,HMCTS
http://statistics.data.gov.uk/id/local-authority/38,Oxfordshire County Council,Education & Early Intervention,Learner Grants,"Equipment, Furniture and Materials",41100,Educational Supplies,23/12/2011,3301401693,960,Allsorts Pre-School
http://statistics.data.gov.uk/id/local-authority/38,Oxfordshire County Council,Education & Early Intervention,Sufficiency & Access - Intervention Grnt,Grants and Subscriptions,47100,Grants to Voluntary,09/12/2011,3301402606,2800,Tackley Pre-School
http://statistics.data.gov.uk/id/local-authority/38,Oxfordshire County Council,Social & Community Services,Community Support Budget - City East,Other Agency and Contracted Services,57300,Home Support (Ext) OS&HCD,21/12/2011,3301404070,1260,F & H Solutions Ltd
http://statistics.data.gov.uk/id/local-authority/38,Oxfordshire County Council,Property Asset Management,Magestrates Court,Catering,42106,CFM Catering Food & Consumables,16/12/2011,3301404225,523.67,Kafevend Group Plc
http://statistics.data.gov.uk/id/local-authority/38,Oxfordshire County Council,SCS Pooled Budgets,Community Support Budget - Banbury,Other Agency and Contracted Services,57401,Direct Payments,01/12/2011,3301404752,3068.57,A4e Management Ltd Week 2
http://statistics.data.gov.uk/id/local-authority/38,Oxfordshire County Council,SCS Pooled Budgets,Community Support Budget - Banbury,Other Agency and Contracted Services,57401,Direct Payments,01/12/2011,3301404752,-1371.14,A4e Management Ltd Week 2
http://statistics.data.gov.uk/id/local-authority/38,Oxfordshire County Council,Education & Early Intervention,Out of County,Transport Related,34102,Pupil Fares Reclaima,01/12/2011,3301404785,992,REDACTED PERSONAL DATA
http://statistics.data.gov.uk/id/local-authority/38,Oxfordshire County Council,Education & Early Intervention,Zone 1 - North,Transport Related,33101,Home to School Trans,01/12/2011,3301404789,834.55,Tex Cars Chauffeur Hire
http://statistics.data.gov.uk/id/local-authority/38,Oxfordshire County Council,Education & Early Intervention,Zone 1 - North,Transport Related,33101,Home to School Trans,01/12/2011,3301404790,834.55,Tex Cars Chauffeur Hire
http://statistics.data.gov.uk/id/local-authority/38,Oxfordshire County Council,Education & Early Intervention,Zone 1 - North,Transport Related,33101,Home to School Trans,01/12/2011,3301404791,834.55,Tex Cars Chauffeur Hire
http://statistics.data.gov.uk/id/local-authority/38,Oxfordshire County Council,Education & Early Intervention,FE Special Trans,Transport Related,33101,Home to School Trans,01/12/2011,3301404794,800,ABC Radio Cars
http://statistics.data.gov.uk/id/local-authority/38,Oxfordshire County Council,Education & Early Intervention,FE Special Trans,Transport Related,33101,Home to School Trans,01/12/2011,3301404795,700,ABC Radio Cars
http://statistics.data.gov.uk/id/local-authority/38,Oxfordshire County Council,Education & Early Intervention,Oxford Sth SEN Trans,Transport Related,33101,Home to School Trans,01/12/2011,3301404797,1818.39,W Lynch T/A N J Sarney
http://statistics.data.gov.uk/id/local-authority/38,Oxfordshire County Council,Education & Early Intervention,Oxford Sth SEN Trans,Transport Related,33101,Home to School Trans,01/12/2011,3301404798,1971.69,W Lynch T/A N J Sarney
http://statistics.data.gov.uk/id/local-authority/38,Oxfordshire County Council,Education & Early Intervention,Oxford Sth SEN Trans,Transport Related,33101,Home to School Trans,01/12/2011,3301404799,833.17,Jackie's Services
http://statistics.data.gov.uk/id/local-authority/38,Oxfordshire County Council,Education & Early Intervention,FE Special Trans,Transport Related,33101,Home to School Trans,01/12/2011,3301404800,2200,Express Travel Oxford Limited
http://statistics.data.gov.uk/id/local-authority/38,Oxfordshire County Council,Education & Early Intervention,Zone 5 - South,Transport Related,33101,Home to School Trans,01/12/2011,3301404802,3178.34,Thames Travel (Wallingford) Ltd
http://statistics.data.gov.uk/id/local-authority/38,Oxfordshire County Council,Education & Early Intervention,Oxford Nth SEN Trans,Transport Related,33101,Home to School Trans,01/12/2011,3301404803,3850,Mr K Booker
http://statistics.data.gov.uk/id/local-authority/38,Oxfordshire County Council,Education & Early Intervention,Zone 5 - South,Transport Related,33101,Home to School Trans,01/12/2011,3301404804,3206.5,M & M Coaches
http://statistics.data.gov.uk/id/local-authority/38,Oxfordshire County Council,Education & Early Intervention,Oxford Nth SEN Trans,Transport Related,33101,Home to School Trans,01/12/2011,3301404805,1708.77,Findlay School Transport
http://statistics.data.gov.uk/id/local-authority/38,Oxfordshire County Council,Education & Early Intervention,Oxford Nth SEN Trans,Transport Related,33300,Transport (General),01/12/2011,3301404806,700.98,Findlay School Transport
http://statistics.data.gov.uk/id/local-authority/38,Oxfordshire County Council,Education & Early Intervention,Oxford Sth SEN Trans,Transport Related,33101,Home to School Trans,01/12/2011,3301404807,2138.22,Findlay School Transport
http://statistics.data.gov.uk/id/local-authority/38,Oxfordshire County Council,Education & Early Intervention,Oxford Sth SEN Trans,Transport Related,33300,Transport (General),01/12/2011,3301404808,545.79,Findlay School Transport
http://statistics.data.gov.uk/id/local-authority/38,Oxfordshire County Council,Education & Early Intervention,Abingdon SEN Trans,Transport Related,33101,Home to School Trans,01/12/2011,3301404809,1489.53,Findlay School Transport
http://statistics.data.gov.uk/id/local-authority/38,Oxfordshire County Council,Education & Early Intervention,Abingdon SEN Trans,Transport Related,33300,Transport (General),01/12/2011,3301404810,657.3,Findlay School Transport
http://statistics.data.gov.uk/id/local-authority/38,Oxfordshire County Council,Education & Early Intervention,LDD After School Acc,Transport Related,33101,Home to School Trans,01/12/2011,3301404811,714,Findlay School Transport
http://statistics.data.gov.uk/id/local-authority/38,Oxfordshire County Council,SCS Pooled Budgets,PD Comm Supp Budget - Banbury,Other Agency and Contracted Services,57401,Direct Payments,01/12/2011,3301405210,909.72,A4e Management Ltd Week 2
http://statistics.data.gov.uk/id/local-authority/38,Oxfordshire County Council,Education & Early Intervention,Learner Grants,"Equipment, Furniture and Materials",41100,Educational Supplies,09/12/2011,3301405296,1120,The Old Station Nursery Ltd
http://statistics.data.gov.uk/id/local-authority/38,Oxfordshire County Council,SCS Pooled Budgets,Direct Payments South Team,Other Agency and Contracted Services,57401,Direct Payments,01/12/2011,3301405407,3376,REDACTED PERSONAL DATA
http://statistics.data.gov.uk/id/local-authority/38,Oxfordshire County Council,Highways & Transport,"Electrical NP Rds, Street Lighting",Private Contractors,56400,Major Contracts,02/12/2011,3301405464,581.62,WPD Midlands Networks Services Ltd
http://statistics.data.gov.uk/id/local-authority/38,Oxfordshire County Council,SCS Pooled Budgets,Community Support Budget - Didcot,Other Agency and Contracted Services,57401,Direct Payments,02/12/2011,3301405517,633.84,REDACTED PERSONAL DATA
http://statistics.data.gov.uk/id/local-authority/38,Oxfordshire County Council,Social & Community Services,Community Support Budget - City East,Other Agency and Contracted Services,57300,Home Support (Ext) OS&HCD,13/12/2011,3301405529,3861,Kcare Nursing Agency
http://statistics.data.gov.uk/id/local-authority/38,Oxfordshire County Council,Social & Community Services,Community Support Budget - City East,Other Agency and Contracted Services,57300,Home Support (Ext) OS&HCD,13/12/2011,3301405530,3861,Kcare Nursing Agency
http://statistics.data.gov.uk/id/local-authority/38,Oxfordshire County Council,Education & Early Intervention,Abingdon SEN Trans,Transport Related,33101,Home to School Trans,02/12/2011,3301405551,806.58,Mr K Booker
http://statistics.data.gov.uk/id/local-authority/38,Oxfordshire County Council,Education & Early Intervention,Abingdon SEN Trans,Transport Related,33101,Home to School Trans,02/12/2011,3301405552,1523.61,Mr K Booker
http://statistics.data.gov.uk/id/local-authority/38,Oxfordshire County Council,Education & Early Intervention,FE Special Trans,Transport Related,33101,Home to School Trans,02/12/2011,3301405553,550,Monarch Oxford
http://statistics.data.gov.uk/id/local-authority/38,Oxfordshire County Council,Education & Early Intervention,Oxford Sth SEN Trans,Transport Related,33101,Home to School Trans,02/12/2011,3301405554,550,Monarch Oxford
http://statistics.data.gov.uk/id/local-authority/38,Oxfordshire County Council,Education & Early Intervention,Oxford Sth SEN Trans,Transport Related,33101,Home to School Trans,02/12/2011,3301405557,2415,Express Travel Oxford Limited
http://statistics.data.gov.uk/id/local-authority/38,Oxfordshire County Council,Education & Early Intervention,Oxford Sth SEN Trans,Transport Related,33300,Transport (General),02/12/2011,3301405558,525,Express Travel Oxford Limited
http://statistics.data.gov.uk/id/local-authority/38,Oxfordshire County Council,Education & Early Intervention,LDD After School Acc,Transport Related,33101,Home to School Trans,02/12/2011,3301405559,510,Express Travel Oxford Limited
http://statistics.data.gov.uk/id/local-authority/38,Oxfordshire County Council,Education & Early Intervention,Zone 5 - South,Transport Related,33101,Home to School Trans,02/12/2011,3301405561,782.4,Hills Taxis
http://statistics.data.gov.uk/id/local-authority/38,Oxfordshire County Council,Education & Early Intervention,Zone 3 - West,Transport Related,33101,Home to School Trans,02/12/2011,3301405562,2272.5,Ridgeways Coaches Ltd
http://statistics.data.gov.uk/id/local-authority/38,Oxfordshire County Council,Education & Early Intervention,Oxford Sth SEN Trans,Transport Related,33101,Home to School Trans,02/12/2011,3301405563,3008.46,Crescent Cars Ltd
http://statistics.data.gov.uk/id/local-authority/38,Oxfordshire County Council,Education & Early Intervention,Oxford Sth SEN Trans,Transport Related,33300,Transport (General),02/12/2011,3301405564,672,Crescent Cars Ltd
http://statistics.data.gov.uk/id/local-authority/38,Oxfordshire County Council,Education & Early Intervention,Witney SEN Trans,Transport Related,33101,Home to School Trans,02/12/2011,3301405565,2254.98,Crescent Cars Ltd
http://statistics.data.gov.uk/id/local-authority/38,Oxfordshire County Council,Education & Early Intervention,Witney SEN Trans,Transport Related,33300,Transport (General),02/12/2011,3301405566,700.14,Crescent Cars Ltd
http://statistics.data.gov.uk/id/local-authority/38,Oxfordshire County Council,Social & Community Services,Community Support Budget - City East,Services,44500,Other Hired & Contract Services,15/12/2011,3301405568,816.67,Pickwick's Guest House
http://statistics.data.gov.uk/id/local-authority/38,Oxfordshire County Council,SCS Pooled Budgets,PD Comm Supp Purchasg Budget - City,Other Agency and Contracted Services,57401,Direct Payments,02/12/2011,3301405573,2169.69,Allied Healthcare Group Ltd
http://statistics.data.gov.uk/id/local-authority/38,Oxfordshire County Council,Highways & Transport,Traffic Signals Principal Roads,Private Contractors,56201,Maint Costs 1st Sche,02/12/2011,3301405576,14963.35,SIEMENS PLC
http://statistics.data.gov.uk/id/local-authority/38,Oxfordshire County Council,Highways & Transport,Traffic Signals Non Principal Roads,Private Contractors,56201,Maint Costs 1st Sche,02/12/2011,3301405576,6412.86,SIEMENS PLC
http://statistics.data.gov.uk/id/local-authority/38,Oxfordshire County Council,Law & Governance Services,Legal Services,Expenses,46500,Legal Fees & Exp,02/12/2011,3301405578,2225,HMCTS
http://statistics.data.gov.uk/id/local-authority/38,Oxfordshire County Council,Sustainable Development,Closed Landfill,Energy Costs,23100,Electricity,07/12/2011,3301405585,1679.64,Npower Ltd
http://statistics.data.gov.uk/id/local-authority/38,Oxfordshire County Council,Sustainable Development,Closed Landfill,Energy Costs,23100,Electricity,07/12/2011,3301405586,1679.55,Npower Ltd
http://statistics.data.gov.uk/id/local-authority/38,Oxfordshire County Council,Sustainable Development,Closed Landfill,Energy Costs,23100,Electricity,07/12/2011,3301405587,1679.55,Npower Ltd
http://statistics.data.gov.uk/id/local-authority/38,Oxfordshire County Council,Sustainable Development,Closed Landfill,Energy Costs,23100,Electricity,07/12/2011,3301405588,1679.54,Npower Ltd
http://statistics.data.gov.uk/id/local-authority/38,Oxfordshire County Council,Sustainable Development,Closed Landfill,Energy Costs,23100,Electricity,07/12/2011,3301405589,1625.46,Npower Ltd
http://statistics.data.gov.uk/id/local-authority/38,Oxfordshire County Council,Sustainable Development,Closed Landfill,Energy Costs,23100,Electricity,07/12/2011,3301405590,1571.74,Npower Ltd
http://statistics.data.gov.uk/id/local-authority/38,Oxfordshire County Council,Quality & Compliance,The Harlow Centre,Energy Costs,23100,Electricity,07/12/2011,3301405591,883.02,Npower Ltd
http://statistics.data.gov.uk/id/local-authority/38,Oxfordshire County Council,Quality & Compliance,The Harlow Centre,Energy Costs,23100,Electricity,07/12/2011,3301405592,883.02,Npower Ltd
http://statistics.data.gov.uk/id/local-authority/38,Oxfordshire County Council,Quality & Compliance,The Harlow Centre,Energy Costs,23100,Electricity,07/12/2011,3301405593,854.53,Npower Ltd
http://statistics.data.gov.uk/id/local-authority/38,Oxfordshire County Council,Quality & Compliance,The Harlow Centre,Energy Costs,23100,Electricity,07/12/2011,3301405594,836.75,Npower Ltd
http://statistics.data.gov.uk/id/local-authority/38,Oxfordshire County Council,Quality & Compliance,The Harlow Centre,Energy Costs,23100,Electricity,07/12/2011,3301405595,803.55,Npower Ltd
http://statistics.data.gov.uk/id/local-authority/38,Oxfordshire County Council,Quality & Compliance,The Harlow Centre,Energy Costs,23100,Electricity,07/12/2011,3301405596,797.52,Npower Ltd
http://statistics.data.gov.uk/id/local-authority/38,Oxfordshire County Council,Quality & Compliance,The Harlow Centre,Energy Costs,23100,Electricity,07/12/2011,3301405597,710.03,Npower Ltd
http://statistics.data.gov.uk/id/local-authority/38,Oxfordshire County Council,Quality & Compliance,The Harlow Centre,Energy Costs,23100,Electricity,07/12/2011,3301405598,506.72,Npower Ltd
http://statistics.data.gov.uk/id/local-authority/38,Oxfordshire County Council,Quality & Compliance,The Harlow Centre,Energy Costs,23100,Electricity,07/12/2011,3301405599,506.72,Npower Ltd
http://statistics.data.gov.uk/id/local-authority/38,Oxfordshire County Council,Quality & Compliance,The Harlow Centre,Energy Costs,23100,Electricity,07/12/2011,3301405600,506.72,Npower Ltd
http://statistics.data.gov.uk/id/local-authority/38,Oxfordshire County Council,Quality & Compliance,The Harlow Centre,Energy Costs,23100,Electricity,07/12/2011,3301405601,490.38,Npower Ltd
http://statistics.data.gov.uk/id/local-authority/38,Oxfordshire County Council,Quality & Compliance,The Harlow Centre,Energy Costs,23100,Electricity,07/12/2011,3301405602,490.38,Npower Ltd
http://statistics.data.gov.uk/id/local-authority/38,Oxfordshire County Council,Education & Early Intervention,Supp Graduate Leader,"Equipment, Furniture and Materials",41100,Educational Supplies,02/12/2011,3301405729,3075,Sacred Heart Pre-School Playgroup
http://statistics.data.gov.uk/id/local-authority/38,Oxfordshire County Council,Highways & Transport,"Electrical NP Rds, Street Lighting",Private Contractors,56400,Major Contracts,02/12/2011,3301405731,793.18,Southern Electric Contracting Ltd.
http://statistics.data.gov.uk/id/local-authority/38,Oxfordshire County Council,SCS Pooled Budgets,PCT Carers,Other Agency and Contracted Services,57401,Direct Payments,02/12/2011,3301405746,750,REDACTED PERSONAL DATA
http://statistics.data.gov.uk/id/local-authority/38,Oxfordshire County Council,SCS Pooled Budgets,Carers Break / Respite Project,Other Agency and Contracted Services,57401,Direct Payments,02/12/2011,3301405800,750,REDACTED PERSONAL DATA
http://statistics.data.gov.uk/id/local-authority/38,Oxfordshire County Council,SCS Pooled Budgets,Life Of Your Own Grant Cherwell,Other Agency and Contracted Services,57401,Direct Payments,02/12/2011,3301405802,600,REDACTED PERSONAL DATA
http://statistics.data.gov.uk/id/local-authority/38,Oxfordshire County Council,SCS Pooled Budgets,Carers Break / Respite Project,Other Agency and Contracted Services,57401,Direct Payments,02/12/2011,3301405804,750,REDACTED PERSONAL DATA
http://statistics.data.gov.uk/id/local-authority/38,Oxfordshire County Council,SCS Pooled Budgets,Life Of Your Own Grant Cherwell,Other Agency and Contracted Services,57401,Direct Payments,02/12/2011,3301405805,600,REDACTED PERSONAL DATA
http://statistics.data.gov.uk/id/local-authority/38,Oxfordshire County Council,SCS Pooled Budgets,Carers Break / Respite Project,Other Agency and Contracted Services,57401,Direct Payments,02/12/2011,3301405806,750,REDACTED PERSONAL DATA
http://statistics.data.gov.uk/id/local-authority/38,Oxfordshire County Council,SCS Pooled Budgets,Carers Break / Respite Project,Other Agency and Contracted Services,57401,Direct Payments,02/12/2011,3301405807,750,REDACTED PERSONAL DATA
http://statistics.data.gov.uk/id/local-authority/38,Oxfordshire County Council,SCS Pooled Budgets,Community Support Budget - Abingdon,Other Agency and Contracted Services,57401,Direct Payments,02/12/2011,3301405808,1744.71,REDACTED PERSONAL DATA
http://statistics.data.gov.uk/id/local-authority/38,Oxfordshire County Council,SCS Pooled Budgets,Life Of Your Own Grant Cherwell,Other Agency and Contracted Services,57401,Direct Payments,02/12/2011,3301405810,600,REDACTED PERSONAL DATA
http://statistics.data.gov.uk/id/local-authority/38,Oxfordshire County Council,SCS Pooled Budgets,Life Of Your Own Grant Cherwell,Other Agency and Contracted Services,57401,Direct Payments,02/12/2011,3301405811,500,REDACTED PERSONAL DATA
http://statistics.data.gov.uk/id/local-authority/38,Oxfordshire County Council,SCS Pooled Budgets,Carers Break / Respite Project,Other Agency and Contracted Services,57401,Direct Payments,02/12/2011,3301405812,750,REDACTED PERSONAL DATA
http://statistics.data.gov.uk/id/local-authority/38,Oxfordshire County Council,SCS Pooled Budgets,PCT Carers,Other Agency and Contracted Services,57401,Direct Payments,02/12/2011,3301405815,750,REDACTED PERSONAL DATA
http://statistics.data.gov.uk/id/local-authority/38,Oxfordshire County Council,SCS Pooled Budgets,Carers Break / Respite Project,Other Agency and Contracted Services,57401,Direct Payments,02/12/2011,3301405816,750,REDACTED PERSONAL DATA
http://statistics.data.gov.uk/id/local-authority/38,Oxfordshire County Council,SCS Pooled Budgets,Carers Break / Respite Project,Other Agency and Contracted Services,57401,Direct Payments,02/12/2011,3301405817,750,REDACTED PERSONAL DATA
http://statistics.data.gov.uk/id/local-authority/38,Oxfordshire County Council,SCS Pooled Budgets,Carers Break / Respite Project,Other Agency and Contracted Services,57401,Direct Payments,02/12/2011,3301405818,750,REDACTED PERSONAL DATA
http://statistics.data.gov.uk/id/local-authority/38,Oxfordshire County Council,SCS Pooled Budgets,Direct Payments South Team,Other Agency and Contracted Services,57401,Direct Payments,02/12/2011,3301405820,1196.78,A4e Management Ltd Week 1
http://statistics.data.gov.uk/id/local-authority/38,Oxfordshire County Council,SCS Pooled Budgets,PD Comm Supp Purchasg Budget - Abingdon,Transport Related,34200,Client Journeys,02/12/2011,3301406010,530,Oxon Transport Services Limited t/a
http://statistics.data.gov.uk/id/local-authority/38,Oxfordshire County Council,SCS Pooled Budgets,LD Team budget (CMPB) - City,Transport Related,33300,Transport (General),02/12/2011,3301406013,450,Express Travel Oxford Limited
http://statistics.data.gov.uk/id/local-authority/38,Oxfordshire County Council,SCS Pooled Budgets,LD Team budget (CMPB) South,Transport Related,33300,Transport (General),02/12/2011,3301406017,2948.9,O B Cars
http://statistics.data.gov.uk/id/local-authority/38,Oxfordshire County Council,Social & Community Services,"LD Day Services, Abingdon Day Servs",Transport Related,33103,Transport to Centres,02/12/2011,3301406020,688.6,Abingdon Taxis
http://statistics.data.gov.uk/id/local-authority/38,Oxfordshire County Council,Social & Community Services,"LD Day Services, Abingdon Day Servs",Transport Related,33103,Transport to Centres,02/12/2011,3301406021,1376.98,Abingdon Taxis
http://statistics.data.gov.uk/id/local-authority/38,Oxfordshire County Council,Children's Social Care,Fam Supp North,Transport Related,33101,Home to School Trans,02/12/2011,3301406026,554,Browns Taxis
http://statistics.data.gov.uk/id/local-authority/38,Oxfordshire County Council,SCS Pooled Budgets,LD Team budget (CMPB) North,Transport Related,33300,Transport (General),02/12/2011,3301406028,888,Prestige Cars
http://statistics.data.gov.uk/id/local-authority/38,Oxfordshire County Council,SCS Pooled Budgets,LD Team budget (CMPB) - City,Transport Related,33300,Transport (General),02/12/2011,3301406031,1100,Luxicars Ltd
http://statistics.data.gov.uk/id/local-authority/38,Oxfordshire County Council,SCS Pooled Budgets,LD Team budget (CMPB) - City,Transport Related,33300,Transport (General),02/12/2011,3301406033,1020,K Cars Kidlington
http://statistics.data.gov.uk/id/local-authority/38,Oxfordshire County Council,SCS Pooled Budgets,LD Team budget (CMPB) South,Transport Related,33300,Transport (General),02/12/2011,3301406035,738.81,Hills Taxis
http://statistics.data.gov.uk/id/local-authority/38,Oxfordshire County Council,SCS Pooled Budgets,LD Team budget (CMPB) South,Transport Related,33300,Transport (General),02/12/2011,3301406036,1355.64,Hills Taxis
http://statistics.data.gov.uk/id/local-authority/38,Oxfordshire County Council,Social & Community Services,LD Day Services West Oxon Day Servs,Transport Related,33103,Transport to Centres,02/12/2011,3301406044,1980,R H Transport Services
http://statistics.data.gov.uk/id/local-authority/38,Oxfordshire County Council,Children's Social Care,Transport costs,Transport Related,33101,Home to School Trans,02/12/2011,3301406050,1176,Black and White Taxis
http://statistics.data.gov.uk/id/local-authority/38,Oxfordshire County Council,SCS Pooled Budgets,LD Team budget (CMPB) North,Transport Related,33300,Transport (General),02/12/2011,3301406053,448.56,Black and White Taxis
http://statistics.data.gov.uk/id/local-authority/38,Oxfordshire County Council,SCS Pooled Budgets,LD Team budget (CMPB) North,Transport Related,33300,Transport (General),02/12/2011,3301406055,1033,Black and White Taxis
http://statistics.data.gov.uk/id/local-authority/38,Oxfordshire County Council,Subscriptions,MIS Payroll Workflow,Balance Sheet General,B7102,Local Government AVC,05/12/2011,3301406083,80568.68,Prudential Assurance Co. Ltd
http://statistics.data.gov.uk/id/local-authority/38,Oxfordshire County Council,Subscriptions,MIS Payroll Workflow,Balance Sheet General,B7103,Teachers AVC,05/12/2011,3301406085,51849.61,Prudential Assurance
http://statistics.data.gov.uk/id/local-authority/38,Oxfordshire County Council,Highways & Transport,"Electrical NP Rds, illuminated Signs",Private Contractors,56400,Major Contracts,16/12/2011,3301406213,2394,Pudsey Diamond
http://statistics.data.gov.uk/id/local-authority/38,Oxfordshire County Council,Highways & Transport,Bridges General,Private Contractors,56400,Major Contracts,16/12/2011,3301406214,1488,Custom Pump Services
http://statistics.data.gov.uk/id/local-authority/38,Oxfordshire County Council,Children's Social Care,Nash Court,Energy Costs,23200,Gas,05/12/2011,3301406222,690.04,British Gas Business
http://statistics.data.gov.uk/id/local-authority/38,Oxfordshire County Council,Highways & Transport,Traffic Signals Principal Roads,Private Contractors,56201,Maint Costs 1st Sche,05/12/2011,3301406245,637.55,Southern Electric PLC
http://statistics.data.gov.uk/id/local-authority/38,Oxfordshire County Council,Highways & Transport,Localities,"Equipment, Furniture and Materials",40101,Furniture & Equipment,07/12/2011,3301406360,2000,Henley Town Council
http://statistics.data.gov.uk/id/local-authority/38,Oxfordshire County Council,Property Asset Management,"Orchard Meadow, Oxford",Catering,42106,CFM Catering Food & Consumables,06/12/2011,3301407213,605.95,3663 CARD ACCOUNT
http://statistics.data.gov.uk/id/local-authority/38,Oxfordshire County Council,Education & Early Intervention,Supp Graduate Leader,"Equipment, Furniture and Materials",41100,Educational Supplies,06/12/2011,3301409084,-1200,John Watson After School Club
http://statistics.data.gov.uk/id/local-authority/38,Oxfordshire County Council,Education & Early Intervention,Zone 5 - South,Transport Related,33101,Home to School Trans,06/12/2011,3301409514,522.33,Oxon Transport Services Limited t/a
http://statistics.data.gov.uk/id/local-authority/38,Oxfordshire County Council,Education & Early Intervention,Zone 4 - Vale,Transport Related,33101,Home to School Trans,06/12/2011,3301409517,1120,Oxon Transport Services Limited t/a
http://statistics.data.gov.uk/id/local-authority/38,Oxfordshire County Council,Education & Early Intervention,Zone 4 - Vale,Transport Related,33101,Home to School Trans,06/12/2011,3301409518,800,Oxon Transport Services Limited t/a
http://statistics.data.gov.uk/id/local-authority/38,Oxfordshire County Council,Education & Early Intervention,Oxford Nth SEN Trans,Transport Related,33101,Home to School Trans,06/12/2011,3301409519,1055.36,Oxon Transport Services Limited t/a
http://statistics.data.gov.uk/id/local-authority/38,Oxfordshire County Council,Education & Early Intervention,Zone 4 - Vale,Transport Related,33101,Home to School Trans,06/12/2011,3301409524,1020,Oxon Transport Services Limited t/a
http://statistics.data.gov.uk/id/local-authority/38,Oxfordshire County Council,Education & Early Intervention,Zone 2 - East,Transport Related,33101,Home to School Trans,06/12/2011,3301409525,500.74,Oxon Transport Services Limited t/a
http://statistics.data.gov.uk/id/local-authority/38,Oxfordshire County Council,Education & Early Intervention,Zone 2 - East,Transport Related,33101,Home to School Trans,06/12/2011,3301409526,1600,Oxon Transport Services Limited t/a
http://statistics.data.gov.uk/id/local-authority/38,Oxfordshire County Council,Education & Early Intervention,Zone 2 - East,Transport Related,33101,Home to School Trans,06/12/2011,3301409527,1024,Oxon Transport Services Limited t/a
http://statistics.data.gov.uk/id/local-authority/38,Oxfordshire County Council,Education & Early Intervention,Zone 3 - West,Transport Related,33101,Home to School Trans,06/12/2011,3301409528,1410,Oxon Transport Services Limited t/a
http://statistics.data.gov.uk/id/local-authority/38,Oxfordshire County Council,Education & Early Intervention,Zone 2 - East,Transport Related,33101,Home to School Trans,06/12/2011,3301409529,1350,Oxon Transport Services Limited t/a
http://statistics.data.gov.uk/id/local-authority/38,Oxfordshire County Council,Education & Early Intervention,Zone 4 - Vale,Transport Related,33101,Home to School Trans,06/12/2011,3301409531,521.9,Oxon Transport Services Limited t/a
http://statistics.data.gov.uk/id/local-authority/38,Oxfordshire County Council,Education & Early Intervention,FE Special Trans,Transport Related,33101,Home to School Trans,06/12/2011,3301409532,1170,Oxon Transport Services Limited t/a
http://statistics.data.gov.uk/id/local-authority/38,Oxfordshire County Council,Education & Early Intervention,Oxford Sth SEN Trans,Transport Related,33101,Home to School Trans,06/12/2011,3301409534,1050,Oxon Transport Services Limited t/a
http://statistics.data.gov.uk/id/local-authority/38,Oxfordshire County Council,Education & Early Intervention,Zone 2 - East,Transport Related,33101,Home to School Trans,06/12/2011,3301409536,1248,Oxon Transport Services Limited t/a
http://statistics.data.gov.uk/id/local-authority/38,Oxfordshire County Council,Education & Early Intervention,Oxford Nth SEN Trans,Transport Related,33101,Home to School Trans,06/12/2011,3301409541,1046.2,Oxon Transport Services Limited t/a
http://statistics.data.gov.uk/id/local-authority/38,Oxfordshire County Council,Education & Early Intervention,Oxford Sth SEN Trans,Transport Related,33101,Home to School Trans,06/12/2011,3301409543,800,Oxon Transport Services Limited t/a
http://statistics.data.gov.uk/id/local-authority/38,Oxfordshire County Council,Education & Early Intervention,Zone 2 - East,Transport Related,33101,Home to School Trans,06/12/2011,3301409544,1001.47,Oxon Transport Services Limited t/a
http://statistics.data.gov.uk/id/local-authority/38,Oxfordshire County Council,Education & Early Intervention,Oxford Nth SEN Trans,Transport Related,33101,Home to School Trans,06/12/2011,3301409549,1280,Oxon Transport Services Limited t/a
http://statistics.data.gov.uk/id/local-authority/38,Oxfordshire County Council,Education & Early Intervention,Zone 3 - West,Transport Related,33101,Home to School Trans,06/12/2011,3301409550,2240,Oxon Transport Services Limited t/a
http://statistics.data.gov.uk/id/local-authority/38,Oxfordshire County Council,Education & Early Intervention,Zone 2 - East,Transport Related,33101,Home to School Trans,06/12/2011,3301409551,567.5,Oxon Transport Services Limited t/a
http://statistics.data.gov.uk/id/local-authority/38,Oxfordshire County Council,Education & Early Intervention,Oxford Sth SEN Trans,Transport Related,33101,Home to School Trans,06/12/2011,3301409553,575,Oxon Transport Services Limited t/a
http://statistics.data.gov.uk/id/local-authority/38,Oxfordshire County Council,Education & Early Intervention,Oxford Nth SEN Trans,Transport Related,33101,Home to School Trans,06/12/2011,3301409557,512,Oxon Transport Services Limited t/a
http://statistics.data.gov.uk/id/local-authority/38,Oxfordshire County Council,Education & Early Intervention,Oxford Nth SEN Trans,Transport Related,33101,Home to School Trans,06/12/2011,3301409559,3782.02,WOODSTOCK TRAVEL
http://statistics.data.gov.uk/id/local-authority/38,Oxfordshire County Council,Education & Early Intervention,Oxford Nth SEN Trans,Transport Related,33300,Transport (General),06/12/2011,3301409560,626.34,WOODSTOCK TRAVEL
http://statistics.data.gov.uk/id/local-authority/38,Oxfordshire County Council,Education & Early Intervention,Oxford Nth SEN Trans,Transport Related,33101,Home to School Trans,06/12/2011,3301409561,2825.97,WOODSTOCK TRAVEL
http://statistics.data.gov.uk/id/local-authority/38,Oxfordshire County Council,Education & Early Intervention,FE Special Trans,Transport Related,33101,Home to School Trans,06/12/2011,3301409568,3570,Excel Cars
http://statistics.data.gov.uk/id/local-authority/38,Oxfordshire County Council,Education & Early Intervention,FE Special Trans,Transport Related,33300,Transport (General),06/12/2011,3301409569,462,Excel Cars
http://statistics.data.gov.uk/id/local-authority/38,Oxfordshire County Council,Education & Early Intervention,FE Special Trans,Transport Related,33101,Home to School Trans,06/12/2011,3301409570,2147.88,Excel Cars
http://statistics.data.gov.uk/id/local-authority/38,Oxfordshire County Council,Education & Early Intervention,FE Special Trans,Transport Related,33300,Transport (General),06/12/2011,3301409571,525,Excel Cars
http://statistics.data.gov.uk/id/local-authority/38,Oxfordshire County Council,SCS Pooled Budgets,LD CMPB - North Transport,Transport Related,34200,Client Journeys,06/12/2011,3301409572,792.12,Excel Cars
http://statistics.data.gov.uk/id/local-authority/38,Oxfordshire County Council,Education & Early Intervention,FE Special Trans,Transport Related,33101,Home to School Trans,06/12/2011,3301409573,1308.72,Excel Cars
http://statistics.data.gov.uk/id/local-authority/38,Oxfordshire County Council,Education & Early Intervention,Oxford Nth SEN Trans,Transport Related,33101,Home to School Trans,06/12/2011,3301409577,3799.95,Excel Cars
http://statistics.data.gov.uk/id/local-authority/38,Oxfordshire County Council,Education & Early Intervention,Oxford Nth SEN Trans,Transport Related,33300,Transport (General),06/12/2011,3301409578,815.64,Excel Cars
http://statistics.data.gov.uk/id/local-authority/38,Oxfordshire County Council,Education & Early Intervention,Witney SEN Trans,Transport Related,33101,Home to School Trans,06/12/2011,3301409579,1606.44,Excel Cars
http://statistics.data.gov.uk/id/local-authority/38,Oxfordshire County Council,Education & Early Intervention,Witney SEN Trans,Transport Related,33300,Transport (General),06/12/2011,3301409580,516.34,Excel Cars
http://statistics.data.gov.uk/id/local-authority/38,Oxfordshire County Council,Education & Early Intervention,Witney SEN Trans,Transport Related,33101,Home to School Trans,06/12/2011,3301409581,1376.98,Excel Cars
http://statistics.data.gov.uk/id/local-authority/38,Oxfordshire County Council,Education & Early Intervention,Witney SEN Trans,Transport Related,33300,Transport (General),06/12/2011,3301409582,516.34,Excel Cars
http://statistics.data.gov.uk/id/local-authority/38,Oxfordshire County Council,Education & Early Intervention,Witney SEN Trans,Transport Related,33101,Home to School Trans,06/12/2011,3301409583,1491.82,Excel Cars
http://statistics.data.gov.uk/id/local-authority/38,Oxfordshire County Council,Education & Early Intervention,Witney SEN Trans,Transport Related,33300,Transport (General),06/12/2011,3301409584,516.34,Excel Cars
http://statistics.data.gov.uk/id/local-authority/38,Oxfordshire County Council,Education & Early Intervention,Witney SEN Trans,Transport Related,33101,Home to School Trans,06/12/2011,3301409585,2520,Excel Cars
http://statistics.data.gov.uk/id/local-authority/38,Oxfordshire County Council,Education & Early Intervention,Witney SEN Trans,Transport Related,33101,Home to School Trans,06/12/2011,3301409587,1699.74,Excel Cars
http://statistics.data.gov.uk/id/local-authority/38,Oxfordshire County Council,Education & Early Intervention,Witney SEN Trans,Transport Related,33300,Transport (General),06/12/2011,3301409588,492.87,Excel Cars
http://statistics.data.gov.uk/id/local-authority/38,Oxfordshire County Council,Education & Early Intervention,Witney SEN Trans,Transport Related,33101,Home to School Trans,06/12/2011,3301409589,1941.28,Excel Cars
http://statistics.data.gov.uk/id/local-authority/38,Oxfordshire County Council,Education & Early Intervention,Witney SEN Trans,Transport Related,33300,Transport (General),06/12/2011,3301409590,516.34,Excel Cars
http://statistics.data.gov.uk/id/local-authority/38,Oxfordshire County Council,Education & Early Intervention,Zone 2 - East,Transport Related,33101,Home to School Trans,06/12/2011,3301409592,1752.66,Excel Cars
http://statistics.data.gov.uk/id/local-authority/38,Oxfordshire County Council,Education & Early Intervention,Respite Care,Transport Related,33101,Home to School Trans,06/12/2011,3301409593,1101.54,Excel Cars
http://statistics.data.gov.uk/id/local-authority/38,Oxfordshire County Council,Education & Early Intervention,Witney SEN Trans,Transport Related,33101,Home to School Trans,06/12/2011,3301409598,484,Excel Cars
http://statistics.data.gov.uk/id/local-authority/38,Oxfordshire County Council,Education & Early Intervention,Witney SEN Trans,Transport Related,33101,Home to School Trans,06/12/2011,3301409600,1100.5,Excel Cars
http://statistics.data.gov.uk/id/local-authority/38,Oxfordshire County Council,Education & Early Intervention,Meadowbrook Transprt,Transport Related,33101,Home to School Trans,06/12/2011,3301409604,1900,SJB Cars
http://statistics.data.gov.uk/id/local-authority/38,Oxfordshire County Council,Education & Early Intervention,Meadowbrook Transprt,Transport Related,33101,Home to School Trans,06/12/2011,3301409605,1715,SJB Cars
http://statistics.data.gov.uk/id/local-authority/38,Oxfordshire County Council,Education & Early Intervention,Mainstream Misc,Transport Related,34101,Pupils Season Ticket,06/12/2011,3301409607,1075,Oxford Bus Company
http://statistics.data.gov.uk/id/local-authority/38,Oxfordshire County Council,Education & Early Intervention,Oxford Sth SEN Trans,Transport Related,33101,Home to School Trans,06/12/2011,3301409608,1752.66,AKR LTD
http://statistics.data.gov.uk/id/local-authority/38,Oxfordshire County Council,Education & Early Intervention,Oxford Sth SEN Trans,Transport Related,33300,Transport (General),06/12/2011,3301409609,525.84,AKR LTD
http://statistics.data.gov.uk/id/local-authority/38,Oxfordshire County Council,Education & Early Intervention,Zone 2 - East,Transport Related,33101,Home to School Trans,06/12/2011,3301409610,1226.82,AKR LTD
http://statistics.data.gov.uk/id/local-authority/38,Oxfordshire County Council,Education & Early Intervention,Oxford Nth SEN Trans,Transport Related,33101,Home to School Trans,06/12/2011,3301409611,1804,AKR LTD
http://statistics.data.gov.uk/id/local-authority/38,Oxfordshire County Council,Education & Early Intervention,Oxford Nth SEN Trans,Transport Related,33300,Transport (General),06/12/2011,3301409612,484,AKR LTD
http://statistics.data.gov.uk/id/local-authority/38,Oxfordshire County Council,Education & Early Intervention,Zone 4 - Vale,Transport Related,33101,Home to School Trans,06/12/2011,3301409613,2056.74,AKR LTD
http://statistics.data.gov.uk/id/local-authority/38,Oxfordshire County Council,Education & Early Intervention,Abingdon SEN Trans,Transport Related,33101,Home to School Trans,06/12/2011,3301409614,1512,AKR LTD
http://statistics.data.gov.uk/id/local-authority/38,Oxfordshire County Council,Education & Early Intervention,Abingdon SEN Trans,Transport Related,33300,Transport (General),06/12/2011,3301409615,462,AKR LTD
http://statistics.data.gov.uk/id/local-authority/38,Oxfordshire County Council,Education & Early Intervention,Oxford Nth SEN Trans,Transport Related,33101,Home to School Trans,06/12/2011,3301409616,1606.44,AKR LTD
http://statistics.data.gov.uk/id/local-authority/38,Oxfordshire County Council,Education & Early Intervention,Oxford Nth SEN Trans,Transport Related,33300,Transport (General),06/12/2011,3301409617,463.76,AKR LTD
http://statistics.data.gov.uk/id/local-authority/38,Oxfordshire County Council,Education & Early Intervention,Oxford Nth SEN Trans,Transport Related,33101,Home to School Trans,06/12/2011,3301409618,1794.98,AKR LTD
http://statistics.data.gov.uk/id/local-authority/38,Oxfordshire County Council,Education & Early Intervention,Oxford Nth SEN Trans,Transport Related,33300,Transport (General),06/12/2011,3301409619,502.92,AKR LTD
http://statistics.data.gov.uk/id/local-authority/38,Oxfordshire County Council,Education & Early Intervention,Zone 2 - East,Transport Related,33101,Home to School Trans,06/12/2011,3301409620,3067.05,AKR LTD
http://statistics.data.gov.uk/id/local-authority/38,Oxfordshire County Council,Education & Early Intervention,Zone 2 - East,Transport Related,33101,Home to School Trans,06/12/2011,3301409621,2835,AKR LTD
http://statistics.data.gov.uk/id/local-authority/38,Oxfordshire County Council,Education & Early Intervention,Oxford Nth SEN Trans,Transport Related,33101,Home to School Trans,06/12/2011,3301409622,1722,AKR LTD
http://statistics.data.gov.uk/id/local-authority/38,Oxfordshire County Council,Education & Early Intervention,Oxford Nth SEN Trans,Transport Related,33300,Transport (General),06/12/2011,3301409623,504,AKR LTD
http://statistics.data.gov.uk/id/local-authority/38,Oxfordshire County Council,Education & Early Intervention,Zone 3 - West,Transport Related,33101,Home to School Trans,06/12/2011,3301409624,840,AKR LTD
http://statistics.data.gov.uk/id/local-authority/38,Oxfordshire County Council,Education & Early Intervention,Zone 4 - Vale,Transport Related,33101,Home to School Trans,06/12/2011,3301409625,5054.72,The School Bus Company
http://statistics.data.gov.uk/id/local-authority/38,Oxfordshire County Council,Education & Early Intervention,Zone 4 - Vale,Transport Related,33101,Home to School Trans,06/12/2011,3301409626,5054.72,The School Bus Company
http://statistics.data.gov.uk/id/local-authority/38,Oxfordshire County Council,Education & Early Intervention,Zone 4 - Vale,Transport Related,33101,Home to School Trans,06/12/2011,3301409627,5054.72,The School Bus Company
http://statistics.data.gov.uk/id/local-authority/38,Oxfordshire County Council,Education & Early Intervention,Zone 4 - Vale,Transport Related,33101,Home to School Trans,06/12/2011,3301409628,4460.28,The School Bus Company
http://statistics.data.gov.uk/id/local-authority/38,Oxfordshire County Council,Education & Early Intervention,Zone 4 - Vale,Transport Related,33101,Home to School Trans,06/12/2011,3301409629,4283.84,The School Bus Company
http://statistics.data.gov.uk/id/local-authority/38,Oxfordshire County Council,Education & Early Intervention,Zone 4 - Vale,Transport Related,33101,Home to School Trans,06/12/2011,3301409630,3929.2,The School Bus Company
http://statistics.data.gov.uk/id/local-authority/38,Oxfordshire County Council,Education & Early Intervention,Zone 4 - Vale,Transport Related,33101,Home to School Trans,06/12/2011,3301409631,6402.88,The School Bus Company
http://statistics.data.gov.uk/id/local-authority/38,Oxfordshire County Council,Education & Early Intervention,Zone 4 - Vale,Transport Related,33101,Home to School Trans,06/12/2011,3301409632,6431.92,The School Bus Company
http://statistics.data.gov.uk/id/local-authority/38,Oxfordshire County Council,Education & Early Intervention,Zone 4 - Vale,Transport Related,33101,Home to School Trans,06/12/2011,3301409633,4912.74,The School Bus Company
http://statistics.data.gov.uk/id/local-authority/38,Oxfordshire County Council,Education & Early Intervention,Zone 5 - South,Transport Related,33101,Home to School Trans,06/12/2011,3301409634,4452,The School Bus Company
http://statistics.data.gov.uk/id/local-authority/38,Oxfordshire County Council,Education & Early Intervention,Zone 4 - Vale,Transport Related,33101,Home to School Trans,06/12/2011,3301409635,3199.35,Plastow's Coaches
http://statistics.data.gov.uk/id/local-authority/38,Oxfordshire County Council,Education & Early Intervention,Zone 4 - Vale,Transport Related,33101,Home to School Trans,06/12/2011,3301409636,3541.86,Plastow's Coaches
http://statistics.data.gov.uk/id/local-authority/38,Oxfordshire County Council,Education & Early Intervention,Zone 4 - Vale,Transport Related,33101,Home to School Trans,06/12/2011,3301409637,3999.24,Plastow's Coaches
http://statistics.data.gov.uk/id/local-authority/38,Oxfordshire County Council,Education & Early Intervention,Zone 1 - North,Transport Related,33101,Home to School Trans,06/12/2011,3301409638,1900,Plastow's Coaches
http://statistics.data.gov.uk/id/local-authority/38,Oxfordshire County Council,Education & Early Intervention,Oxford Nth SEN Trans,Transport Related,33101,Home to School Trans,06/12/2011,3301409639,2310,N Sadiq
http://statistics.data.gov.uk/id/local-authority/38,Oxfordshire County Council,Education & Early Intervention,Wantage SEN Trans,Transport Related,33101,Home to School Trans,06/12/2011,3301409640,680,J.S. Hendry
http://statistics.data.gov.uk/id/local-authority/38,Oxfordshire County Council,Education & Early Intervention,Oxford Nth SEN Trans,Transport Related,33101,Home to School Trans,06/12/2011,3301409642,1320,Abingdon Taxis
http://statistics.data.gov.uk/id/local-authority/38,Oxfordshire County Council,Education & Early Intervention,Oxford Nth SEN Trans,Transport Related,33300,Transport (General),06/12/2011,3301409643,550,Abingdon Taxis
http://statistics.data.gov.uk/id/local-authority/38,Oxfordshire County Council,Education & Early Intervention,Oxford Nth SEN Trans,Transport Related,33101,Home to School Trans,06/12/2011,3301409644,1650,Abingdon Taxis
http://statistics.data.gov.uk/id/local-authority/38,Oxfordshire County Council,Education & Early Intervention,Oxford Nth SEN Trans,Transport Related,33300,Transport (General),06/12/2011,3301409645,696.08,Abingdon Taxis
http://statistics.data.gov.uk/id/local-authority/38,Oxfordshire County Council,Education & Early Intervention,Wantage SEN Trans,Transport Related,33101,Home to School Trans,06/12/2011,3301409646,2081.1,Abingdon Taxis
http://statistics.data.gov.uk/id/local-authority/38,Oxfordshire County Council,Education & Early Intervention,Wantage SEN Trans,Transport Related,33300,Transport (General),06/12/2011,3301409647,492.87,Abingdon Taxis
http://statistics.data.gov.uk/id/local-authority/38,Oxfordshire County Council,Education & Early Intervention,Zone 4 - Vale,Transport Related,33101,Home to School Trans,06/12/2011,3301409648,1942.5,Abingdon Taxis
http://statistics.data.gov.uk/id/local-authority/38,Oxfordshire County Council,Education & Early Intervention,Wantage SEN Trans,Transport Related,33101,Home to School Trans,06/12/2011,3301409649,1680,Abingdon Taxis
http://statistics.data.gov.uk/id/local-authority/38,Oxfordshire County Council,Education & Early Intervention,Wantage SEN Trans,Transport Related,33300,Transport (General),06/12/2011,3301409650,420,Abingdon Taxis
http://statistics.data.gov.uk/id/local-authority/38,Oxfordshire County Council,Education & Early Intervention,Zone 4 - Vale,Transport Related,33101,Home to School Trans,06/12/2011,3301409651,945,Abingdon Taxis
http://statistics.data.gov.uk/id/local-authority/38,Oxfordshire County Council,Education & Early Intervention,Zone 4 - Vale,Transport Related,33101,Home to School Trans,06/12/2011,3301409652,440,Abingdon Taxis
http://statistics.data.gov.uk/id/local-authority/38,Oxfordshire County Council,SCS Pooled Budgets,PD Community Support Budget - Kidlington,Other Agency and Contracted Services,57401,Direct Payments,07/12/2011,3301409858,2202,A4e Management Ltd Week 2
http://statistics.data.gov.uk/id/local-authority/38,Oxfordshire County Council,SCS Pooled Budgets,Direct Payments City Team,Other Agency and Contracted Services,57401,Direct Payments,07/12/2011,3301409859,768.39,A4e Management Ltd Week 2
http://statistics.data.gov.uk/id/local-authority/38,Oxfordshire County Council,SCS Pooled Budgets,Community Support Budget - Witney,Other Agency and Contracted Services,57401,Direct Payments,07/12/2011,3301409862,1167.42,A4e Management Ltd Week 2
http://statistics.data.gov.uk/id/local-authority/38,Oxfordshire County Council,SCS Pooled Budgets,Community Support Budget - Faringdon,Other Agency and Contracted Services,57401,Direct Payments,07/12/2011,3301409864,567,A4e Management Ltd Week 2
http://statistics.data.gov.uk/id/local-authority/38,Oxfordshire County Council,SCS Pooled Budgets,Community Support Budget - Henley,Other Agency and Contracted Services,57401,Direct Payments,07/12/2011,3301409866,1062,A4e Management Ltd Week 2
http://statistics.data.gov.uk/id/local-authority/38,Oxfordshire County Council,SCS Pooled Budgets,Community Support Budget - Wantage,Other Agency and Contracted Services,57401,Direct Payments,07/12/2011,3301409867,1239,A4e Management Ltd Week 2
http://statistics.data.gov.uk/id/local-authority/38,Oxfordshire County Council,SCS Pooled Budgets,PD Comm Supp Purchasg Budget - Witney,Other Agency and Contracted Services,57401,Direct Payments,07/12/2011,3301409869,801,A4e Management Ltd Week 2
http://statistics.data.gov.uk/id/local-authority/38,Oxfordshire County Council,SCS Pooled Budgets,Community Support Budget - City,Other Agency and Contracted Services,57401,Direct Payments,07/12/2011,3301409870,665.54,A4e Management Ltd Week 2
http://statistics.data.gov.uk/id/local-authority/38,Oxfordshire County Council,SCS Pooled Budgets,Community Support Budget - Bicester,Other Agency and Contracted Services,57401,Direct Payments,07/12/2011,3301409874,1123.57,A4e Management Ltd Week 2
http://statistics.data.gov.uk/id/local-authority/38,Oxfordshire County Council,SCS Pooled Budgets,PD Comm Supp Budget - Banbury,Other Agency and Contracted Services,57401,Direct Payments,07/12/2011,3301409878,5274,A4e Management Ltd Week 2
http://statistics.data.gov.uk/id/local-authority/38,Oxfordshire County Council,SCS Pooled Budgets,Community Support Budget - Banbury,Other Agency and Contracted Services,57401,Direct Payments,07/12/2011,3301409879,696,A4e Management Ltd Week 2
http://statistics.data.gov.uk/id/local-authority/38,Oxfordshire County Council,SCS Pooled Budgets,PD Comm Supp Purchasg Budget - Wantage,Other Agency and Contracted Services,57401,Direct Payments,07/12/2011,3301409881,825,A4e Management Ltd Week 2
http://statistics.data.gov.uk/id/local-authority/38,Oxfordshire County Council,SCS Pooled Budgets,PD Comm Supp Purchasg Budget - Wantage,Other Agency and Contracted Services,57401,Direct Payments,07/12/2011,3301409881,4297.43,A4e Management Ltd Week 2
http://statistics.data.gov.uk/id/local-authority/38,Oxfordshire County Council,SCS Pooled Budgets,PD Comm Supp Purchasg Budget - Wantage,Other Agency and Contracted Services,57401,Direct Payments,07/12/2011,3301409881,-3496.43,A4e Management Ltd Week 2
http://statistics.data.gov.uk/id/local-authority/38,Oxfordshire County Council,SCS Pooled Budgets,PD Comm Supp Purchasg Budget - City,Other Agency and Contracted Services,57401,Direct Payments,07/12/2011,3301409882,643.11,A4e Management Ltd Week 2
http://statistics.data.gov.uk/id/local-authority/38,Oxfordshire County Council,SCS Pooled Budgets,Community Support Budget - Abingdon,Other Agency and Contracted Services,57401,Direct Payments,07/12/2011,3301409884,799.14,A4e Management Ltd Week 2
http://statistics.data.gov.uk/id/local-authority/38,Oxfordshire County Council,SCS Pooled Budgets,Community Support Budget - Didcot,Other Agency and Contracted Services,57401,Direct Payments,07/12/2011,3301409886,503.4,A4e Management Ltd Week 2
http://statistics.data.gov.uk/id/local-authority/38,Oxfordshire County Council,SCS Pooled Budgets,PD Comm Supp Purchasg Budget - Wantage,Other Agency and Contracted Services,57401,Direct Payments,07/12/2011,3301409888,1188,A4e Management Ltd Week 2
http://statistics.data.gov.uk/id/local-authority/38,Oxfordshire County Council,SCS Pooled Budgets,Community Support Budget - Banbury,Other Agency and Contracted Services,57401,Direct Payments,07/12/2011,3301409889,537.06,A4e Management Ltd Week 2
http://statistics.data.gov.uk/id/local-authority/38,Oxfordshire County Council,SCS Pooled Budgets,Community Support Budget - Kidlington,Other Agency and Contracted Services,57401,Direct Payments,07/12/2011,3301409891,603,A4e Management Ltd Week 2
http://statistics.data.gov.uk/id/local-authority/38,Oxfordshire County Council,SCS Pooled Budgets,Community Support Budget - Banbury,Other Agency and Contracted Services,57401,Direct Payments,07/12/2011,3301409893,1531.6,A4e Management Ltd Week 2
http://statistics.data.gov.uk/id/local-authority/38,Oxfordshire County Council,SCS Pooled Budgets,Community Support Budget - Chipping Nort,Other Agency and Contracted Services,57401,Direct Payments,07/12/2011,3301409895,684,A4e Management Ltd Week 2
http://statistics.data.gov.uk/id/local-authority/38,Oxfordshire County Council,SCS Pooled Budgets,PD Comm Supp Budget - Banbury,Other Agency and Contracted Services,57401,Direct Payments,07/12/2011,3301409897,520,A4e Management Ltd Week 2
http://statistics.data.gov.uk/id/local-authority/38,Oxfordshire County Council,SCS Pooled Budgets,PD Comm Supp Budget - Banbury,Other Agency and Contracted Services,57401,Direct Payments,07/12/2011,3301409897,1560,A4e Management Ltd Week 2
http://statistics.data.gov.uk/id/local-authority/38,Oxfordshire County Council,SCS Pooled Budgets,Community Support Budget - Witney,Other Agency and Contracted Services,57401,Direct Payments,07/12/2011,3301409900,1140,A4e Management Ltd Week 2
http://statistics.data.gov.uk/id/local-authority/38,Oxfordshire County Council,SCS Pooled Budgets,Community Support Budget - Bicester,Other Agency and Contracted Services,57401,Direct Payments,07/12/2011,3301409901,1344,A4e Management Ltd Week 2
http://statistics.data.gov.uk/id/local-authority/38,Oxfordshire County Council,SCS Pooled Budgets,Community Support Budget - Banbury,Other Agency and Contracted Services,57401,Direct Payments,07/12/2011,3301409903,981,A4e Management Ltd Week 2
http://statistics.data.gov.uk/id/local-authority/38,Oxfordshire County Council,SCS Pooled Budgets,Community Support Budget - Bicester,Other Agency and Contracted Services,57401,Direct Payments,07/12/2011,3301409904,1236,A4e Management Ltd Week 2
http://statistics.data.gov.uk/id/local-authority/38,Oxfordshire County Council,SCS Pooled Budgets,Community Support Budget - Bicester,Other Agency and Contracted Services,57401,Direct Payments,07/12/2011,3301409905,1140.93,A4e Management Ltd Week 2
http://statistics.data.gov.uk/id/local-authority/38,Oxfordshire County Council,SCS Pooled Budgets,Community Support Budget - Banbury,Other Agency and Contracted Services,57401,Direct Payments,07/12/2011,3301409906,951,A4e Management Ltd Week 2
http://statistics.data.gov.uk/id/local-authority/38,Oxfordshire County Council,SCS Pooled Budgets,Community Support Budget - City,Other Agency and Contracted Services,57401,Direct Payments,07/12/2011,3301409907,2250,A4e Management Ltd Week 2
http://statistics.data.gov.uk/id/local-authority/38,Oxfordshire County Council,SCS Pooled Budgets,Community Support Budget - City,Other Agency and Contracted Services,57401,Direct Payments,07/12/2011,3301409907,750,A4e Management Ltd Week 2
http://statistics.data.gov.uk/id/local-authority/38,Oxfordshire County Council,SCS Pooled Budgets,Community Support Budget - Banbury,Other Agency and Contracted Services,57401,Direct Payments,07/12/2011,3301409908,800.94,A4e Management Ltd Week 2
http://statistics.data.gov.uk/id/local-authority/38,Oxfordshire County Council,SCS Pooled Budgets,PD Comm Supp Purchasg Budget - City,Other Agency and Contracted Services,57401,Direct Payments,07/12/2011,3301409909,1473.18,A4e Management Ltd Week 2
http://statistics.data.gov.uk/id/local-authority/38,Oxfordshire County Council,SCS Pooled Budgets,PD CS Purch Budget - Health S28a JC,Other Agency and Contracted Services,57401,Direct Payments,07/12/2011,3301409909,851.82,A4e Management Ltd Week 2
http://statistics.data.gov.uk/id/local-authority/38,Oxfordshire County Council,SCS Pooled Budgets,PD Comm Supp Purchasg Budget - Henley,Other Agency and Contracted Services,57401,Direct Payments,07/12/2011,3301409912,783,A4e Management Ltd Week 2
http://statistics.data.gov.uk/id/local-authority/38,Oxfordshire County Council,SCS Pooled Budgets,Community Support Budget - Wantage,Other Agency and Contracted Services,57401,Direct Payments,07/12/2011,3301409914,621,A4e Management Ltd Week 2
http://statistics.data.gov.uk/id/local-authority/38,Oxfordshire County Council,SCS Pooled Budgets,Community Support Budget - Chipping Nort,Other Agency and Contracted Services,57401,Direct Payments,07/12/2011,3301409915,502.53,A4e Management Ltd Week 2
http://statistics.data.gov.uk/id/local-authority/38,Oxfordshire County Council,SCS Pooled Budgets,Community Support Budget - City,Other Agency and Contracted Services,57401,Direct Payments,07/12/2011,3301409917,855.7,A4e Management Ltd Week 2
http://statistics.data.gov.uk/id/local-authority/38,Oxfordshire County Council,SCS Pooled Budgets,Community Support Budget - Banbury,Other Agency and Contracted Services,57401,Direct Payments,07/12/2011,3301409918,1611,A4e Management Ltd Week 2
http://statistics.data.gov.uk/id/local-authority/38,Oxfordshire County Council,SCS Pooled Budgets,PD Community Support Budget - Kidlington,Other Agency and Contracted Services,57401,Direct Payments,07/12/2011,3301409920,781.14,A4e Management Ltd Week 2
http://statistics.data.gov.uk/id/local-authority/38,Oxfordshire County Council,SCS Pooled Budgets,PD Community Support Budget - Kidlington,Other Agency and Contracted Services,57401,Direct Payments,07/12/2011,3301409920,2343.42,A4e Management Ltd Week 2
http://statistics.data.gov.uk/id/local-authority/38,Oxfordshire County Council,SCS Pooled Budgets,Community Support Budget - Chipping Nort,Other Agency and Contracted Services,57401,Direct Payments,07/12/2011,3301409921,1323,A4e Management Ltd Week 2
http://statistics.data.gov.uk/id/local-authority/38,Oxfordshire County Council,SCS Pooled Budgets,Community Support Budget - Faringdon,Other Agency and Contracted Services,57401,Direct Payments,07/12/2011,3301409923,510,A4e Management Ltd Week 2
http://statistics.data.gov.uk/id/local-authority/38,Oxfordshire County Council,SCS Pooled Budgets,Community Support Budget - Didcot,Other Agency and Contracted Services,57401,Direct Payments,07/12/2011,3301409925,1301.01,A4e Management Ltd Week 2
http://statistics.data.gov.uk/id/local-authority/38,Oxfordshire County Council,SCS Pooled Budgets,Community Support Budget - Witney,Other Agency and Contracted Services,57401,Direct Payments,07/12/2011,3301409927,1209.12,A4e Management Ltd Week 2
http://statistics.data.gov.uk/id/local-authority/38,Oxfordshire County Council,SCS Pooled Budgets,Community Support Budget - Witney,Other Agency and Contracted Services,57401,Direct Payments,07/12/2011,3301409928,1087.05,A4e Management Ltd Week 2
http://statistics.data.gov.uk/id/local-authority/38,Oxfordshire County Council,SCS Pooled Budgets,Community Support Budget - Bicester,Other Agency and Contracted Services,57401,Direct Payments,07/12/2011,3301409929,930,A4e Management Ltd Week 2
http://statistics.data.gov.uk/id/local-authority/38,Oxfordshire County Council,SCS Pooled Budgets,Community Support Budget - Faringdon,Other Agency and Contracted Services,57401,Direct Payments,07/12/2011,3301409931,693,A4e Management Ltd Week 2
http://statistics.data.gov.uk/id/local-authority/38,Oxfordshire County Council,SCS Pooled Budgets,PD Comm Supp Purchasg Budget - City,Other Agency and Contracted Services,57401,Direct Payments,07/12/2011,3301409933,930,A4e Management Ltd Week 2
http://statistics.data.gov.uk/id/local-authority/38,Oxfordshire County Council,SCS Pooled Budgets,PD Comm Supp Purchasg Budget - City,Other Agency and Contracted Services,57401,Direct Payments,07/12/2011,3301409934,9857.16,A4e Management Ltd Week 2
http://statistics.data.gov.uk/id/local-authority/38,Oxfordshire County Council,SCS Pooled Budgets,PD Comm Supp Purchasg Budget - City,Other Agency and Contracted Services,57401,Direct Payments,07/12/2011,3301409934,1000,A4e Management Ltd Week 2
http://statistics.data.gov.uk/id/local-authority/38,Oxfordshire County Council,SCS Pooled Budgets,Community Support Budget - Faringdon,Other Agency and Contracted Services,57401,Direct Payments,07/12/2011,3301409935,1575,A4e Management Ltd Week 2
http://statistics.data.gov.uk/id/local-authority/38,Oxfordshire County Council,SCS Pooled Budgets,Community Support Budget - Faringdon,Other Agency and Contracted Services,57401,Direct Payments,07/12/2011,3301409935,525,A4e Management Ltd Week 2
http://statistics.data.gov.uk/id/local-authority/38,Oxfordshire County Council,SCS Pooled Budgets,Community Support Budget - Witney,Other Agency and Contracted Services,57401,Direct Payments,07/12/2011,3301409936,1618.05,A4e Management Ltd Week 2
http://statistics.data.gov.uk/id/local-authority/38,Oxfordshire County Council,SCS Pooled Budgets,Community Support Budget - Witney,Other Agency and Contracted Services,57401,Direct Payments,07/12/2011,3301409936,539.35,A4e Management Ltd Week 2
http://statistics.data.gov.uk/id/local-authority/38,Oxfordshire County Council,SCS Pooled Budgets,Community Support Budget - Bicester,Other Agency and Contracted Services,57401,Direct Payments,07/12/2011,3301409938,906,A4e Management Ltd Week 2
http://statistics.data.gov.uk/id/local-authority/38,Oxfordshire County Council,SCS Pooled Budgets,Community Support Budget - Witney,Other Agency and Contracted Services,57401,Direct Payments,07/12/2011,3301409940,1948.95,A4e Management Ltd Week 2
http://statistics.data.gov.uk/id/local-authority/38,Oxfordshire County Council,SCS Pooled Budgets,Community Support Budget - Witney,Other Agency and Contracted Services,57401,Direct Payments,07/12/2011,3301409940,649.65,A4e Management Ltd Week 2
http://statistics.data.gov.uk/id/local-authority/38,Oxfordshire County Council,SCS Pooled Budgets,Community Support Budget - Bicester,Other Agency and Contracted Services,57401,Direct Payments,07/12/2011,3301409942,626.04,A4e Management Ltd Week 2
http://statistics.data.gov.uk/id/local-authority/38,Oxfordshire County Council,SCS Pooled Budgets,Community Support Budget - Abingdon,Other Agency and Contracted Services,57401,Direct Payments,07/12/2011,3301409945,1521.24,A4e Management Ltd Week 2
http://statistics.data.gov.uk/id/local-authority/38,Oxfordshire County Council,SCS Pooled Budgets,Community Support Budget - Abingdon,Other Agency and Contracted Services,57401,Direct Payments,07/12/2011,3301409945,507.08,A4e Management Ltd Week 2
http://statistics.data.gov.uk/id/local-authority/38,Oxfordshire County Council,SCS Pooled Budgets,Community Support Budget - Kidlington,Other Agency and Contracted Services,57401,Direct Payments,07/12/2011,3301409951,528,A4e Management Ltd Week 2
http://statistics.data.gov.uk/id/local-authority/38,Oxfordshire County Council,SCS Pooled Budgets,Community Support Budget - City,Other Agency and Contracted Services,57401,Direct Payments,07/12/2011,3301409954,877.5,A4e Management Ltd Week 2
http://statistics.data.gov.uk/id/local-authority/38,Oxfordshire County Council,SCS Pooled Budgets,Community Support Budget - City,Other Agency and Contracted Services,57401,Direct Payments,07/12/2011,3301409955,507,A4e Management Ltd Week 2
http://statistics.data.gov.uk/id/local-authority/38,Oxfordshire County Council,SCS Pooled Budgets,Community Support Budget - Witney,Other Agency and Contracted Services,57401,Direct Payments,07/12/2011,3301409956,561,A4e Management Ltd Week 2
http://statistics.data.gov.uk/id/local-authority/38,Oxfordshire County Council,SCS Pooled Budgets,Direct Payments City Team,Other Agency and Contracted Services,57401,Direct Payments,07/12/2011,3301409957,1458,A4e Management Ltd Week 2
http://statistics.data.gov.uk/id/local-authority/38,Oxfordshire County Council,SCS Pooled Budgets,Direct Payments City Team,Other Agency and Contracted Services,57401,Direct Payments,07/12/2011,3301409958,6000,A4e Management Ltd Week 2
http://statistics.data.gov.uk/id/local-authority/38,Oxfordshire County Council,SCS Pooled Budgets,Direct Payments City Team,Other Agency and Contracted Services,57401,Direct Payments,07/12/2011,3301409958,2000,A4e Management Ltd Week 2
http://statistics.data.gov.uk/id/local-authority/38,Oxfordshire County Council,SCS Pooled Budgets,Direct Payments North Team,Other Agency and Contracted Services,57401,Direct Payments,07/12/2011,3301409959,2655,A4e Management Ltd Week 2
http://statistics.data.gov.uk/id/local-authority/38,Oxfordshire County Council,SCS Pooled Budgets,Direct Payments North Team,Other Agency and Contracted Services,57401,Direct Payments,07/12/2011,3301409959,885,A4e Management Ltd Week 2
http://statistics.data.gov.uk/id/local-authority/38,Oxfordshire County Council,SCS Pooled Budgets,PD Comm Supp Budgt - Bicester/Kidlington,Other Agency and Contracted Services,57401,Direct Payments,07/12/2011,3301409960,882.45,A4e Management Ltd Week 2
http://statistics.data.gov.uk/id/local-authority/38,Oxfordshire County Council,SCS Pooled Budgets,Community Support Budget - City,Other Agency and Contracted Services,57401,Direct Payments,07/12/2011,3301409965,584.4,A4e Management Ltd Week 2
http://statistics.data.gov.uk/id/local-authority/38,Oxfordshire County Council,SCS Pooled Budgets,Community Support Budget - Banbury,Other Agency and Contracted Services,57401,Direct Payments,07/12/2011,3301409966,1289.14,A4e Management Ltd Week 2
http://statistics.data.gov.uk/id/local-authority/38,Oxfordshire County Council,SCS Pooled Budgets,Community Support Budget - Witney,Other Agency and Contracted Services,57401,Direct Payments,07/12/2011,3301409969,560.79,A4e Management Ltd Week 2
http://statistics.data.gov.uk/id/local-authority/38,Oxfordshire County Council,SCS Pooled Budgets,Community Support Budget - City,Other Agency and Contracted Services,57401,Direct Payments,07/12/2011,3301409970,1406.4,A4e Management Ltd Week 2
http://statistics.data.gov.uk/id/local-authority/38,Oxfordshire County Council,SCS Pooled Budgets,PD Comm Supp Purchasg Budget - Witney,Other Agency and Contracted Services,57401,Direct Payments,07/12/2011,3301409972,20060,A4e Management Ltd Week 2
http://statistics.data.gov.uk/id/local-authority/38,Oxfordshire County Council,SCS Pooled Budgets,PD Comm Supp Purchasg Budget - Witney,Other Agency and Contracted Services,57401,Direct Payments,07/12/2011,3301409976,2393.91,A4e Management Ltd Week 2
http://statistics.data.gov.uk/id/local-authority/38,Oxfordshire County Council,SCS Pooled Budgets,PD Comm Supp Purchasg Budget - Witney,Other Agency and Contracted Services,57401,Direct Payments,07/12/2011,3301409976,797.97,A4e Management Ltd Week 2
http://statistics.data.gov.uk/id/local-authority/38,Oxfordshire County Council,SCS Pooled Budgets,Direct Payments North Team,Other Agency and Contracted Services,57401,Direct Payments,07/12/2011,3301409978,630.87,A4e Management Ltd Week 2
http://statistics.data.gov.uk/id/local-authority/38,Oxfordshire County Council,SCS Pooled Budgets,Direct Payments South Team,Other Agency and Contracted Services,57401,Direct Payments,07/12/2011,3301409982,681.75,A4e Management Ltd Week 2
http://statistics.data.gov.uk/id/local-authority/38,Oxfordshire County Council,SCS Pooled Budgets,Direct Payments South Team,Other Agency and Contracted Services,57401,Direct Payments,07/12/2011,3301409984,2244,A4e Management Ltd Week 2
http://statistics.data.gov.uk/id/local-authority/38,Oxfordshire County Council,SCS Pooled Budgets,Direct Payments South Team,Other Agency and Contracted Services,57401,Direct Payments,07/12/2011,3301409984,748,A4e Management Ltd Week 2
http://statistics.data.gov.uk/id/local-authority/38,Oxfordshire County Council,SCS Pooled Budgets,Community Support Budget - Abingdon,Other Agency and Contracted Services,57401,Direct Payments,07/12/2011,3301409985,2073.75,A4e Management Ltd Week 2
http://statistics.data.gov.uk/id/local-authority/38,Oxfordshire County Council,SCS Pooled Budgets,Community Support Budget - Abingdon,Other Agency and Contracted Services,57401,Direct Payments,07/12/2011,3301409985,691.25,A4e Management Ltd Week 2
http://statistics.data.gov.uk/id/local-authority/38,Oxfordshire County Council,SCS Pooled Budgets,PD Comm Supp Purchasg Budget - City,Other Agency and Contracted Services,57401,Direct Payments,07/12/2011,3301409991,2681.14,A4e Management Ltd Week 2
http://statistics.data.gov.uk/id/local-authority/38,Oxfordshire County Council,SCS Pooled Budgets,Community Support Budget - Witney,Other Agency and Contracted Services,57401,Direct Payments,07/12/2011,3301409992,3113,A4e Management Ltd Week 2
http://statistics.data.gov.uk/id/local-authority/38,Oxfordshire County Council,SCS Pooled Budgets,Community Support Budget - Thame,Other Agency and Contracted Services,57401,Direct Payments,07/12/2011,3301409994,570.15,A4e Management Ltd Week 2
http://statistics.data.gov.uk/id/local-authority/38,Oxfordshire County Council,SCS Pooled Budgets,Community Support Budget - City,Other Agency and Contracted Services,57401,Direct Payments,07/12/2011,3301409996,912.84,A4e Management Ltd Week 2
http://statistics.data.gov.uk/id/local-authority/38,Oxfordshire County Council,SCS Pooled Budgets,OP Pool Continuing Care Delegated Health,Other Agency and Contracted Services,57401,Direct Payments,07/12/2011,3301409996,827.16,A4e Management Ltd Week 2
http://statistics.data.gov.uk/id/local-authority/38,Oxfordshire County Council,SCS Pooled Budgets,PD Comm Supp Budgt - Bicester/Kidlington,Other Agency and Contracted Services,57401,Direct Payments,07/12/2011,3301409999,768,A4e Management Ltd Week 2
http://statistics.data.gov.uk/id/local-authority/38,Oxfordshire County Council,SCS Pooled Budgets,Community Support Budget - Kidlington,Other Agency and Contracted Services,57401,Direct Payments,07/12/2011,3301410000,690,A4e Management Ltd Week 2
http://statistics.data.gov.uk/id/local-authority/38,Oxfordshire County Council,SCS Pooled Budgets,PD Comm Supp Purchasg Budget - Witney,Other Agency and Contracted Services,57401,Direct Payments,07/12/2011,3301410001,760.62,A4e Management Ltd Week 2
http://statistics.data.gov.uk/id/local-authority/38,Oxfordshire County Council,SCS Pooled Budgets,Community Support Budget - Banbury,Other Agency and Contracted Services,57401,Direct Payments,07/12/2011,3301410003,660,A4e Management Ltd Week 2
http://statistics.data.gov.uk/id/local-authority/38,Oxfordshire County Council,SCS Pooled Budgets,Community Support Budget - Banbury,Other Agency and Contracted Services,57401,Direct Payments,07/12/2011,3301410004,683.4,A4e Management Ltd Week 2
http://statistics.data.gov.uk/id/local-authority/38,Oxfordshire County Council,SCS Pooled Budgets,Community Support Budget - Banbury,Other Agency and Contracted Services,57401,Direct Payments,07/12/2011,3301410005,2170,A4e Management Ltd Week 2
http://statistics.data.gov.uk/id/local-authority/38,Oxfordshire County Council,SCS Pooled Budgets,Community Support Budget - Banbury,Other Agency and Contracted Services,57401,Direct Payments,07/12/2011,3301410006,3318,A4e Management Ltd Week 2
http://statistics.data.gov.uk/id/local-authority/38,Oxfordshire County Council,SCS Pooled Budgets,Community Support Budget - Banbury,Other Agency and Contracted Services,57401,Direct Payments,07/12/2011,3301410007,786,A4e Management Ltd Week 2
http://statistics.data.gov.uk/id/local-authority/38,Oxfordshire County Council,SCS Pooled Budgets,PD Comm Supp Budget - Banbury,Other Agency and Contracted Services,57401,Direct Payments,07/12/2011,3301410009,622.86,A4e Management Ltd Week 2
http://statistics.data.gov.uk/id/local-authority/38,Oxfordshire County Council,SCS Pooled Budgets,PD Comm Supp Purchasg Budget - Chip. N.,Other Agency and Contracted Services,57401,Direct Payments,07/12/2011,3301410010,598.53,A4e Management Ltd Week 2
http://statistics.data.gov.uk/id/local-authority/38,Oxfordshire County Council,SCS Pooled Budgets,PD Comm Supp Purchasg Budget - Chip. N.,Other Agency and Contracted Services,57401,Direct Payments,07/12/2011,3301410010,1795.59,A4e Management Ltd Week 2
http://statistics.data.gov.uk/id/local-authority/38,Oxfordshire County Council,Social & Community Services,Community Support Budget - City East,Other Agency and Contracted Services,57401,Direct Payments,07/12/2011,3301410013,870,A4e Management Ltd Week 2
http://statistics.data.gov.uk/id/local-authority/38,Oxfordshire County Council,SCS Pooled Budgets,Community Support Budget - Witney,Other Agency and Contracted Services,57401,Direct Payments,07/12/2011,3301410015,1059,A4e Management Ltd Week 2
http://statistics.data.gov.uk/id/local-authority/38,Oxfordshire County Council,SCS Pooled Budgets,Community Support Budget - City,Other Agency and Contracted Services,57401,Direct Payments,07/12/2011,3301410017,763.71,A4e Management Ltd Week 2
http://statistics.data.gov.uk/id/local-authority/38,Oxfordshire County Council,SCS Pooled Budgets,Community Support Budget - Bicester,Other Agency and Contracted Services,57401,Direct Payments,07/12/2011,3301410018,525,A4e Management Ltd Week 2
http://statistics.data.gov.uk/id/local-authority/38,Oxfordshire County Council,SCS Pooled Budgets,Community Support Budget - Henley,Other Agency and Contracted Services,57401,Direct Payments,07/12/2011,3301410023,1400,REDACTED PERSONAL DATA
http://statistics.data.gov.uk/id/local-authority/38,Oxfordshire County Council,Education & Early Intervention,Oxford Nth SEN Trans,Transport Related,33101,Home to School Trans,07/12/2011,3301410096,1155,John Cleaton Airport Cars Oxford
http://statistics.data.gov.uk/id/local-authority/38,Oxfordshire County Council,Education & Early Intervention,Oxford Nth SEN Trans,Transport Related,33300,Transport (General),07/12/2011,3301410097,525,John Cleaton Airport Cars Oxford
http://statistics.data.gov.uk/id/local-authority/38,Oxfordshire County Council,Education & Early Intervention,Zone 1 - North,Transport Related,33101,Home to School Trans,07/12/2011,3301410098,5080.9,Jeffs Coaches Limited
http://statistics.data.gov.uk/id/local-authority/38,Oxfordshire County Council,Education & Early Intervention,Zone 1 - North,Transport Related,33101,Home to School Trans,07/12/2011,3301410099,5544.88,Jeffs Coaches Limited
http://statistics.data.gov.uk/id/local-authority/38,Oxfordshire County Council,Education & Early Intervention,Zone 2 - East,Transport Related,33101,Home to School Trans,07/12/2011,3301410100,795.52,Jeffs Coaches Limited
http://statistics.data.gov.uk/id/local-authority/38,Oxfordshire County Council,Education & Early Intervention,Zone 1 - North,Transport Related,33101,Home to School Trans,07/12/2011,3301410101,5544.88,Jeffs Coaches Limited
http://statistics.data.gov.uk/id/local-authority/38,Oxfordshire County Council,Education & Early Intervention,Zone 1 - North,Transport Related,33101,Home to School Trans,07/12/2011,3301410102,2631.81,Jeffs Coaches Limited
http://statistics.data.gov.uk/id/local-authority/38,Oxfordshire County Council,Education & Early Intervention,Free Travel,Transport Related,33101,Home to School Trans,07/12/2011,3301410103,1074.97,Jeffs Coaches Limited
http://statistics.data.gov.uk/id/local-authority/38,Oxfordshire County Council,Education & Early Intervention,Zone 1 - North,Transport Related,33101,Home to School Trans,07/12/2011,3301410104,3707,Jeffs Coaches Limited
http://statistics.data.gov.uk/id/local-authority/38,Oxfordshire County Council,Education & Early Intervention,Zone 1 - North,Transport Related,33101,Home to School Trans,07/12/2011,3301410105,4407.92,Jeffs Coaches Limited
http://statistics.data.gov.uk/id/local-authority/38,Oxfordshire County Council,Education & Early Intervention,Banbury SEN Trans,Transport Related,33101,Home to School Trans,07/12/2011,3301410106,4590.08,Pages Taxis
http://statistics.data.gov.uk/id/local-authority/38,Oxfordshire County Council,Education & Early Intervention,Banbury SEN Trans,Transport Related,33300,Transport (General),07/12/2011,3301410107,863.5,Pages Taxis
http://statistics.data.gov.uk/id/local-authority/38,Oxfordshire County Council,Education & Early Intervention,Bicester SEN Trans,Transport Related,33101,Home to School Trans,07/12/2011,3301410108,3309.6,Pages Taxis
http://statistics.data.gov.uk/id/local-authority/38,Oxfordshire County Council,Education & Early Intervention,Bicester SEN Trans,Transport Related,33300,Transport (General),07/12/2011,3301410109,803.25,Pages Taxis
http://statistics.data.gov.uk/id/local-authority/38,Oxfordshire County Council,Education & Early Intervention,Oxford Nth SEN Trans,Transport Related,33101,Home to School Trans,07/12/2011,3301410110,3568.95,Pages Taxis
http://statistics.data.gov.uk/id/local-authority/38,Oxfordshire County Council,Education & Early Intervention,Oxford Nth SEN Trans,Transport Related,33300,Transport (General),07/12/2011,3301410111,886.41,Pages Taxis
http://statistics.data.gov.uk/id/local-authority/38,Oxfordshire County Council,Education & Early Intervention,Abingdon SEN Trans,Transport Related,33101,Home to School Trans,07/12/2011,3301410112,2103.57,Toot's Taxis
http://statistics.data.gov.uk/id/local-authority/38,Oxfordshire County Council,Education & Early Intervention,Abingdon SEN Trans,Transport Related,33300,Transport (General),07/12/2011,3301410113,664.02,Toot's Taxis
http://statistics.data.gov.uk/id/local-authority/38,Oxfordshire County Council,Education & Early Intervention,Abingdon SEN Trans,Transport Related,33101,Home to School Trans,07/12/2011,3301410114,2081.1,Toot's Taxis
http://statistics.data.gov.uk/id/local-authority/38,Oxfordshire County Council,Education & Early Intervention,Abingdon SEN Trans,Transport Related,33300,Transport (General),07/12/2011,3301410115,482.16,Toot's Taxis
http://statistics.data.gov.uk/id/local-authority/38,Oxfordshire County Council,Education & Early Intervention,Oxford Nth SEN Trans,Transport Related,33101,Home to School Trans,07/12/2011,3301410116,2536.59,Toot's Taxis
http://statistics.data.gov.uk/id/local-authority/38,Oxfordshire County Council,Education & Early Intervention,Oxford Sth SEN Trans,Transport Related,33101,Home to School Trans,07/12/2011,3301410117,1984.92,Toot's Taxis
http://statistics.data.gov.uk/id/local-authority/38,Oxfordshire County Council,Education & Early Intervention,Oxford Sth SEN Trans,Transport Related,33300,Transport (General),07/12/2011,3301410118,945.84,Toot's Taxis
http://statistics.data.gov.uk/id/local-authority/38,Oxfordshire County Council,Education & Early Intervention,Zone 3 - West,Transport Related,33101,Home to School Trans,07/12/2011,3301410119,3402,Chris Gilbert Travel
http://statistics.data.gov.uk/id/local-authority/38,Oxfordshire County Council,Education & Early Intervention,Zone 4 - Vale,Transport Related,33101,Home to School Trans,07/12/2011,3301410121,540,Oxon Transport Services Limited t/a
http://statistics.data.gov.uk/id/local-authority/38,Oxfordshire County Council,Education & Early Intervention,Zone 4 - Vale,Transport Related,33101,Home to School Trans,07/12/2011,3301410123,968,Oxon Transport Services Limited t/a
http://statistics.data.gov.uk/id/local-authority/38,Oxfordshire County Council,Education & Early Intervention,Zone 2 - East,Transport Related,33101,Home to School Trans,07/12/2011,3301410124,3254.79,Grayline Coaches
http://statistics.data.gov.uk/id/local-authority/38,Oxfordshire County Council,Education & Early Intervention,Zone 2 - East,Transport Related,33101,Home to School Trans,07/12/2011,3301410125,2891.2,Grayline Coaches
http://statistics.data.gov.uk/id/local-authority/38,Oxfordshire County Council,Education & Early Intervention,Zone 2 - East,Transport Related,33101,Home to School Trans,07/12/2011,3301410126,2891.2,Grayline Coaches
http://statistics.data.gov.uk/id/local-authority/38,Oxfordshire County Council,Education & Early Intervention,Zone 2 - East,Transport Related,33101,Home to School Trans,07/12/2011,3301410127,2831.85,Grayline Coaches
http://statistics.data.gov.uk/id/local-authority/38,Oxfordshire County Council,Education & Early Intervention,Zone 2 - East,Transport Related,33101,Home to School Trans,07/12/2011,3301410128,2619.4,Grayline Coaches
http://statistics.data.gov.uk/id/local-authority/38,Oxfordshire County Council,Education & Early Intervention,Zone 2 - East,Transport Related,33101,Home to School Trans,07/12/2011,3301410129,3180.32,Grayline Coaches
http://statistics.data.gov.uk/id/local-authority/38,Oxfordshire County Council,Education & Early Intervention,Zone 2 - East,Transport Related,33101,Home to School Trans,07/12/2011,3301410130,2831.85,Grayline Coaches
http://statistics.data.gov.uk/id/local-authority/38,Oxfordshire County Council,Education & Early Intervention,Zone 2 - East,Transport Related,33101,Home to School Trans,07/12/2011,3301410131,3160.5,Grayline Coaches
http://statistics.data.gov.uk/id/local-authority/38,Oxfordshire County Council,Education & Early Intervention,Zone 2 - East,Transport Related,33101,Home to School Trans,07/12/2011,3301410132,2891.2,Grayline Coaches
http://statistics.data.gov.uk/id/local-authority/38,Oxfordshire County Council,Education & Early Intervention,Zone 2 - East,Transport Related,33101,Home to School Trans,07/12/2011,3301410133,3264.24,Grayline Coaches
http://statistics.data.gov.uk/id/local-authority/38,Oxfordshire County Council,Education & Early Intervention,Zone 3 - West,Transport Related,33101,Home to School Trans,07/12/2011,3301410134,7848,Mcleans Coaches
http://statistics.data.gov.uk/id/local-authority/38,Oxfordshire County Council,Education & Early Intervention,Zone 3 - West,Transport Related,33101,Home to School Trans,07/12/2011,3301410135,5232,Mcleans Coaches
http://statistics.data.gov.uk/id/local-authority/38,Oxfordshire County Council,Social & Community Services,"LD Day Services, Service Managers",Other Agency and Contracted Services,57401,Direct Payments,07/12/2011,3301410170,906.08,REDACTED PERSONAL DATA
http://statistics.data.gov.uk/id/local-authority/38,Oxfordshire County Council,SCS Pooled Budgets,Community Support Budget - Banbury,Other Agency and Contracted Services,57401,Direct Payments,07/12/2011,3301410171,2028.32,REDACTED PERSONAL DATA
http://statistics.data.gov.uk/id/local-authority/38,Oxfordshire County Council,SCS Pooled Budgets,Community Support Budget - Henley,Other Agency and Contracted Services,57401,Direct Payments,07/12/2011,3301410172,778.73,REDACTED PERSONAL DATA
http://statistics.data.gov.uk/id/local-authority/38,Oxfordshire County Council,SCS Pooled Budgets,PD Comm Supp Purchasg Budget - Didcot,Other Agency and Contracted Services,57401,Direct Payments,07/12/2011,3301410174,1828,REDACTED PERSONAL DATA
http://statistics.data.gov.uk/id/local-authority/38,Oxfordshire County Council,SCS Pooled Budgets,Community Support Budget - City,Other Agency and Contracted Services,57401,Direct Payments,07/12/2011,3301410175,678.57,REDACTED PERSONAL DATA
http://statistics.data.gov.uk/id/local-authority/38,Oxfordshire County Council,SCS Pooled Budgets,Community Support Budget - Kidlington,Other Agency and Contracted Services,57401,Direct Payments,07/12/2011,3301410176,851.28,REDACTED PERSONAL DATA
http://statistics.data.gov.uk/id/local-authority/38,Oxfordshire County Council,SCS Pooled Budgets,Direct Payments North Team,Other Agency and Contracted Services,57401,Direct Payments,07/12/2011,3301410178,675.24,REDACTED PERSONAL DATA
http://statistics.data.gov.uk/id/local-authority/38,Oxfordshire County Council,SCS Pooled Budgets,Direct Payments North Team,Other Agency and Contracted Services,57401,Direct Payments,07/12/2011,3301410178,1736.33,REDACTED PERSONAL DATA
http://statistics.data.gov.uk/id/local-authority/38,Oxfordshire County Council,SCS Pooled Budgets,Direct Payments North Team,Other Agency and Contracted Services,57401,Direct Payments,07/12/2011,3301410178,-1115.9,REDACTED PERSONAL DATA
http://statistics.data.gov.uk/id/local-authority/38,Oxfordshire County Council,SCS Pooled Budgets,Direct Payments South Team,Other Agency and Contracted Services,57401,Direct Payments,07/12/2011,3301410180,4794.2,REDACTED PERSONAL DATA
http://statistics.data.gov.uk/id/local-authority/38,Oxfordshire County Council,SCS Pooled Budgets,Community Support Budget - Bicester,Other Agency and Contracted Services,57401,Direct Payments,07/12/2011,3301410181,528,REDACTED PERSONAL DATA
http://statistics.data.gov.uk/id/local-authority/38,Oxfordshire County Council,SCS Pooled Budgets,PD Comm Supp Budget - Banbury,Other Agency and Contracted Services,57401,Direct Payments,07/12/2011,3301410183,1261.24,REDACTED PERSONAL DATA
http://statistics.data.gov.uk/id/local-authority/38,Oxfordshire County Council,SCS Pooled Budgets,Community Support Budget - Kidlington,Other Agency and Contracted Services,57401,Direct Payments,07/12/2011,3301410184,760.62,REDACTED PERSONAL DATA
http://statistics.data.gov.uk/id/local-authority/38,Oxfordshire County Council,SCS Pooled Budgets,Community Support Budget - City,Other Agency and Contracted Services,57401,Direct Payments,07/12/2011,3301410185,2204.48,REDACTED PERSONAL DATA
http://statistics.data.gov.uk/id/local-authority/38,Oxfordshire County Council,SCS Pooled Budgets,OP Pool Continuing Care Delegated Health,Other Agency and Contracted Services,57401,Direct Payments,07/12/2011,3301410185,836.28,REDACTED PERSONAL DATA
http://statistics.data.gov.uk/id/local-authority/38,Oxfordshire County Council,SCS Pooled Budgets,OP Pool Continuing Care Delegated Health,Other Agency and Contracted Services,57401,Direct Payments,07/12/2011,3301410187,1700.52,REDACTED PERSONAL DATA
http://statistics.data.gov.uk/id/local-authority/38,Oxfordshire County Council,SCS Pooled Budgets,Community Support Budget - Banbury,Other Agency and Contracted Services,57401,Direct Payments,07/12/2011,3301410187,1440.28,REDACTED PERSONAL DATA
http://statistics.data.gov.uk/id/local-authority/38,Oxfordshire County Council,SCS Pooled Budgets,Community Support Budget - City,Other Agency and Contracted Services,57401,Direct Payments,07/12/2011,3301410188,1822.8,REDACTED PERSONAL DATA
http://statistics.data.gov.uk/id/local-authority/38,Oxfordshire County Council,SCS Pooled Budgets,Direct Payments City Team,Other Agency and Contracted Services,57401,Direct Payments,07/12/2011,3301410189,1461.52,REDACTED PERSONAL DATA
http://statistics.data.gov.uk/id/local-authority/38,Oxfordshire County Council,SCS Pooled Budgets,Community Support Budget - Thame,Other Agency and Contracted Services,57401,Direct Payments,07/12/2011,3301410190,1672,REDACTED PERSONAL DATA
http://statistics.data.gov.uk/id/local-authority/38,Oxfordshire County Council,SCS Pooled Budgets,Direct Payments North Team,Other Agency and Contracted Services,57401,Direct Payments,07/12/2011,3301410192,896,REDACTED PERSONAL DATA
http://statistics.data.gov.uk/id/local-authority/38,Oxfordshire County Council,SCS Pooled Budgets,Community Support Budget - Banbury,Other Agency and Contracted Services,57401,Direct Payments,07/12/2011,3301410194,1000,REDACTED PERSONAL DATA
http://statistics.data.gov.uk/id/local-authority/38,Oxfordshire County Council,SCS Pooled Budgets,PD Comm Supp Purchasg Budget - Witney,Other Agency and Contracted Services,57401,Direct Payments,07/12/2011,3301410195,2004,REDACTED PERSONAL DATA
http://statistics.data.gov.uk/id/local-authority/38,Oxfordshire County Council,SCS Pooled Budgets,PD CS Purch Budget - Health S28a JC,Other Agency and Contracted Services,57401,Direct Payments,07/12/2011,3301410195,832,REDACTED PERSONAL DATA
http://statistics.data.gov.uk/id/local-authority/38,Oxfordshire County Council,SCS Pooled Budgets,Community Support Budget - Bicester,Other Agency and Contracted Services,57401,Direct Payments,07/12/2011,3301410196,1316,REDACTED PERSONAL DATA
http://statistics.data.gov.uk/id/local-authority/38,Oxfordshire County Council,Social & Community Services,Community Support Budget - City East,Other Agency and Contracted Services,57401,Direct Payments,07/12/2011,3301410197,508.36,REDACTED PERSONAL DATA
http://statistics.data.gov.uk/id/local-authority/38,Oxfordshire County Council,SCS Pooled Budgets,Community Support Budget - Didcot,Other Agency and Contracted Services,57401,Direct Payments,07/12/2011,3301410198,704.32,REDACTED PERSONAL DATA
http://statistics.data.gov.uk/id/local-authority/38,Oxfordshire County Council,SCS Pooled Budgets,Direct Payments South Team,Other Agency and Contracted Services,57401,Direct Payments,07/12/2011,3301410199,1376,REDACTED PERSONAL DATA
http://statistics.data.gov.uk/id/local-authority/38,Oxfordshire County Council,SCS Pooled Budgets,Community Support Budget - Bicester,Other Agency and Contracted Services,57401,Direct Payments,07/12/2011,3301410200,8624,REDACTED PERSONAL DATA
http://statistics.data.gov.uk/id/local-authority/38,Oxfordshire County Council,SCS Pooled Budgets,Community Support Budget - City,Other Agency and Contracted Services,57401,Direct Payments,07/12/2011,3301410201,748.6,REDACTED PERSONAL DATA
http://statistics.data.gov.uk/id/local-authority/38,Oxfordshire County Council,SCS Pooled Budgets,Community Support Budget - Henley,Other Agency and Contracted Services,57401,Direct Payments,07/12/2011,3301410203,1920,REDACTED PERSONAL DATA
http://statistics.data.gov.uk/id/local-authority/38,Oxfordshire County Council,SCS Pooled Budgets,Community Support Budget - Banbury,Other Agency and Contracted Services,57401,Direct Payments,07/12/2011,3301410205,2356,REDACTED PERSONAL DATA
http://statistics.data.gov.uk/id/local-authority/38,Oxfordshire County Council,SCS Pooled Budgets,Community Support Budget - Wantage,Other Agency and Contracted Services,57401,Direct Payments,07/12/2011,3301410206,752,REDACTED PERSONAL DATA
http://statistics.data.gov.uk/id/local-authority/38,Oxfordshire County Council,SCS Pooled Budgets,PD Comm Supp Budgt - Bicester/Kidlington,Other Agency and Contracted Services,57401,Direct Payments,07/12/2011,3301410208,1739.2,REDACTED PERSONAL DATA
http://statistics.data.gov.uk/id/local-authority/38,Oxfordshire County Council,SCS Pooled Budgets,PD Comm Supp Purchasg Budget - Witney,Other Agency and Contracted Services,57401,Direct Payments,07/12/2011,3301410209,780,REDACTED PERSONAL DATA
http://statistics.data.gov.uk/id/local-authority/38,Oxfordshire County Council,SCS Pooled Budgets,Community Support Budget - Witney,Other Agency and Contracted Services,57401,Direct Payments,07/12/2011,3301410210,628,REDACTED PERSONAL DATA
http://statistics.data.gov.uk/id/local-authority/38,Oxfordshire County Council,SCS Pooled Budgets,Community Support Budget - Henley,Other Agency and Contracted Services,57401,Direct Payments,07/12/2011,3301410212,1268,REDACTED PERSONAL DATA
http://statistics.data.gov.uk/id/local-authority/38,Oxfordshire County Council,SCS Pooled Budgets,Community Support Budget - Henley,Other Agency and Contracted Services,57401,Direct Payments,07/12/2011,3301410213,908,REDACTED PERSONAL DATA
http://statistics.data.gov.uk/id/local-authority/38,Oxfordshire County Council,SCS Pooled Budgets,Community Support Budget - Banbury,Other Agency and Contracted Services,57401,Direct Payments,07/12/2011,3301410214,576,REDACTED PERSONAL DATA
http://statistics.data.gov.uk/id/local-authority/38,Oxfordshire County Council,SCS Pooled Budgets,Community Support Budget - Banbury,Other Agency and Contracted Services,57401,Direct Payments,07/12/2011,3301410215,542.5,REDACTED PERSONAL DATA
http://statistics.data.gov.uk/id/local-authority/38,Oxfordshire County Council,SCS Pooled Budgets,Community Support Budget - Didcot,Other Agency and Contracted Services,57401,Direct Payments,07/12/2011,3301410218,1266.6,REDACTED PERSONAL DATA
http://statistics.data.gov.uk/id/local-authority/38,Oxfordshire County Council,SCS Pooled Budgets,PD CS Purch Budget - Health S28a JC,Other Agency and Contracted Services,57401,Direct Payments,07/12/2011,3301410219,1096.64,REDACTED PERSONAL DATA
http://statistics.data.gov.uk/id/local-authority/38,Oxfordshire County Council,SCS Pooled Budgets,PD Comm Supp Purchasg Budget - Didcot,Other Agency and Contracted Services,57401,Direct Payments,07/12/2011,3301410219,1280,REDACTED PERSONAL DATA
http://statistics.data.gov.uk/id/local-authority/38,Oxfordshire County Council,SCS Pooled Budgets,Community Support Budget - Bicester,Other Agency and Contracted Services,57401,Direct Payments,07/12/2011,3301410220,1100.4,REDACTED PERSONAL DATA
http://statistics.data.gov.uk/id/local-authority/38,Oxfordshire County Council,SCS Pooled Budgets,Direct Payments South Team,Other Agency and Contracted Services,57401,Direct Payments,07/12/2011,3301410221,600,REDACTED PERSONAL DATA
http://statistics.data.gov.uk/id/local-authority/38,Oxfordshire County Council,SCS Pooled Budgets,Direct Payments North Team,Other Agency and Contracted Services,57401,Direct Payments,07/12/2011,3301410222,1043.08,REDACTED PERSONAL DATA
http://statistics.data.gov.uk/id/local-authority/38,Oxfordshire County Council,SCS Pooled Budgets,Direct Payments North Team,Other Agency and Contracted Services,57401,Direct Payments,07/12/2011,3301410224,548,REDACTED PERSONAL DATA
http://statistics.data.gov.uk/id/local-authority/38,Oxfordshire County Council,SCS Pooled Budgets,Direct Payments North Team,Other Agency and Contracted Services,57401,Direct Payments,07/12/2011,3301410225,4681.43,REDACTED PERSONAL DATA
http://statistics.data.gov.uk/id/local-authority/38,Oxfordshire County Council,SCS Pooled Budgets,Direct Payments North Team,Other Agency and Contracted Services,57401,Direct Payments,07/12/2011,3301410225,-828.57,REDACTED PERSONAL DATA
http://statistics.data.gov.uk/id/local-authority/38,Oxfordshire County Council,SCS Pooled Budgets,Direct Payments North Team,Other Agency and Contracted Services,57401,Direct Payments,07/12/2011,3301410225,904,REDACTED PERSONAL DATA
http://statistics.data.gov.uk/id/local-authority/38,Oxfordshire County Council,SCS Pooled Budgets,Direct Payments South Team,Other Agency and Contracted Services,57401,Direct Payments,07/12/2011,3301410227,1820,REDACTED PERSONAL DATA
http://statistics.data.gov.uk/id/local-authority/38,Oxfordshire County Council,SCS Pooled Budgets,Community Support Budget - Banbury,Other Agency and Contracted Services,57401,Direct Payments,07/12/2011,3301410228,840,REDACTED PERSONAL DATA
http://statistics.data.gov.uk/id/local-authority/38,Oxfordshire County Council,SCS Pooled Budgets,Direct Payments South Team,Other Agency and Contracted Services,57401,Direct Payments,07/12/2011,3301410230,6012,REDACTED PERSONAL DATA
http://statistics.data.gov.uk/id/local-authority/38,Oxfordshire County Council,SCS Pooled Budgets,Community Support Budget - Abingdon,Other Agency and Contracted Services,57401,Direct Payments,07/12/2011,3301410231,903.2,REDACTED PERSONAL DATA
http://statistics.data.gov.uk/id/local-authority/38,Oxfordshire County Council,SCS Pooled Budgets,Continuing Health Care,Other Agency and Contracted Services,57401,Direct Payments,07/12/2011,3301410233,5056,REDACTED PERSONAL DATA
http://statistics.data.gov.uk/id/local-authority/38,Oxfordshire County Council,SCS Pooled Budgets,PD Comm Supp Purchasg Budget - Henley,Other Agency and Contracted Services,57401,Direct Payments,07/12/2011,3301410235,3164.4,REDACTED PERSONAL DATA
http://statistics.data.gov.uk/id/local-authority/38,Oxfordshire County Council,SCS Pooled Budgets,Direct Payments City Team,Other Agency and Contracted Services,57401,Direct Payments,07/12/2011,3301410237,3045.4,REDACTED PERSONAL DATA
http://statistics.data.gov.uk/id/local-authority/38,Oxfordshire County Council,SCS Pooled Budgets,Community Support Budget - Bicester,Other Agency and Contracted Services,57401,Direct Payments,07/12/2011,3301410238,1936,REDACTED PERSONAL DATA
http://statistics.data.gov.uk/id/local-authority/38,Oxfordshire County Council,SCS Pooled Budgets,Direct Payments South Team,Other Agency and Contracted Services,57401,Direct Payments,07/12/2011,3301410239,1016.44,REDACTED PERSONAL DATA
http://statistics.data.gov.uk/id/local-authority/38,Oxfordshire County Council,SCS Pooled Budgets,Community Support Budget - Thame,Other Agency and Contracted Services,57401,Direct Payments,07/12/2011,3301410243,2376,REDACTED PERSONAL DATA
http://statistics.data.gov.uk/id/local-authority/38,Oxfordshire County Council,SCS Pooled Budgets,Direct Payments South Team,Other Agency and Contracted Services,57401,Direct Payments,07/12/2011,3301410244,684.84,REDACTED PERSONAL DATA
http://statistics.data.gov.uk/id/local-authority/38,Oxfordshire County Council,SCS Pooled Budgets,Community Support Budget - Witney,Other Agency and Contracted Services,57401,Direct Payments,07/12/2011,3301410245,1576,REDACTED PERSONAL DATA
http://statistics.data.gov.uk/id/local-authority/38,Oxfordshire County Council,SCS Pooled Budgets,Direct Payments North Team,Other Agency and Contracted Services,57401,Direct Payments,07/12/2011,3301410246,2840,REDACTED PERSONAL DATA
http://statistics.data.gov.uk/id/local-authority/38,Oxfordshire County Council,SCS Pooled Budgets,Personal Health Budgets OP (PCT),Other Agency and Contracted Services,57401,Direct Payments,07/12/2011,3301410247,666.34,REDACTED PERSONAL DATA
http://statistics.data.gov.uk/id/local-authority/38,Oxfordshire County Council,Social & Community Services,Community Support Budget - City East,Other Agency and Contracted Services,57401,Direct Payments,07/12/2011,3301410248,864,REDACTED PERSONAL DATA
http://statistics.data.gov.uk/id/local-authority/38,Oxfordshire County Council,SCS Pooled Budgets,PD Comm Supp Purchasg Budget - Witney,Other Agency and Contracted Services,57401,Direct Payments,07/12/2011,3301410249,1225.51,REDACTED PERSONAL DATA
http://statistics.data.gov.uk/id/local-authority/38,Oxfordshire County Council,SCS Pooled Budgets,PD CS Purch Budget - Health S28a JC,Other Agency and Contracted Services,57401,Direct Payments,07/12/2011,3301410249,2378.93,REDACTED PERSONAL DATA
http://statistics.data.gov.uk/id/local-authority/38,Oxfordshire County Council,SCS Pooled Budgets,PD Comm Supp Purchasg Budget - Witney CG,Other Agency and Contracted Services,57401,Direct Payments,07/12/2011,3301410250,572,REDACTED PERSONAL DATA
http://statistics.data.gov.uk/id/local-authority/38,Oxfordshire County Council,SCS Pooled Budgets,Direct Payments North Team,Other Agency and Contracted Services,57401,Direct Payments,07/12/2011,3301410251,927.84,REDACTED PERSONAL DATA
http://statistics.data.gov.uk/id/local-authority/38,Oxfordshire County Council,SCS Pooled Budgets,Direct Payments North Team,Other Agency and Contracted Services,57401,Direct Payments,07/12/2011,3301410252,4393.92,REDACTED PERSONAL DATA
http://statistics.data.gov.uk/id/local-authority/38,Oxfordshire County Council,SCS Pooled Budgets,Direct Payments South Team,Other Agency and Contracted Services,57401,Direct Payments,07/12/2011,3301410253,3330.68,REDACTED PERSONAL DATA
http://statistics.data.gov.uk/id/local-authority/38,Oxfordshire County Council,SCS Pooled Budgets,Direct Payments South Team,Other Agency and Contracted Services,57401,Direct Payments,07/12/2011,3301410254,738.28,REDACTED PERSONAL DATA
http://statistics.data.gov.uk/id/local-authority/38,Oxfordshire County Council,SCS Pooled Budgets,PD Comm Supp Purchasg Budget - Abingdon,Other Agency and Contracted Services,57401,Direct Payments,07/12/2011,3301410255,2547.29,REDACTED PERSONAL DATA
http://statistics.data.gov.uk/id/local-authority/38,Oxfordshire County Council,SCS Pooled Budgets,PD CS Purch Budget - Health S28a JC,Other Agency and Contracted Services,57401,Direct Payments,07/12/2011,3301410255,2084.15,REDACTED PERSONAL DATA
http://statistics.data.gov.uk/id/local-authority/38,Oxfordshire County Council,SCS Pooled Budgets,Community Support Budget - Wantage,Other Agency and Contracted Services,57401,Direct Payments,07/12/2011,3301410256,960,REDACTED PERSONAL DATA
http://statistics.data.gov.uk/id/local-authority/38,Oxfordshire County Council,SCS Pooled Budgets,PD Comm Supp Purchasg Budget - Didcot,Other Agency and Contracted Services,57401,Direct Payments,07/12/2011,3301410257,604,REDACTED PERSONAL DATA
http://statistics.data.gov.uk/id/local-authority/38,Oxfordshire County Council,SCS Pooled Budgets,PD Comm Supp Purchasg Budget - Abingdon,Other Agency and Contracted Services,57401,Direct Payments,07/12/2011,3301410259,813.76,REDACTED PERSONAL DATA
http://statistics.data.gov.uk/id/local-authority/38,Oxfordshire County Council,SCS Pooled Budgets,Direct Payments South Team,Other Agency and Contracted Services,57401,Direct Payments,07/12/2011,3301410260,5364,REDACTED PERSONAL DATA
http://statistics.data.gov.uk/id/local-authority/38,Oxfordshire County Council,SCS Pooled Budgets,Direct Payments South Team,Other Agency and Contracted Services,57401,Direct Payments,07/12/2011,3301410261,616.88,REDACTED PERSONAL DATA
http://statistics.data.gov.uk/id/local-authority/38,Oxfordshire County Council,SCS Pooled Budgets,Direct Payments City Team,Other Agency and Contracted Services,57401,Direct Payments,07/12/2011,3301410262,740,REDACTED PERSONAL DATA
http://statistics.data.gov.uk/id/local-authority/38,Oxfordshire County Council,SCS Pooled Budgets,Community Support Budget - City,Other Agency and Contracted Services,57401,Direct Payments,07/12/2011,3301410264,849.92,REDACTED PERSONAL DATA
http://statistics.data.gov.uk/id/local-authority/38,Oxfordshire County Council,SCS Pooled Budgets,PD Comm Supp Budget - Banbury,Other Agency and Contracted Services,57401,Direct Payments,07/12/2011,3301410265,1121.72,REDACTED PERSONAL DATA
http://statistics.data.gov.uk/id/local-authority/38,Oxfordshire County Council,SCS Pooled Budgets,Personal Health Budgets OP (PCT),Other Agency and Contracted Services,57401,Direct Payments,07/12/2011,3301410266,7789.33,REDACTED PERSONAL DATA
http://statistics.data.gov.uk/id/local-authority/38,Oxfordshire County Council,SCS Pooled Budgets,Personal Health Budgets OP (PCT),Other Agency and Contracted Services,57401,Direct Payments,07/12/2011,3301410266,5696.01,REDACTED PERSONAL DATA
http://statistics.data.gov.uk/id/local-authority/38,Oxfordshire County Council,SCS Pooled Budgets,Personal Health Budgets OP (PCT),Other Agency and Contracted Services,57401,Direct Payments,07/12/2011,3301410266,1298.22,REDACTED PERSONAL DATA
http://statistics.data.gov.uk/id/local-authority/38,Oxfordshire County Council,SCS Pooled Budgets,Direct Payments North Team,Other Agency and Contracted Services,57401,Direct Payments,07/12/2011,3301410267,11805.89,REDACTED PERSONAL DATA
http://statistics.data.gov.uk/id/local-authority/38,Oxfordshire County Council,SCS Pooled Budgets,Direct Payments North Team,Other Agency and Contracted Services,57401,Direct Payments,07/12/2011,3301410267,2015.64,REDACTED PERSONAL DATA
http://statistics.data.gov.uk/id/local-authority/38,Oxfordshire County Council,SCS Pooled Budgets,Direct Payments North Team,Other Agency and Contracted Services,57401,Direct Payments,07/12/2011,3301410267,-12016.13,REDACTED PERSONAL DATA
http://statistics.data.gov.uk/id/local-authority/38,Oxfordshire County Council,SCS Pooled Budgets,PD Comm Supp Purchasg Budget - City,Other Agency and Contracted Services,57401,Direct Payments,07/12/2011,3301410268,2213.11,REDACTED PERSONAL DATA
http://statistics.data.gov.uk/id/local-authority/38,Oxfordshire County Council,SCS Pooled Budgets,PD CS Purch Budget - Health S28a JC,Other Agency and Contracted Services,57401,Direct Payments,07/12/2011,3301410268,2126.33,REDACTED PERSONAL DATA
http://statistics.data.gov.uk/id/local-authority/38,Oxfordshire County Council,SCS Pooled Budgets,Direct Payments City Team,Other Agency and Contracted Services,57401,Direct Payments,07/12/2011,3301410270,594,REDACTED PERSONAL DATA
http://statistics.data.gov.uk/id/local-authority/38,Oxfordshire County Council,SCS Pooled Budgets,Direct Payments City Team,Other Agency and Contracted Services,57401,Direct Payments,07/12/2011,3301410271,2952.32,REDACTED PERSONAL DATA
http://statistics.data.gov.uk/id/local-authority/38,Oxfordshire County Council,SCS Pooled Budgets,Community Support Budget - Didcot,Other Agency and Contracted Services,57401,Direct Payments,07/12/2011,3301410272,-1802.29,REDACTED PERSONAL DATA
http://statistics.data.gov.uk/id/local-authority/38,Oxfordshire County Council,SCS Pooled Budgets,Community Support Budget - Didcot,Other Agency and Contracted Services,57401,Direct Payments,07/12/2011,3301410272,2320,REDACTED PERSONAL DATA
http://statistics.data.gov.uk/id/local-authority/38,Oxfordshire County Council,SCS Pooled Budgets,Community Support Budget - Didcot,Other Agency and Contracted Services,57401,Direct Payments,07/12/2011,3301410272,520,REDACTED PERSONAL DATA
http://statistics.data.gov.uk/id/local-authority/38,Oxfordshire County Council,SCS Pooled Budgets,Community Support Budget - Didcot,Other Agency and Contracted Services,57401,Direct Payments,07/12/2011,3301410272,2237.14,REDACTED PERSONAL DATA
http://statistics.data.gov.uk/id/local-authority/38,Oxfordshire County Council,SCS Pooled Budgets,Direct Payments South Team,Other Agency and Contracted Services,57401,Direct Payments,07/12/2011,3301410273,1360,REDACTED PERSONAL DATA
http://statistics.data.gov.uk/id/local-authority/38,Oxfordshire County Council,SCS Pooled Budgets,Direct Payments North Team,Other Agency and Contracted Services,57401,Direct Payments,07/12/2011,3301410275,4969.8,REDACTED PERSONAL DATA
http://statistics.data.gov.uk/id/local-authority/38,Oxfordshire County Council,SCS Pooled Budgets,Direct Payments North Team,Other Agency and Contracted Services,57401,Direct Payments,07/12/2011,3301410276,4983.04,REDACTED PERSONAL DATA
http://statistics.data.gov.uk/id/local-authority/38,Oxfordshire County Council,SCS Pooled Budgets,Direct Payments South Team,Other Agency and Contracted Services,57401,Direct Payments,07/12/2011,3301410277,1787.52,REDACTED PERSONAL DATA
http://statistics.data.gov.uk/id/local-authority/38,Oxfordshire County Council,SCS Pooled Budgets,Direct Payments South Team,Other Agency and Contracted Services,57401,Direct Payments,07/12/2011,3301410278,5397,REDACTED PERSONAL DATA
http://statistics.data.gov.uk/id/local-authority/38,Oxfordshire County Council,SCS Pooled Budgets,Direct Payments South Team,Other Agency and Contracted Services,57401,Direct Payments,07/12/2011,3301410280,574.04,REDACTED PERSONAL DATA
http://statistics.data.gov.uk/id/local-authority/38,Oxfordshire County Council,SCS Pooled Budgets,Direct Payments South Team,Other Agency and Contracted Services,57401,Direct Payments,07/12/2011,3301410281,3808.36,REDACTED PERSONAL DATA
http://statistics.data.gov.uk/id/local-authority/38,Oxfordshire County Council,SCS Pooled Budgets,Community Support Budget - Thame,Other Agency and Contracted Services,57401,Direct Payments,07/12/2011,3301410282,4021.64,REDACTED PERSONAL DATA
http://statistics.data.gov.uk/id/local-authority/38,Oxfordshire County Council,SCS Pooled Budgets,Community Support Budget - Thame,Other Agency and Contracted Services,57401,Direct Payments,07/12/2011,3301410283,1776,REDACTED PERSONAL DATA
http://statistics.data.gov.uk/id/local-authority/38,Oxfordshire County Council,SCS Pooled Budgets,Direct Payments North Team,Other Agency and Contracted Services,57401,Direct Payments,07/12/2011,3301410284,14465.24,REDACTED PERSONAL DATA
http://statistics.data.gov.uk/id/local-authority/38,Oxfordshire County Council,SCS Pooled Budgets,PD Community Support Budget - Kidlington,Other Agency and Contracted Services,57401,Direct Payments,07/12/2011,3301410285,827.36,REDACTED PERSONAL DATA
http://statistics.data.gov.uk/id/local-authority/38,Oxfordshire County Council,SCS Pooled Budgets,PD CS Purch Budget - Health S28a JC,Other Agency and Contracted Services,57401,Direct Payments,07/12/2011,3301410285,1694.92,REDACTED PERSONAL DATA
http://statistics.data.gov.uk/id/local-authority/38,Oxfordshire County Council,SCS Pooled Budgets,Community Support Budget - Bicester,Other Agency and Contracted Services,57401,Direct Payments,07/12/2011,3301410286,5184.86,REDACTED PERSONAL DATA
http://statistics.data.gov.uk/id/local-authority/38,Oxfordshire County Council,SCS Pooled Budgets,Community Support Budget - Bicester,Other Agency and Contracted Services,57401,Direct Payments,07/12/2011,3301410286,-2497.6,REDACTED PERSONAL DATA
http://statistics.data.gov.uk/id/local-authority/38,Oxfordshire County Council,SCS Pooled Budgets,Community Support Budget - Bicester,Other Agency and Contracted Services,57401,Direct Payments,07/12/2011,3301410286,1052,REDACTED PERSONAL DATA
http://statistics.data.gov.uk/id/local-authority/38,Oxfordshire County Council,SCS Pooled Budgets,PD Community Support Budget - Kidlington,Other Agency and Contracted Services,57401,Direct Payments,07/12/2011,3301410287,842.08,REDACTED PERSONAL DATA
http://statistics.data.gov.uk/id/local-authority/38,Oxfordshire County Council,SCS Pooled Budgets,Direct Payments North Team,Other Agency and Contracted Services,57401,Direct Payments,07/12/2011,3301410289,8553.08,REDACTED PERSONAL DATA
http://statistics.data.gov.uk/id/local-authority/38,Oxfordshire County Council,SCS Pooled Budgets,Direct Payments North Team,Other Agency and Contracted Services,57401,Direct Payments,07/12/2011,3301410290,520.56,REDACTED PERSONAL DATA
http://statistics.data.gov.uk/id/local-authority/38,Oxfordshire County Council,SCS Pooled Budgets,Community Support Budget - Banbury,Other Agency and Contracted Services,57401,Direct Payments,07/12/2011,3301410291,629.36,REDACTED PERSONAL DATA
http://statistics.data.gov.uk/id/local-authority/38,Oxfordshire County Council,SCS Pooled Budgets,Direct Payments North Team,Other Agency and Contracted Services,57401,Direct Payments,07/12/2011,3301410296,7448.88,REDACTED PERSONAL DATA
http://statistics.data.gov.uk/id/local-authority/38,Oxfordshire County Council,SCS Pooled Budgets,Community Support Budget - Banbury,Other Agency and Contracted Services,57401,Direct Payments,07/12/2011,3301410297,1159.8,REDACTED PERSONAL DATA
http://statistics.data.gov.uk/id/local-authority/38,Oxfordshire County Council,SCS Pooled Budgets,Community Support Budget - Abingdon,Other Agency and Contracted Services,57401,Direct Payments,07/12/2011,3301410298,660,REDACTED PERSONAL DATA
http://statistics.data.gov.uk/id/local-authority/38,Oxfordshire County Council,SCS Pooled Budgets,Direct Payments South Team,Other Agency and Contracted Services,57401,Direct Payments,07/12/2011,3301410299,1494.44,REDACTED PERSONAL DATA
http://statistics.data.gov.uk/id/local-authority/38,Oxfordshire County Council,SCS Pooled Budgets,PD Comm Supp Purchasg Budget - Witney,Other Agency and Contracted Services,57401,Direct Payments,07/12/2011,3301410300,1212.96,REDACTED PERSONAL DATA
http://statistics.data.gov.uk/id/local-authority/38,Oxfordshire County Council,SCS Pooled Budgets,PD Comm Supp Budgt - Bicester/Kidlington,Other Agency and Contracted Services,57401,Direct Payments,07/12/2011,3301410301,1505.48,REDACTED PERSONAL DATA
http://statistics.data.gov.uk/id/local-authority/38,Oxfordshire County Council,SCS Pooled Budgets,PD Comm Supp Purchasg Budget - Abingdon,Other Agency and Contracted Services,57401,Direct Payments,07/12/2011,3301410302,714.6,REDACTED PERSONAL DATA
http://statistics.data.gov.uk/id/local-authority/38,Oxfordshire County Council,SCS Pooled Budgets,Direct Payments South Team,Other Agency and Contracted Services,57401,Direct Payments,07/12/2011,3301410370,1870.8,A4e Management Ltd Week 2
http://statistics.data.gov.uk/id/local-authority/38,Oxfordshire County Council,Education & Early Intervention,Supp Graduate Leader,"Equipment, Furniture and Materials",41100,Educational Supplies,07/12/2011,3301410445,2000,Bramleys Nurseries
http://statistics.data.gov.uk/id/local-authority/38,Oxfordshire County Council,Education & Early Intervention,Supp Graduate Leader,"Equipment, Furniture and Materials",41100,Educational Supplies,12/12/2011,3301410446,3028,Child First Bicester
http://statistics.data.gov.uk/id/local-authority/38,Oxfordshire County Council,Education & Early Intervention,Supp Graduate Leader,"Equipment, Furniture and Materials",41100,Educational Supplies,07/12/2011,3301410447,1700,Comper Foundation Stage School
http://statistics.data.gov.uk/id/local-authority/38,Oxfordshire County Council,SCS Pooled Budgets,Community Support Budget - Abingdon,Other Agency and Contracted Services,57401,Direct Payments,07/12/2011,3301410448,1928.14,A4e Management Ltd
http://statistics.data.gov.uk/id/local-authority/38,Oxfordshire County Council,SCS Pooled Budgets,PD Comm Supp Purchasg Budget - Abingdon,Other Agency and Contracted Services,57401,Direct Payments,07/12/2011,3301410449,716.26,A4e Management Ltd
http://statistics.data.gov.uk/id/local-authority/38,Oxfordshire County Council,Education & Early Intervention,Supp Graduate Leader,"Equipment, Furniture and Materials",41100,Educational Supplies,07/12/2011,3301410450,2000,Crowmarsh Pre-School
http://statistics.data.gov.uk/id/local-authority/38,Oxfordshire County Council,Education & Early Intervention,Supp Graduate Leader,"Equipment, Furniture and Materials",41100,Educational Supplies,07/12/2011,3301410451,2000,Abingdon Little Angels
http://statistics.data.gov.uk/id/local-authority/38,Oxfordshire County Council,Education & Early Intervention,Supp Graduate Leader,"Equipment, Furniture and Materials",41100,Educational Supplies,07/12/2011,3301410453,2000,NOMAD
http://statistics.data.gov.uk/id/local-authority/38,Oxfordshire County Council,Education & Early Intervention,Supp Graduate Leader,"Equipment, Furniture and Materials",41100,Educational Supplies,07/12/2011,3301410456,2000,Westfield House Nursery
http://statistics.data.gov.uk/id/local-authority/38,Oxfordshire County Council,Highways & Transport,Traffic Signals Principal Roads,Private Contractors,56202,Maint Costs 2nd Sche,13/12/2011,3301410480,695.8,SOUTHERN ELECTRIC CONTRACTING LTD
http://statistics.data.gov.uk/id/local-authority/38,Oxfordshire County Council,Property Asset Management,Witney Resource Centre,Energy Costs,23100,Electricity,07/12/2011,3301410867,526.66,Npower Ltd
http://statistics.data.gov.uk/id/local-authority/38,Oxfordshire County Council,Social & Community Services,"Older Pers Day Cntrs, Abingdon DC",Energy Costs,23100,Electricity,07/12/2011,3301410868,854.13,Npower Ltd
http://statistics.data.gov.uk/id/local-authority/38,Oxfordshire County Council,Education & Early Intervention,East St Ctr-Premises,Energy Costs,23100,Electricity,07/12/2011,3301410886,504.79,Npower Ltd
http://statistics.data.gov.uk/id/local-authority/38,Oxfordshire County Council,Highways & Transport,Bridges General,Energy Costs,23100,Electricity,07/12/2011,3301410888,626.83,Npower Ltd
http://statistics.data.gov.uk/id/local-authority/38,Oxfordshire County Council,Highways & Transport,Highways General,Energy Costs,23100,Electricity,07/12/2011,3301410897,428.92,Npower Ltd
http://statistics.data.gov.uk/id/local-authority/38,Oxfordshire County Council,Education & Early Intervention,Bicester Hub,Energy Costs,23100,Electricity,07/12/2011,3301410899,428.38,Npower Ltd
http://statistics.data.gov.uk/id/local-authority/38,Oxfordshire County Council,Highways & Transport,Highways General,Energy Costs,23100,Electricity,07/12/2011,3301410914,878.2,Npower Ltd
http://statistics.data.gov.uk/id/local-authority/38,Oxfordshire County Council,Transport,"N Area, Ox City, Prin Rd, Drainage",Energy Costs,23100,Electricity,07/12/2011,3301410915,444.01,Npower Ltd
http://statistics.data.gov.uk/id/local-authority/38,Oxfordshire County Council,Social & Community Services,Holton Site,Energy Costs,23100,Electricity,07/12/2011,3301410920,662.32,Npower Ltd
http://statistics.data.gov.uk/id/local-authority/38,Oxfordshire County Council,Quality & Compliance,The Harlow Centre,Energy Costs,23100,Electricity,07/12/2011,3301410941,3214.58,Npower Ltd
http://statistics.data.gov.uk/id/local-authority/38,Oxfordshire County Council,Highways & Transport,Highways General,Energy Costs,23100,Electricity,07/12/2011,3301410952,1591.27,Npower Ltd
http://statistics.data.gov.uk/id/local-authority/38,Oxfordshire County Council,Social & Community Services,Fletchers House Site,Energy Costs,23100,Electricity,07/12/2011,3301410957,916.56,Npower Ltd
http://statistics.data.gov.uk/id/local-authority/38,Oxfordshire County Council,Social & Community Services,Alert Contract,Balance Sheet General,B2030,Goods Received not Invoiced,07/12/2011,3301410963,822.23,Seniorlink Eldercare LLP
http://statistics.data.gov.uk/id/local-authority/38,Oxfordshire County Council,Education & Early Intervention,Berinsfield Area,Energy Costs,23100,Electricity,07/12/2011,3301410996,437.09,Npower Ltd
http://statistics.data.gov.uk/id/local-authority/38,Oxfordshire County Council,Property Asset Management,Corporate Properties,Energy Costs,23100,Electricity,07/12/2011,3301411008,502.85,Npower Ltd
http://statistics.data.gov.uk/id/local-authority/38,Oxfordshire County Council,Education & Early Intervention,Abbey Sch Swim Pool,Energy Costs,23100,Electricity,07/12/2011,3301411023,669.8,Npower Ltd
http://statistics.data.gov.uk/id/local-authority/38,Oxfordshire County Council,Education & Early Intervention,B/B-Leys Swim Pool,Energy Costs,23100,Electricity,07/12/2011,3301411037,570.78,Npower Ltd
http://statistics.data.gov.uk/id/local-authority/38,Oxfordshire County Council,Education & Early Intervention,Banbury,Energy Costs,23100,Electricity,07/12/2011,3301411077,984.26,Npower Ltd
http://statistics.data.gov.uk/id/local-authority/38,Oxfordshire County Council,Social & Community Services,"Admin, Calthorpe House",Energy Costs,23100,Electricity,07/12/2011,3301411097,646.32,Npower Ltd
http://statistics.data.gov.uk/id/local-authority/38,Oxfordshire County Council,Social & Community Services,Banbury Library,Energy Costs,23100,Electricity,07/12/2011,3301411099,455.21,Npower Ltd
http://statistics.data.gov.uk/id/local-authority/38,Oxfordshire County Council,Education & Early Intervention,Mid SENSS Area Co-ordinator,Energy Costs,23100,Electricity,07/12/2011,3301411102,880.54,Npower Ltd
http://statistics.data.gov.uk/id/local-authority/38,Oxfordshire County Council,Highways & Transport,Thornhill P & R,Energy Costs,23100,Electricity,07/12/2011,3301411103,768.84,Npower Ltd
http://statistics.data.gov.uk/id/local-authority/38,Oxfordshire County Council,Highways & Transport,Water Eaton P & R (North Oxford),Energy Costs,23100,Electricity,07/12/2011,3301411104,681.98,Npower Ltd
http://statistics.data.gov.uk/id/local-authority/38,Oxfordshire County Council,Property Asset Management,Wheatley Centre,Energy Costs,23100,Electricity,07/12/2011,3301411105,1146.23,Npower Ltd
http://statistics.data.gov.uk/id/local-authority/38,Oxfordshire County Council,Social & Community Services,Service Delivery Utilities,Energy Costs,23100,Electricity,07/12/2011,3301411106,706.77,Npower Ltd
http://statistics.data.gov.uk/id/local-authority/38,Oxfordshire County Council,Social & Community Services,The Mill,Energy Costs,23100,Electricity,07/12/2011,3301411107,1020.4,Npower Ltd
http://statistics.data.gov.uk/id/local-authority/38,Oxfordshire County Council,Education & Early Intervention,Kilvrough Manor,Energy Costs,23100,Electricity,07/12/2011,3301411152,477.21,Npower Ltd
http://statistics.data.gov.uk/id/local-authority/38,Oxfordshire County Council,Education & Early Intervention,Kilvrough Manor,Energy Costs,23100,Electricity,07/12/2011,3301411153,493.14,Npower Ltd
http://statistics.data.gov.uk/id/local-authority/38,Oxfordshire County Council,Social & Community Services,Service Delivery Utilities,Energy Costs,23100,Electricity,07/12/2011,3301411155,1522.9,Npower Ltd
http://statistics.data.gov.uk/id/local-authority/38,Oxfordshire County Council,Sustainable Development,Closed Landfill,Energy Costs,23100,Electricity,07/12/2011,3301411157,662.37,Npower Ltd
http://statistics.data.gov.uk/id/local-authority/38,Oxfordshire County Council,Property Asset Management,Surplus Property,Energy Costs,23100,Electricity,07/12/2011,3301411159,3273.05,Npower Ltd
http://statistics.data.gov.uk/id/local-authority/38,Oxfordshire County Council,Property Asset Management,Surplus Property,Energy Costs,23100,Electricity,07/12/2011,3301411160,1673.04,Npower Ltd
http://statistics.data.gov.uk/id/local-authority/38,Oxfordshire County Council,Oxfordshire Customer Services,ICT Operations,Energy Costs,23100,Electricity,07/12/2011,3301411165,1973.94,Npower Ltd
http://statistics.data.gov.uk/id/local-authority/38,Oxfordshire County Council,Property Asset Management,Cambridge Terrace,Energy Costs,23100,Electricity,07/12/2011,3301411167,763.02,Npower Ltd
http://statistics.data.gov.uk/id/local-authority/38,Oxfordshire County Council,Property Asset Management,Cambridge Terrace,Energy Costs,23100,Electricity,07/12/2011,3301411168,762.86,Npower Ltd
http://statistics.data.gov.uk/id/local-authority/38,Oxfordshire County Council,Property Asset Management,Cambridge Terrace,Energy Costs,23100,Electricity,07/12/2011,3301411169,788.27,Npower Ltd
http://statistics.data.gov.uk/id/local-authority/38,Oxfordshire County Council,Property Asset Management,Cambridge Terrace,Energy Costs,23100,Electricity,07/12/2011,3301411170,712.06,Npower Ltd
http://statistics.data.gov.uk/id/local-authority/38,Oxfordshire County Council,Property Asset Management,Cambridge Terrace,Energy Costs,23100,Electricity,07/12/2011,3301411171,697.71,Npower Ltd
http://statistics.data.gov.uk/id/local-authority/38,Oxfordshire County Council,Property Asset Management,Cambridge Terrace,Energy Costs,23100,Electricity,07/12/2011,3301411172,492.07,Npower Ltd
http://statistics.data.gov.uk/id/local-authority/38,Oxfordshire County Council,Property Asset Management,Cambridge Terrace,Energy Costs,23100,Electricity,07/12/2011,3301411173,508.51,Npower Ltd
http://statistics.data.gov.uk/id/local-authority/38,Oxfordshire County Council,Property Asset Management,Cambridge Terrace,Energy Costs,23100,Electricity,07/12/2011,3301411174,492.17,Npower Ltd
http://statistics.data.gov.uk/id/local-authority/38,Oxfordshire County Council,Property Asset Management,Cambridge Terrace,Energy Costs,23100,Electricity,07/12/2011,3301411175,508.43,Npower Ltd
http://statistics.data.gov.uk/id/local-authority/38,Oxfordshire County Council,Property Asset Management,Cambridge Terrace,Energy Costs,23100,Electricity,07/12/2011,3301411176,717.3,Npower Ltd
http://statistics.data.gov.uk/id/local-authority/38,Oxfordshire County Council,Social & Community Services,Westgate Site,Energy Costs,23100,Electricity,23/12/2011,3301411247,3829.46,Npower Ltd
http://statistics.data.gov.uk/id/local-authority/38,Oxfordshire County Council,Property Asset Management,County Hall,Energy Costs,23100,Electricity,23/12/2011,3301411248,7704.86,Npower Ltd
http://statistics.data.gov.uk/id/local-authority/38,Oxfordshire County Council,Social & Community Services,St. Luke's Church,Energy Costs,23100,Electricity,23/12/2011,3301411249,2764.76,Npower Ltd
http://statistics.data.gov.uk/id/local-authority/38,Oxfordshire County Council,Oxfordshire Customer Services,ICT Operations,Energy Costs,23100,Electricity,23/12/2011,3301411250,8043.25,Npower Ltd
http://statistics.data.gov.uk/id/local-authority/38,Oxfordshire County Council,Property Asset Management,Knights Court,Energy Costs,23100,Electricity,23/12/2011,3301411251,3938.66,Npower Ltd
http://statistics.data.gov.uk/id/local-authority/38,Oxfordshire County Council,Property Asset Management,Samuelson House,Energy Costs,23100,Electricity,23/12/2011,3301411252,3074.22,Npower Ltd
http://statistics.data.gov.uk/id/local-authority/38,Oxfordshire County Council,Property Asset Management,Electric Avenue,Energy Costs,23100,Electricity,23/12/2011,3301411253,782.95,Npower Ltd
http://statistics.data.gov.uk/id/local-authority/38,Oxfordshire County Council,Property Asset Management,Speedwell House,Energy Costs,23100,Electricity,23/12/2011,3301411254,2704.03,Npower Ltd
http://statistics.data.gov.uk/id/local-authority/38,Oxfordshire County Council,Social & Community Services,Westgate Site,Energy Costs,23100,Electricity,23/12/2011,3301411255,4192.65,Npower Ltd
http://statistics.data.gov.uk/id/local-authority/38,Oxfordshire County Council,Property Asset Management,County Hall,Energy Costs,23100,Electricity,23/12/2011,3301411256,7476.97,Npower Ltd
http://statistics.data.gov.uk/id/local-authority/38,Oxfordshire County Council,Social & Community Services,St. Luke's Church,Energy Costs,23100,Electricity,23/12/2011,3301411257,2291.35,Npower Ltd
http://statistics.data.gov.uk/id/local-authority/38,Oxfordshire County Council,Oxfordshire Customer Services,ICT Operations,Energy Costs,23100,Electricity,23/12/2011,3301411258,7791.08,Npower Ltd
http://statistics.data.gov.uk/id/local-authority/38,Oxfordshire County Council,Property Asset Management,Knights Court,Energy Costs,23100,Electricity,23/12/2011,3301411259,4668.53,Npower Ltd
http://statistics.data.gov.uk/id/local-authority/38,Oxfordshire County Council,Property Asset Management,Samuelson House,Energy Costs,23100,Electricity,23/12/2011,3301411260,3581.34,Npower Ltd
http://statistics.data.gov.uk/id/local-authority/38,Oxfordshire County Council,Property Asset Management,Electric Avenue,Energy Costs,23100,Electricity,23/12/2011,3301411261,869.64,Npower Ltd
http://statistics.data.gov.uk/id/local-authority/38,Oxfordshire County Council,Property Asset Management,Speedwell House,Energy Costs,23100,Electricity,23/12/2011,3301411262,2738.9,Npower Ltd
http://statistics.data.gov.uk/id/local-authority/38,Oxfordshire County Council,SCS Pooled Budgets,Direct Payments North Team,Other Agency and Contracted Services,57401,Direct Payments,08/12/2011,3301411264,1717,A4e Management Ltd
http://statistics.data.gov.uk/id/local-authority/38,Oxfordshire County Council,SCS Pooled Budgets,PD Comm Supp Purchasg Budget - Abingdon,Other Agency and Contracted Services,57401,Direct Payments,08/12/2011,3301411265,1750,A4e Management Ltd
http://statistics.data.gov.uk/id/local-authority/38,Oxfordshire County Council,Social & Community Services,Alert Contract,Other Agency and Contracted Services,57351,4 Weekly,08/12/2011,3301411332,27742.32,Community Voice Limited
http://statistics.data.gov.uk/id/local-authority/38,Oxfordshire County Council,Social & Community Services,Alert Contract,Other Agency and Contracted Services,57351,4 Weekly,08/12/2011,3301411333,73650.08,Community Voice Limited
http://statistics.data.gov.uk/id/local-authority/38,Oxfordshire County Council,Social & Community Services,Alert Contract,Other Agency and Contracted Services,57351,4 Weekly,08/12/2011,3301411563,21440,OXFORD CITIZENS HOUSING
http://statistics.data.gov.uk/id/local-authority/38,Oxfordshire County Council,Social & Community Services,Alert Contract,Other Agency and Contracted Services,57351,4 Weekly,08/12/2011,3301411564,21440,OXFORD CITIZENS HOUSING
http://statistics.data.gov.uk/id/local-authority/38,Oxfordshire County Council,Social & Community Services,Homeless People,Other Agency and Contracted Services,57351,4 Weekly,08/12/2011,3301411565,5494.84,OXFORD CITY COUNCIL
http://statistics.data.gov.uk/id/local-authority/38,Oxfordshire County Council,Social & Community Services,Alert Contract,Other Agency and Contracted Services,57351,4 Weekly,08/12/2011,3301411640,26731.32,VALE HOUSING ASSOCIATION
http://statistics.data.gov.uk/id/local-authority/38,Oxfordshire County Council,Education & Early Intervention,Zone 2 - East,Transport Related,33101,Home to School Trans,08/12/2011,3301411741,3035.76,Grayline Coaches
http://statistics.data.gov.uk/id/local-authority/38,Oxfordshire County Council,Education & Early Intervention,FE Special Trans,Transport Related,33101,Home to School Trans,08/12/2011,3301411742,1140,Chauffeurdriven.net
http://statistics.data.gov.uk/id/local-authority/38,Oxfordshire County Council,Education & Early Intervention,FE Special Trans,Transport Related,33300,Transport (General),08/12/2011,3301411743,570,Chauffeurdriven.net
http://statistics.data.gov.uk/id/local-authority/38,Oxfordshire County Council,Education & Early Intervention,Zone 3 - West,Transport Related,33101,Home to School Trans,08/12/2011,3301411744,988,Chauffeurdriven.net
http://statistics.data.gov.uk/id/local-authority/38,Oxfordshire County Council,Education & Early Intervention,Oxford Nth SEN Trans,Transport Related,33101,Home to School Trans,08/12/2011,3301411745,2014,Chauffeurdriven.net
http://statistics.data.gov.uk/id/local-authority/38,Oxfordshire County Council,Education & Early Intervention,Out of County,Transport Related,33101,Home to School Trans,08/12/2011,3301411746,1008,AD Taxi
http://statistics.data.gov.uk/id/local-authority/38,Oxfordshire County Council,Education & Early Intervention,Out of County,Transport Related,33101,Home to School Trans,08/12/2011,3301411747,2707.98,AD Taxi
http://statistics.data.gov.uk/id/local-authority/38,Oxfordshire County Council,Education & Early Intervention,FE Special Trans,Transport Related,33101,Home to School Trans,08/12/2011,3301411748,714,Compass Cars
http://statistics.data.gov.uk/id/local-authority/38,Oxfordshire County Council,SCS Pooled Budgets,LD CMPB - South Transport,Transport Related,34200,Client Journeys,08/12/2011,3301411749,714,Compass Cars
http://statistics.data.gov.uk/id/local-authority/38,Oxfordshire County Council,Education & Early Intervention,Zone 2 - East,Transport Related,33101,Home to School Trans,08/12/2011,3301411750,1028.5,L. Sarbatta
http://statistics.data.gov.uk/id/local-authority/38,Oxfordshire County Council,Education & Early Intervention,Zone 3 - West,Transport Related,33101,Home to School Trans,08/12/2011,3301411751,839.16,M & W Grantham
http://statistics.data.gov.uk/id/local-authority/38,Oxfordshire County Council,Education & Early Intervention,Zone 2 - East,Transport Related,33101,Home to School Trans,08/12/2011,3301411753,2415,Oxford Taxis Ltd
http://statistics.data.gov.uk/id/local-authority/38,Oxfordshire County Council,Education & Early Intervention,Zone 2 - East,Transport Related,33101,Home to School Trans,08/12/2011,3301411755,630,Oxford Taxis Ltd
http://statistics.data.gov.uk/id/local-authority/38,Oxfordshire County Council,Education & Early Intervention,Zone 5 - South,Transport Related,33101,Home to School Trans,08/12/2011,3301411757,1800,Oxford Taxis Ltd
http://statistics.data.gov.uk/id/local-authority/38,Oxfordshire County Council,Education & Early Intervention,Zone 1 - North,Transport Related,33101,Home to School Trans,08/12/2011,3301411758,1760,Get-a-Cab
http://statistics.data.gov.uk/id/local-authority/38,Oxfordshire County Council,Education & Early Intervention,Zone 1 - North,Transport Related,33101,Home to School Trans,08/12/2011,3301411759,1176,Phoenix Cars
http://statistics.data.gov.uk/id/local-authority/38,Oxfordshire County Council,Education & Early Intervention,Banbury SEN Trans,Transport Related,33101,Home to School Trans,08/12/2011,3301411760,524.58,Phoenix Cars
http://statistics.data.gov.uk/id/local-authority/38,Oxfordshire County Council,Education & Early Intervention,Zone 1 - North,Transport Related,33101,Home to School Trans,08/12/2011,3301411762,1638,Phoenix Cars
http://statistics.data.gov.uk/id/local-authority/38,Oxfordshire County Council,Education & Early Intervention,Zone 1 - North,Transport Related,33101,Home to School Trans,08/12/2011,3301411763,2249.06,Premier Cars
http://statistics.data.gov.uk/id/local-authority/38,Oxfordshire County Council,Education & Early Intervention,Zone 2 - East,Transport Related,33101,Home to School Trans,08/12/2011,3301411764,876.2,Premier Cars
http://statistics.data.gov.uk/id/local-authority/38,Oxfordshire County Council,Education & Early Intervention,Zone 2 - East,Transport Related,33101,Home to School Trans,08/12/2011,3301411765,1073.52,Premier Cars
http://statistics.data.gov.uk/id/local-authority/38,Oxfordshire County Council,Education & Early Intervention,Zone 2 - East,Transport Related,33101,Home to School Trans,08/12/2011,3301411766,1073.52,Premier Cars
http://statistics.data.gov.uk/id/local-authority/38,Oxfordshire County Council,Education & Early Intervention,Out of County,Transport Related,33101,Home to School Trans,08/12/2011,3301411769,2848.02,Crown Cabs Travel Ltd
http://statistics.data.gov.uk/id/local-authority/38,Oxfordshire County Council,Education & Early Intervention,Out of County,Transport Related,33300,Transport (General),08/12/2011,3301411770,657.3,Crown Cabs Travel Ltd
http://statistics.data.gov.uk/id/local-authority/38,Oxfordshire County Council,Education & Early Intervention,Temporary Transport,Transport Related,33101,Home to School Trans,08/12/2011,3301411772,660,Crown Cabs Travel Ltd
http://statistics.data.gov.uk/id/local-authority/38,Oxfordshire County Council,Education & Early Intervention,FE Special Trans,Transport Related,33101,Home to School Trans,08/12/2011,3301411774,747,Crown Cabs Travel Ltd
http://statistics.data.gov.uk/id/local-authority/38,Oxfordshire County Council,Education & Early Intervention,Out of County,Transport Related,33101,Home to School Trans,08/12/2011,3301411776,1050,Crown Cabs Travel Ltd
http://statistics.data.gov.uk/id/local-authority/38,Oxfordshire County Council,Education & Early Intervention,Zone 2 - East,Transport Related,33101,Home to School Trans,08/12/2011,3301411777,2739.45,Cherwell Valley Coaches
http://statistics.data.gov.uk/id/local-authority/38,Oxfordshire County Council,Education & Early Intervention,Zone 2 - East,Transport Related,33101,Home to School Trans,08/12/2011,3301411778,2739.45,Cherwell Valley Coaches
http://statistics.data.gov.uk/id/local-authority/38,Oxfordshire County Council,Education & Early Intervention,Oxford Nth SEN Trans,Transport Related,33101,Home to School Trans,08/12/2011,3301411780,760,Kit Mobility Taxis
http://statistics.data.gov.uk/id/local-authority/38,Oxfordshire County Council,Education & Early Intervention,Zone 1 - North,Transport Related,33101,Home to School Trans,08/12/2011,3301411782,841.94,Ambassador Taxis Ltd
http://statistics.data.gov.uk/id/local-authority/38,Oxfordshire County Council,Education & Early Intervention,Zone 1 - North,Transport Related,33101,Home to School Trans,08/12/2011,3301411783,1320,Ambassador Taxis Ltd
http://statistics.data.gov.uk/id/local-authority/38,Oxfordshire County Council,Education & Early Intervention,Oxford Nth SEN Trans,Transport Related,33101,Home to School Trans,08/12/2011,3301411784,4142.67,Ancil Services
http://statistics.data.gov.uk/id/local-authority/38,Oxfordshire County Council,Education & Early Intervention,Oxford Nth SEN Trans,Transport Related,33300,Transport (General),08/12/2011,3301411785,909.51,Ancil Services
http://statistics.data.gov.uk/id/local-authority/38,Oxfordshire County Council,Education & Early Intervention,Oxford Sth SEN Trans,Transport Related,33101,Home to School Trans,08/12/2011,3301411786,2042,Prestige Cars
http://statistics.data.gov.uk/id/local-authority/38,Oxfordshire County Council,Education & Early Intervention,Zone 1 - North,Transport Related,33101,Home to School Trans,08/12/2011,3301411787,675.22,Prestige Cars
http://statistics.data.gov.uk/id/local-authority/38,Oxfordshire County Council,Oxfordshire Customer Services,Recruitment & Retention,Expenses,46512,Criminal Records Bureau Charges Invoiced,14/12/2011,3301412386,30852,Criminal Records Bureau
http://statistics.data.gov.uk/id/local-authority/38,Oxfordshire County Council,Education & Early Intervention,Zone 4 - Vale,Transport Related,33101,Home to School Trans,09/12/2011,3301412558,3885,Tappins Coaches
http://statistics.data.gov.uk/id/local-authority/38,Oxfordshire County Council,Education & Early Intervention,Zone 4 - Vale,Transport Related,33101,Home to School Trans,09/12/2011,3301412559,3885,Tappins Coaches
http://statistics.data.gov.uk/id/local-authority/38,Oxfordshire County Council,Education & Early Intervention,Zone 4 - Vale,Transport Related,33101,Home to School Trans,09/12/2011,3301412560,3885,Tappins Coaches
http://statistics.data.gov.uk/id/local-authority/38,Oxfordshire County Council,Education & Early Intervention,Zone 4 - Vale,Transport Related,33101,Home to School Trans,09/12/2011,3301412561,4095,Tappins Coaches
http://statistics.data.gov.uk/id/local-authority/38,Oxfordshire County Council,Education & Early Intervention,S'Common SEN Trans,Transport Related,33101,Home to School Trans,09/12/2011,3301412562,1260,School Travel
http://statistics.data.gov.uk/id/local-authority/38,Oxfordshire County Council,Education & Early Intervention,S'Common SEN Trans,Transport Related,33300,Transport (General),09/12/2011,3301412563,420,School Travel
http://statistics.data.gov.uk/id/local-authority/38,Oxfordshire County Council,SCS Pooled Budgets,LD CMPB - South Transport,Transport Related,34200,Client Journeys,09/12/2011,3301412564,1323,School Travel
http://statistics.data.gov.uk/id/local-authority/38,Oxfordshire County Council,Education & Early Intervention,Out of County,Transport Related,33101,Home to School Trans,09/12/2011,3301412565,1100,School Travel
http://statistics.data.gov.uk/id/local-authority/38,Oxfordshire County Council,Education & Early Intervention,Out of County,Transport Related,33300,Transport (General),09/12/2011,3301412566,550,School Travel
http://statistics.data.gov.uk/id/local-authority/38,Oxfordshire County Council,Education & Early Intervention,FE Special Trans,Transport Related,33101,Home to School Trans,09/12/2011,3301412567,1190,School Travel
http://statistics.data.gov.uk/id/local-authority/38,Oxfordshire County Council,Education & Early Intervention,Zone 4 - Vale,Transport Related,33101,Home to School Trans,09/12/2011,3301412568,440,Abingdon Taxis
http://statistics.data.gov.uk/id/local-authority/38,Oxfordshire County Council,Education & Early Intervention,Oxford Nth SEN Trans,Transport Related,33101,Home to School Trans,09/12/2011,3301412569,1930.28,Abingdon Taxis
http://statistics.data.gov.uk/id/local-authority/38,Oxfordshire County Council,Education & Early Intervention,Oxford Nth SEN Trans,Transport Related,33300,Transport (General),09/12/2011,3301412570,531.74,Abingdon Taxis
http://statistics.data.gov.uk/id/local-authority/38,Oxfordshire County Council,Education & Early Intervention,Zone 4 - Vale,Transport Related,33101,Home to School Trans,09/12/2011,3301412571,630,Abingdon Taxis
http://statistics.data.gov.uk/id/local-authority/38,Oxfordshire County Council,Education & Early Intervention,Wantage SEN Trans,Transport Related,33101,Home to School Trans,09/12/2011,3301412572,1314.39,Grove Cabs
http://statistics.data.gov.uk/id/local-authority/38,Oxfordshire County Council,Education & Early Intervention,Wantage SEN Trans,Transport Related,33300,Transport (General),09/12/2011,3301412573,438.06,Grove Cabs
http://statistics.data.gov.uk/id/local-authority/38,Oxfordshire County Council,Education & Early Intervention,Wantage SEN Trans,Transport Related,33101,Home to School Trans,09/12/2011,3301412574,2172.45,Grove Cabs
http://statistics.data.gov.uk/id/local-authority/38,Oxfordshire County Council,Education & Early Intervention,Wantage SEN Trans,Transport Related,33300,Transport (General),09/12/2011,3301412575,438.06,Grove Cabs
http://statistics.data.gov.uk/id/local-authority/38,Oxfordshire County Council,Education & Early Intervention,FE Special Trans,Transport Related,33101,Home to School Trans,09/12/2011,3301412576,1470,Grove Cabs
http://statistics.data.gov.uk/id/local-authority/38,Oxfordshire County Council,SCS Pooled Budgets,LD CMPB - South Transport,Transport Related,34200,Client Journeys,09/12/2011,3301412577,630,Grove Cabs
http://statistics.data.gov.uk/id/local-authority/38,Oxfordshire County Council,Education & Early Intervention,Wantage SEN Trans,Transport Related,33101,Home to School Trans,09/12/2011,3301412580,1062,Grove Cabs
http://statistics.data.gov.uk/id/local-authority/38,Oxfordshire County Council,Education & Early Intervention,Wantage SEN Trans,Transport Related,33300,Transport (General),09/12/2011,3301412581,420,Grove Cabs
http://statistics.data.gov.uk/id/local-authority/38,Oxfordshire County Council,Education & Early Intervention,Zone 4 - Vale,Transport Related,33101,Home to School Trans,09/12/2011,3301412588,3885,Tappins Coaches
http://statistics.data.gov.uk/id/local-authority/38,Oxfordshire County Council,Education & Early Intervention,Zone 4 - Vale,Transport Related,33101,Home to School Trans,09/12/2011,3301412589,3885,Tappins Coaches
http://statistics.data.gov.uk/id/local-authority/38,Oxfordshire County Council,Education & Early Intervention,Zone 4 - Vale,Transport Related,33101,Home to School Trans,09/12/2011,3301412590,3885,Tappins Coaches
http://statistics.data.gov.uk/id/local-authority/38,Oxfordshire County Council,Education & Early Intervention,Zone 4 - Vale,Transport Related,33101,Home to School Trans,09/12/2011,3301412591,3885,Tappins Coaches
http://statistics.data.gov.uk/id/local-authority/38,Oxfordshire County Council,Education & Early Intervention,Zone 4 - Vale,Transport Related,33101,Home to School Trans,09/12/2011,3301412592,3885,Tappins Coaches
http://statistics.data.gov.uk/id/local-authority/38,Oxfordshire County Council,Education & Early Intervention,Zone 5 - South,Transport Related,33101,Home to School Trans,09/12/2011,3301412593,4189.68,Tappins Coaches
http://statistics.data.gov.uk/id/local-authority/38,Oxfordshire County Council,Education & Early Intervention,Zone 5 - South,Transport Related,33101,Home to School Trans,09/12/2011,3301412594,4309.36,Tappins Coaches
http://statistics.data.gov.uk/id/local-authority/38,Oxfordshire County Council,Education & Early Intervention,Zone 5 - South,Transport Related,33101,Home to School Trans,09/12/2011,3301412595,4227.72,Tappins Coaches
http://statistics.data.gov.uk/id/local-authority/38,Oxfordshire County Council,Education & Early Intervention,Zone 5 - South,Transport Related,33101,Home to School Trans,09/12/2011,3301412596,4227.72,Tappins Coaches
http://statistics.data.gov.uk/id/local-authority/38,Oxfordshire County Council,Education & Early Intervention,Zone 5 - South,Transport Related,33101,Home to School Trans,09/12/2011,3301412597,4227.72,Tappins Coaches
http://statistics.data.gov.uk/id/local-authority/38,Oxfordshire County Council,Education & Early Intervention,Zone 2 - East,Transport Related,33101,Home to School Trans,09/12/2011,3301412598,1905.96,Charlton-On-Otmoor Services
http://statistics.data.gov.uk/id/local-authority/38,Oxfordshire County Council,Education & Early Intervention,Zone 2 - East,Transport Related,33101,Home to School Trans,09/12/2011,3301412599,2688,Charlton-On-Otmoor Services
http://statistics.data.gov.uk/id/local-authority/38,Oxfordshire County Council,Education & Early Intervention,Zone 2 - East,Transport Related,33101,Home to School Trans,09/12/2011,3301412600,3045,Charlton-On-Otmoor Services
http://statistics.data.gov.uk/id/local-authority/38,Oxfordshire County Council,Education & Early Intervention,Zone 2 - East,Transport Related,33101,Home to School Trans,09/12/2011,3301412601,2772,Charlton-On-Otmoor Services
http://statistics.data.gov.uk/id/local-authority/38,Oxfordshire County Council,Education & Early Intervention,Zone 2 - East,Transport Related,33101,Home to School Trans,09/12/2011,3301412602,2816,Charlton-On-Otmoor Services
http://statistics.data.gov.uk/id/local-authority/38,Oxfordshire County Council,Education & Early Intervention,Zone 5 - South,Transport Related,33101,Home to School Trans,09/12/2011,3301412603,3377.85,Charlton-On-Otmoor Services
http://statistics.data.gov.uk/id/local-authority/38,Oxfordshire County Council,Education & Early Intervention,Zone 5 - South,Transport Related,33101,Home to School Trans,09/12/2011,3301412604,2968.68,Charlton-On-Otmoor Services
http://statistics.data.gov.uk/id/local-authority/38,Oxfordshire County Council,Education & Early Intervention,Zone 5 - South,Transport Related,33101,Home to School Trans,09/12/2011,3301412605,2968.68,Charlton-On-Otmoor Services
http://statistics.data.gov.uk/id/local-authority/38,Oxfordshire County Council,Education & Early Intervention,Zone 5 - South,Transport Related,33101,Home to School Trans,09/12/2011,3301412606,3377.85,Charlton-On-Otmoor Services
http://statistics.data.gov.uk/id/local-authority/38,Oxfordshire County Council,Education & Early Intervention,Zone 5 - South,Transport Related,33101,Home to School Trans,09/12/2011,3301412607,3498.39,Charlton-On-Otmoor Services
http://statistics.data.gov.uk/id/local-authority/38,Oxfordshire County Council,Education & Early Intervention,Zone 2 - East,Transport Related,33101,Home to School Trans,09/12/2011,3301412608,2716.56,Charlton-On-Otmoor Services
http://statistics.data.gov.uk/id/local-authority/38,Oxfordshire County Council,Education & Early Intervention,Zone 2 - East,Transport Related,33101,Home to School Trans,09/12/2011,3301412609,2716.56,Charlton-On-Otmoor Services
http://statistics.data.gov.uk/id/local-authority/38,Oxfordshire County Council,Education & Early Intervention,Zone 2 - East,Transport Related,33101,Home to School Trans,09/12/2011,3301412610,2065.58,Charlton-On-Otmoor Services
http://statistics.data.gov.uk/id/local-authority/38,Oxfordshire County Council,Children's Social Care,Transport costs,Transport Related,33300,Transport (General),09/12/2011,3301412769,1000,Black and White Taxis
http://statistics.data.gov.uk/id/local-authority/38,Oxfordshire County Council,SCS Pooled Budgets,LD Team budget (CMPB) - City,Transport Related,33300,Transport (General),09/12/2011,3301412771,2526.08,D and A Nichols
http://statistics.data.gov.uk/id/local-authority/38,Oxfordshire County Council,SCS Pooled Budgets,LD Team budget (CMPB) South,Transport Related,33300,Transport (General),09/12/2011,3301412782,467.36,Henley Taxis Ltd
http://statistics.data.gov.uk/id/local-authority/38,Oxfordshire County Council,Children's Social Care,Transport costs,Transport Related,33300,Transport (General),09/12/2011,3301412785,1160,Browns Taxis
http://statistics.data.gov.uk/id/local-authority/38,Oxfordshire County Council,Children's Social Care,Transport costs,Transport Related,33101,Home to School Trans,09/12/2011,3301412788,682.5,Evenlode Taxis
http://statistics.data.gov.uk/id/local-authority/38,Oxfordshire County Council,Children's Social Care,Transport costs,Transport Related,33101,Home to School Trans,09/12/2011,3301412792,740,Harolds Cars
http://statistics.data.gov.uk/id/local-authority/38,Oxfordshire County Council,SCS Pooled Budgets,LD Team budget (CMPB) South,Transport Related,33300,Transport (General),09/12/2011,3301412794,484.92,Pryors Cars
http://statistics.data.gov.uk/id/local-authority/38,Oxfordshire County Council,Education & Early Intervention,FE Special Trans,Transport Related,33101,Home to School Trans,09/12/2011,3301412798,1051.68,Pryors Cars
http://statistics.data.gov.uk/id/local-authority/38,Oxfordshire County Council,Education & Early Intervention,Oxford Sth SEN Trans,Transport Related,33101,Home to School Trans,09/12/2011,3301412799,1980,Pryors Cars
http://statistics.data.gov.uk/id/local-authority/38,Oxfordshire County Council,Children's Social Care,Transport costs,Transport Related,33101,Home to School Trans,09/12/2011,3301412800,1891.85,Pryors Cars
http://statistics.data.gov.uk/id/local-authority/38,Oxfordshire County Council,Social & Community Services,"LD Day Services, Abingdon Day Servs",Transport Related,33103,Transport to Centres,09/12/2011,3301412801,502.88,Pryors Cars
http://statistics.data.gov.uk/id/local-authority/38,Oxfordshire County Council,SCS Pooled Budgets,LD Team budget (CMPB) South,Transport Related,33300,Transport (General),09/12/2011,3301412806,2357.86,Pryors Cars
http://statistics.data.gov.uk/id/local-authority/38,Oxfordshire County Council,SCS Pooled Budgets,LD CMPB - South Transport,Transport Related,34200,Client Journeys,09/12/2011,3301412807,1844.72,Pryors Cars
http://statistics.data.gov.uk/id/local-authority/38,Oxfordshire County Council,Children's Social Care,Transport costs,Transport Related,33101,Home to School Trans,09/12/2011,3301412825,2463,Ash Taxis
http://statistics.data.gov.uk/id/local-authority/38,Oxfordshire County Council,SCS Pooled Budgets,LD Team budget (CMPB) South,Transport Related,33300,Transport (General),09/12/2011,3301412827,650,C S Comley
http://statistics.data.gov.uk/id/local-authority/38,Oxfordshire County Council,Social & Community Services,Adult Social Care Locality Team - Vale,Transport Related,33300,Transport (General),09/12/2011,3301412833,485.26,V Cars Ltd
http://statistics.data.gov.uk/id/local-authority/38,Oxfordshire County Council,Children's Social Care,Transport costs,Transport Related,33101,Home to School Trans,09/12/2011,3301412834,688,V Cars Ltd
http://statistics.data.gov.uk/id/local-authority/38,Oxfordshire County Council,Children's Social Care,Agency Residential - Disabilities,Other Agency and Contracted Services,57801,Independent Fostering Agencies,23/12/2011,3301412876,5580,Barnardo Services Ltd
http://statistics.data.gov.uk/id/local-authority/38,Oxfordshire County Council,Social & Community Services,Contribution to Pool,Voluntary Associations,55405,Contribution to External Health Pooled Budgets,12/12/2011,3301413116,458735.75,Oxfordshire Primary Care Trust 5QE
http://statistics.data.gov.uk/id/local-authority/38,Oxfordshire County Council,Social & Community Services,Contribution to MH OMHT Pool,Voluntary Associations,55405,Contribution to External Health Pooled Budgets,12/12/2011,3301413116,512042.5,Oxfordshire Primary Care Trust 5QE
http://statistics.data.gov.uk/id/local-authority/38,Oxfordshire County Council,Social & Community Services,Residential Purchasing County,Voluntary Associations,55405,Contribution to External Health Pooled Budgets,12/12/2011,3301413116,324908.75,Oxfordshire Primary Care Trust 5QE
http://statistics.data.gov.uk/id/local-authority/38,Oxfordshire County Council,Social & Community Services,Supported Living,Voluntary Associations,55405,Contribution to External Health Pooled Budgets,12/12/2011,3301413116,290265.25,Oxfordshire Primary Care Trust 5QE
http://statistics.data.gov.uk/id/local-authority/38,Oxfordshire County Council,Social & Community Services,Residential Purchasing Carers Grant,Voluntary Associations,55405,Contribution to External Health Pooled Budgets,12/12/2011,3301413116,22500,Oxfordshire Primary Care Trust 5QE
http://statistics.data.gov.uk/id/local-authority/38,Oxfordshire County Council,Social & Community Services,Residential Purchasing Carers Grant,Other Agency and Contracted Services,57401,Direct Payments,12/12/2011,3301413183,600,REDACTED PERSONAL DATA
http://statistics.data.gov.uk/id/local-authority/38,Oxfordshire County Council,SCS Pooled Budgets,Life Of Your Own Grant City,Other Agency and Contracted Services,57401,Direct Payments,12/12/2011,3301413184,750,REDACTED PERSONAL DATA
http://statistics.data.gov.uk/id/local-authority/38,Oxfordshire County Council,SCS Pooled Budgets,Carers Break / Respite Project,Other Agency and Contracted Services,57401,Direct Payments,12/12/2011,3301413185,750,REDACTED PERSONAL DATA
http://statistics.data.gov.uk/id/local-authority/38,Oxfordshire County Council,SCS Pooled Budgets,Life Of Your Own Grant Vale,Other Agency and Contracted Services,57401,Direct Payments,12/12/2011,3301413186,600,REDACTED PERSONAL DATA
http://statistics.data.gov.uk/id/local-authority/38,Oxfordshire County Council,SCS Pooled Budgets,Carers Break / Respite Project,Other Agency and Contracted Services,57401,Direct Payments,12/12/2011,3301413187,750,REDACTED PERSONAL DATA
http://statistics.data.gov.uk/id/local-authority/38,Oxfordshire County Council,SCS Pooled Budgets,Life Of Your Own Grant Cherwell,Other Agency and Contracted Services,57401,Direct Payments,12/12/2011,3301413188,600,REDACTED PERSONAL DATA
http://statistics.data.gov.uk/id/local-authority/38,Oxfordshire County Council,SCS Pooled Budgets,Life Of Your Own Grant South,Other Agency and Contracted Services,57401,Direct Payments,12/12/2011,3301413190,600,REDACTED PERSONAL DATA
http://statistics.data.gov.uk/id/local-authority/38,Oxfordshire County Council,SCS Pooled Budgets,Carers Break / Respite Project,Other Agency and Contracted Services,57401,Direct Payments,12/12/2011,3301413191,750,REDACTED PERSONAL DATA
http://statistics.data.gov.uk/id/local-authority/38,Oxfordshire County Council,SCS Pooled Budgets,Carers Break / Respite Project,Other Agency and Contracted Services,57401,Direct Payments,12/12/2011,3301413193,750,REDACTED PERSONAL DATA
http://statistics.data.gov.uk/id/local-authority/38,Oxfordshire County Council,SCS Pooled Budgets,Carers Break / Respite Project,Other Agency and Contracted Services,57401,Direct Payments,12/12/2011,3301413194,750,REDACTED PERSONAL DATA
http://statistics.data.gov.uk/id/local-authority/38,Oxfordshire County Council,SCS Pooled Budgets,Life Of Your Own Grant City,Other Agency and Contracted Services,57401,Direct Payments,12/12/2011,3301413195,600,REDACTED PERSONAL DATA
http://statistics.data.gov.uk/id/local-authority/38,Oxfordshire County Council,SCS Pooled Budgets,Carers Break / Respite Project,Other Agency and Contracted Services,57401,Direct Payments,12/12/2011,3301413196,750,REDACTED PERSONAL DATA
http://statistics.data.gov.uk/id/local-authority/38,Oxfordshire County Council,SCS Pooled Budgets,Life Of Your Own Grant Vale,Other Agency and Contracted Services,57401,Direct Payments,12/12/2011,3301413198,600,REDACTED PERSONAL DATA
http://statistics.data.gov.uk/id/local-authority/38,Oxfordshire County Council,SCS Pooled Budgets,Carers Break / Respite Project,Other Agency and Contracted Services,57401,Direct Payments,12/12/2011,3301413199,750,REDACTED PERSONAL DATA
http://statistics.data.gov.uk/id/local-authority/38,Oxfordshire County Council,SCS Pooled Budgets,Life Of Your Own Grant West,Other Agency and Contracted Services,57401,Direct Payments,12/12/2011,3301413201,600,REDACTED PERSONAL DATA
http://statistics.data.gov.uk/id/local-authority/38,Oxfordshire County Council,SCS Pooled Budgets,Carers Break / Respite Project,Other Agency and Contracted Services,57401,Direct Payments,12/12/2011,3301413202,750,REDACTED PERSONAL DATA
http://statistics.data.gov.uk/id/local-authority/38,Oxfordshire County Council,Social & Community Services,PCT Carers GP Breaks Funding,Other Agency and Contracted Services,57401,Direct Payments,12/12/2011,3301413203,750,REDACTED PERSONAL DATA
http://statistics.data.gov.uk/id/local-authority/38,Oxfordshire County Council,SCS Pooled Budgets,Carers Break / Respite Project,Other Agency and Contracted Services,57401,Direct Payments,12/12/2011,3301413204,750,REDACTED PERSONAL DATA
http://statistics.data.gov.uk/id/local-authority/38,Oxfordshire County Council,SCS Pooled Budgets,Carers Break / Respite Project,Other Agency and Contracted Services,57401,Direct Payments,12/12/2011,3301413205,750,REDACTED PERSONAL DATA
http://statistics.data.gov.uk/id/local-authority/38,Oxfordshire County Council,SCS Pooled Budgets,Life Of Your Own Grant City,Other Agency and Contracted Services,57401,Direct Payments,12/12/2011,3301413206,600,REDACTED PERSONAL DATA
http://statistics.data.gov.uk/id/local-authority/38,Oxfordshire County Council,Social & Community Services,PCT Carers GP Breaks Funding,Other Agency and Contracted Services,57401,Direct Payments,12/12/2011,3301413207,750,REDACTED PERSONAL DATA
http://statistics.data.gov.uk/id/local-authority/38,Oxfordshire County Council,SCS Pooled Budgets,Carers Break / Respite Project,Other Agency and Contracted Services,57401,Direct Payments,12/12/2011,3301413208,750,REDACTED PERSONAL DATA
http://statistics.data.gov.uk/id/local-authority/38,Oxfordshire County Council,Education & Early Intervention,Zone 2 - East,Transport Related,33101,Home to School Trans,12/12/2011,3301413241,2310,Heyfordian Travel Ltd
http://statistics.data.gov.uk/id/local-authority/38,Oxfordshire County Council,Education & Early Intervention,Zone 2 - East,Transport Related,33101,Home to School Trans,12/12/2011,3301413242,2524.5,Heyfordian Travel Ltd
http://statistics.data.gov.uk/id/local-authority/38,Oxfordshire County Council,Education & Early Intervention,Zone 5 - South,Transport Related,33101,Home to School Trans,12/12/2011,3301413243,4343.01,Heyfordian Travel Ltd
http://statistics.data.gov.uk/id/local-authority/38,Oxfordshire County Council,Education & Early Intervention,Zone 5 - South,Transport Related,33101,Home to School Trans,12/12/2011,3301413244,4343.01,Heyfordian Travel Ltd
http://statistics.data.gov.uk/id/local-authority/38,Oxfordshire County Council,Education & Early Intervention,Zone 5 - South,Transport Related,33101,Home to School Trans,12/12/2011,3301413245,4343.01,Heyfordian Travel Ltd
http://statistics.data.gov.uk/id/local-authority/38,Oxfordshire County Council,Education & Early Intervention,Zone 5 - South,Transport Related,33101,Home to School Trans,12/12/2011,3301413246,4343.01,Heyfordian Travel Ltd
http://statistics.data.gov.uk/id/local-authority/38,Oxfordshire County Council,Education & Early Intervention,Zone 5 - South,Transport Related,33101,Home to School Trans,12/12/2011,3301413247,4070,Heyfordian Travel Ltd
http://statistics.data.gov.uk/id/local-authority/38,Oxfordshire County Council,Education & Early Intervention,Zone 5 - South,Transport Related,33101,Home to School Trans,12/12/2011,3301413248,4301.88,Heyfordian Travel Ltd
http://statistics.data.gov.uk/id/local-authority/38,Oxfordshire County Council,Education & Early Intervention,Zone 5 - South,Transport Related,33101,Home to School Trans,12/12/2011,3301413249,5307.96,Heyfordian Travel Ltd
http://statistics.data.gov.uk/id/local-authority/38,Oxfordshire County Council,Education & Early Intervention,Zone 2 - East,Transport Related,33101,Home to School Trans,12/12/2011,3301413250,2738.4,Heyfordian Travel Ltd
http://statistics.data.gov.uk/id/local-authority/38,Oxfordshire County Council,Education & Early Intervention,Zone 5 - South,Transport Related,33101,Home to School Trans,12/12/2011,3301413251,3428.04,Heyfordian Travel Ltd
http://statistics.data.gov.uk/id/local-authority/38,Oxfordshire County Council,Education & Early Intervention,Zone 5 - South,Transport Related,33101,Home to School Trans,12/12/2011,3301413252,4220.58,Heyfordian Travel Ltd
http://statistics.data.gov.uk/id/local-authority/38,Oxfordshire County Council,Education & Early Intervention,Zone 1 - North,Transport Related,33101,Home to School Trans,12/12/2011,3301413253,2879.1,Heyfordian Travel Ltd
http://statistics.data.gov.uk/id/local-authority/38,Oxfordshire County Council,Education & Early Intervention,Zone 1 - North,Transport Related,33101,Home to School Trans,12/12/2011,3301413254,2602.11,Heyfordian Travel Ltd
http://statistics.data.gov.uk/id/local-authority/38,Oxfordshire County Council,Education & Early Intervention,Zone 1 - North,Transport Related,33101,Home to School Trans,12/12/2011,3301413255,2602.11,Heyfordian Travel Ltd
http://statistics.data.gov.uk/id/local-authority/38,Oxfordshire County Council,Education & Early Intervention,Zone 1 - North,Transport Related,33101,Home to School Trans,12/12/2011,3301413256,2602.11,Heyfordian Travel Ltd
http://statistics.data.gov.uk/id/local-authority/38,Oxfordshire County Council,Education & Early Intervention,Zone 1 - North,Transport Related,33101,Home to School Trans,12/12/2011,3301413257,2602.11,Heyfordian Travel Ltd
http://statistics.data.gov.uk/id/local-authority/38,Oxfordshire County Council,Education & Early Intervention,Zone 1 - North,Transport Related,33101,Home to School Trans,12/12/2011,3301413258,2602.11,Heyfordian Travel Ltd
http://statistics.data.gov.uk/id/local-authority/38,Oxfordshire County Council,Education & Early Intervention,Zone 1 - North,Transport Related,33101,Home to School Trans,12/12/2011,3301413259,2823.66,Heyfordian Travel Ltd
http://statistics.data.gov.uk/id/local-authority/38,Oxfordshire County Council,Education & Early Intervention,Zone 1 - North,Transport Related,33101,Home to School Trans,12/12/2011,3301413260,2958.12,Heyfordian Travel Ltd
http://statistics.data.gov.uk/id/local-authority/38,Oxfordshire County Council,Education & Early Intervention,Zone 1 - North,Transport Related,33101,Home to School Trans,12/12/2011,3301413261,2602.11,Heyfordian Travel Ltd
http://statistics.data.gov.uk/id/local-authority/38,Oxfordshire County Council,Education & Early Intervention,Zone 1 - North,Transport Related,33101,Home to School Trans,12/12/2011,3301413262,5336.1,Heyfordian Travel Ltd
http://statistics.data.gov.uk/id/local-authority/38,Oxfordshire County Council,Education & Early Intervention,Zone 1 - North,Transport Related,33101,Home to School Trans,12/12/2011,3301413263,2823.66,Heyfordian Travel Ltd
http://statistics.data.gov.uk/id/local-authority/38,Oxfordshire County Council,Education & Early Intervention,Zone 1 - North,Transport Related,33101,Home to School Trans,12/12/2011,3301413264,2958.12,Heyfordian Travel Ltd
http://statistics.data.gov.uk/id/local-authority/38,Oxfordshire County Council,Education & Early Intervention,Zone 1 - North,Transport Related,33101,Home to School Trans,12/12/2011,3301413265,5204.22,Heyfordian Travel Ltd
http://statistics.data.gov.uk/id/local-authority/38,Oxfordshire County Council,Education & Early Intervention,Zone 1 - North,Transport Related,33101,Home to School Trans,12/12/2011,3301413266,4593.82,Heyfordian Travel Ltd
http://statistics.data.gov.uk/id/local-authority/38,Oxfordshire County Council,Education & Early Intervention,Zone 1 - North,Transport Related,33101,Home to School Trans,12/12/2011,3301413267,4361.72,Heyfordian Travel Ltd
http://statistics.data.gov.uk/id/local-authority/38,Oxfordshire County Council,Education & Early Intervention,Zone 1 - North,Transport Related,33101,Home to School Trans,12/12/2011,3301413268,5452.04,Heyfordian Travel Ltd
http://statistics.data.gov.uk/id/local-authority/38,Oxfordshire County Council,Education & Early Intervention,Zone 1 - North,Transport Related,33101,Home to School Trans,12/12/2011,3301413269,5846.72,Heyfordian Travel Ltd
http://statistics.data.gov.uk/id/local-authority/38,Oxfordshire County Council,Education & Early Intervention,Zone 1 - North,Transport Related,33101,Home to School Trans,12/12/2011,3301413270,3941.91,Heyfordian Travel Ltd
http://statistics.data.gov.uk/id/local-authority/38,Oxfordshire County Council,Education & Early Intervention,Zone 1 - North,Transport Related,33101,Home to School Trans,12/12/2011,3301413271,4649.82,Heyfordian Travel Ltd
http://statistics.data.gov.uk/id/local-authority/38,Oxfordshire County Council,Education & Early Intervention,Zone 2 - East,Transport Related,33101,Home to School Trans,12/12/2011,3301413272,2086.4,Heyfordian Travel Ltd
http://statistics.data.gov.uk/id/local-authority/38,Oxfordshire County Council,Education & Early Intervention,Zone 4 - Vale,Transport Related,33101,Home to School Trans,12/12/2011,3301413273,3850,Heyfordian Travel Ltd
http://statistics.data.gov.uk/id/local-authority/38,Oxfordshire County Council,Education & Early Intervention,Zone 5 - South,Transport Related,33101,Home to School Trans,12/12/2011,3301413274,4840,Heyfordian Travel Ltd
http://statistics.data.gov.uk/id/local-authority/38,Oxfordshire County Council,Education & Early Intervention,S'Common SEN Trans,Transport Related,33101,Home to School Trans,12/12/2011,3301413276,2176.9,Transpiration Limited
http://statistics.data.gov.uk/id/local-authority/38,Oxfordshire County Council,Education & Early Intervention,S'Common SEN Trans,Transport Related,33101,Home to School Trans,12/12/2011,3301413277,695.64,Transpiration Limited
http://statistics.data.gov.uk/id/local-authority/38,Oxfordshire County Council,Education & Early Intervention,Oxford Sth SEN Trans,Transport Related,33101,Home to School Trans,12/12/2011,3301413279,2178.2,Transpiration Limited
http://statistics.data.gov.uk/id/local-authority/38,Oxfordshire County Council,Education & Early Intervention,S'Common SEN Trans,Transport Related,33101,Home to School Trans,12/12/2011,3301413280,2660.02,Transpiration Limited
http://statistics.data.gov.uk/id/local-authority/38,Oxfordshire County Council,Education & Early Intervention,Oxford Sth SEN Trans,Transport Related,33101,Home to School Trans,12/12/2011,3301413281,3068.1,Transpiration Limited
http://statistics.data.gov.uk/id/local-authority/38,Oxfordshire County Council,Education & Early Intervention,Oxford Sth SEN Trans,Transport Related,33300,Transport (General),12/12/2011,3301413282,838.53,Transpiration Limited
http://statistics.data.gov.uk/id/local-authority/38,Oxfordshire County Council,Education & Early Intervention,FE Special Trans,Transport Related,33101,Home to School Trans,12/12/2011,3301413284,560.91,Transpiration Limited
http://statistics.data.gov.uk/id/local-authority/38,Oxfordshire County Council,SCS Pooled Budgets,LD CMPB - South Transport,Transport Related,34200,Client Journeys,12/12/2011,3301413285,3009.09,Transpiration Limited
http://statistics.data.gov.uk/id/local-authority/38,Oxfordshire County Council,Education & Early Intervention,FE Special Trans,Transport Related,33101,Home to School Trans,12/12/2011,3301413286,1965.39,Transpiration Limited
http://statistics.data.gov.uk/id/local-authority/38,Oxfordshire County Council,SCS Pooled Budgets,LD CMPB - South Transport,Transport Related,34200,Client Journeys,12/12/2011,3301413287,911.61,Transpiration Limited
http://statistics.data.gov.uk/id/local-authority/38,Oxfordshire County Council,Education & Early Intervention,FE Special Trans,Transport Related,33300,Transport (General),12/12/2011,3301413288,819,Transpiration Limited
http://statistics.data.gov.uk/id/local-authority/38,Oxfordshire County Council,Education & Early Intervention,FE Special Trans,Transport Related,33101,Home to School Trans,12/12/2011,3301413289,3213,Transpiration Limited
http://statistics.data.gov.uk/id/local-authority/38,Oxfordshire County Council,Education & Early Intervention,FE Special Trans,Transport Related,33300,Transport (General),12/12/2011,3301413290,819,Transpiration Limited
http://statistics.data.gov.uk/id/local-authority/38,Oxfordshire County Council,Education & Early Intervention,Oxford Sth SEN Trans,Transport Related,33101,Home to School Trans,12/12/2011,3301413291,2520,Transpiration Limited
http://statistics.data.gov.uk/id/local-authority/38,Oxfordshire County Council,Education & Early Intervention,Oxford Sth SEN Trans,Transport Related,33300,Transport (General),12/12/2011,3301413292,828.03,Transpiration Limited
http://statistics.data.gov.uk/id/local-authority/38,Oxfordshire County Council,Education & Early Intervention,Oxford Sth SEN Trans,Transport Related,33101,Home to School Trans,12/12/2011,3301413295,2567.25,Transpiration Limited
http://statistics.data.gov.uk/id/local-authority/38,Oxfordshire County Council,Education & Early Intervention,Oxford Sth SEN Trans,Transport Related,33300,Transport (General),12/12/2011,3301413296,797.16,Transpiration Limited
http://statistics.data.gov.uk/id/local-authority/38,Oxfordshire County Council,Education & Early Intervention,Witney SEN Trans,Transport Related,33101,Home to School Trans,12/12/2011,3301413297,2519.37,Windrush Transport Ltd
http://statistics.data.gov.uk/id/local-authority/38,Oxfordshire County Council,Education & Early Intervention,Witney SEN Trans,Transport Related,33300,Transport (General),12/12/2011,3301413298,1095.36,Windrush Transport Ltd
http://statistics.data.gov.uk/id/local-authority/38,Oxfordshire County Council,Education & Early Intervention,Banbury SEN Trans,Transport Related,33101,Home to School Trans,12/12/2011,3301413299,3557.4,Windrush Transport Ltd
http://statistics.data.gov.uk/id/local-authority/38,Oxfordshire County Council,Education & Early Intervention,Banbury SEN Trans,Transport Related,33300,Transport (General),12/12/2011,3301413300,918.06,Windrush Transport Ltd
http://statistics.data.gov.uk/id/local-authority/38,Oxfordshire County Council,Education & Early Intervention,Witney SEN Trans,Transport Related,33101,Home to School Trans,12/12/2011,3301413301,2524.5,Windrush Transport Ltd
http://statistics.data.gov.uk/id/local-authority/38,Oxfordshire County Council,Education & Early Intervention,Witney SEN Trans,Transport Related,33300,Transport (General),12/12/2011,3301413302,803.22,Windrush Transport Ltd
http://statistics.data.gov.uk/id/local-authority/38,Oxfordshire County Council,Education & Early Intervention,Witney SEN Trans,Transport Related,33101,Home to School Trans,12/12/2011,3301413303,2317.92,Windrush Transport Ltd
http://statistics.data.gov.uk/id/local-authority/38,Oxfordshire County Council,Education & Early Intervention,Witney SEN Trans,Transport Related,33300,Transport (General),12/12/2011,3301413304,803.22,Windrush Transport Ltd
http://statistics.data.gov.uk/id/local-authority/38,Oxfordshire County Council,Education & Early Intervention,Zone 3 - West,Transport Related,33101,Home to School Trans,12/12/2011,3301413308,2056.34,Windrush Transport Ltd
http://statistics.data.gov.uk/id/local-authority/38,Oxfordshire County Council,Education & Early Intervention,Zone 4 - Vale,Transport Related,33101,Home to School Trans,12/12/2011,3301413310,1930.32,Windrush Transport Ltd
http://statistics.data.gov.uk/id/local-authority/38,Oxfordshire County Council,Education & Early Intervention,Zone 3 - West,Transport Related,33101,Home to School Trans,12/12/2011,3301413313,13080,Mcleans Coaches
http://statistics.data.gov.uk/id/local-authority/38,Oxfordshire County Council,Education & Early Intervention,Bicester SEN Trans,Transport Related,33101,Home to School Trans,12/12/2011,3301413315,2957.43,Luxicars Ltd
http://statistics.data.gov.uk/id/local-authority/38,Oxfordshire County Council,Education & Early Intervention,Bicester SEN Trans,Transport Related,33300,Transport (General),12/12/2011,3301413316,481.95,Luxicars Ltd
http://statistics.data.gov.uk/id/local-authority/38,Oxfordshire County Council,Education & Early Intervention,Bicester SEN Trans,Transport Related,33101,Home to School Trans,12/12/2011,3301413317,2738.4,Luxicars Ltd
http://statistics.data.gov.uk/id/local-authority/38,Oxfordshire County Council,Education & Early Intervention,Bicester SEN Trans,Transport Related,33300,Transport (General),12/12/2011,3301413318,657.3,Luxicars Ltd
http://statistics.data.gov.uk/id/local-authority/38,Oxfordshire County Council,Education & Early Intervention,Bicester SEN Trans,Transport Related,33101,Home to School Trans,12/12/2011,3301413319,2957.43,Luxicars Ltd
http://statistics.data.gov.uk/id/local-authority/38,Oxfordshire County Council,Education & Early Intervention,Bicester SEN Trans,Transport Related,33300,Transport (General),12/12/2011,3301413320,481.95,Luxicars Ltd
http://statistics.data.gov.uk/id/local-authority/38,Oxfordshire County Council,Education & Early Intervention,Bicester SEN Trans,Transport Related,33101,Home to School Trans,12/12/2011,3301413321,2957.43,Luxicars Ltd
http://statistics.data.gov.uk/id/local-authority/38,Oxfordshire County Council,Education & Early Intervention,Bicester SEN Trans,Transport Related,33300,Transport (General),12/12/2011,3301413322,481.95,Luxicars Ltd
http://statistics.data.gov.uk/id/local-authority/38,Oxfordshire County Council,Education & Early Intervention,Abingdon SEN Trans,Transport Related,33101,Home to School Trans,12/12/2011,3301413323,2628.78,Luxicars Ltd
http://statistics.data.gov.uk/id/local-authority/38,Oxfordshire County Council,Education & Early Intervention,Abingdon SEN Trans,Transport Related,33300,Transport (General),12/12/2011,3301413324,657.3,Luxicars Ltd
http://statistics.data.gov.uk/id/local-authority/38,Oxfordshire County Council,Education & Early Intervention,Abingdon SEN Trans,Transport Related,33101,Home to School Trans,12/12/2011,3301413325,2848.01,Luxicars Ltd
http://statistics.data.gov.uk/id/local-authority/38,Oxfordshire County Council,Education & Early Intervention,Abingdon SEN Trans,Transport Related,33300,Transport (General),12/12/2011,3301413326,657.3,Luxicars Ltd
http://statistics.data.gov.uk/id/local-authority/38,Oxfordshire County Council,Education & Early Intervention,Oxford Nth SEN Trans,Transport Related,33101,Home to School Trans,12/12/2011,3301413327,2742.39,Luxicars Ltd
http://statistics.data.gov.uk/id/local-authority/38,Oxfordshire County Council,Education & Early Intervention,Oxford Nth SEN Trans,Transport Related,33300,Transport (General),12/12/2011,3301413328,571.41,Luxicars Ltd
http://statistics.data.gov.uk/id/local-authority/38,Oxfordshire County Council,Education & Early Intervention,Oxford Sth SEN Trans,Transport Related,33101,Home to School Trans,12/12/2011,3301413329,2513.91,Luxicars Ltd
http://statistics.data.gov.uk/id/local-authority/38,Oxfordshire County Council,Education & Early Intervention,Oxford Sth SEN Trans,Transport Related,33300,Transport (General),12/12/2011,3301413330,685.65,Luxicars Ltd
http://statistics.data.gov.uk/id/local-authority/38,Oxfordshire County Council,Education & Early Intervention,Oxford Nth SEN Trans,Transport Related,33101,Home to School Trans,12/12/2011,3301413331,3067.05,Luxicars Ltd
http://statistics.data.gov.uk/id/local-authority/38,Oxfordshire County Council,Education & Early Intervention,Oxford Nth SEN Trans,Transport Related,33300,Transport (General),12/12/2011,3301413332,657.3,Luxicars Ltd
http://statistics.data.gov.uk/id/local-authority/38,Oxfordshire County Council,Education & Early Intervention,Oxford Nth SEN Trans,Transport Related,33101,Home to School Trans,12/12/2011,3301413333,2627.94,Luxicars Ltd
http://statistics.data.gov.uk/id/local-authority/38,Oxfordshire County Council,Education & Early Intervention,Oxford Nth SEN Trans,Transport Related,33300,Transport (General),12/12/2011,3301413334,509.46,Luxicars Ltd
http://statistics.data.gov.uk/id/local-authority/38,Oxfordshire County Council,Education & Early Intervention,Oxford Nth SEN Trans,Transport Related,33101,Home to School Trans,12/12/2011,3301413335,2056.74,Luxicars Ltd
http://statistics.data.gov.uk/id/local-authority/38,Oxfordshire County Council,Education & Early Intervention,Oxford Sth SEN Trans,Transport Related,33101,Home to School Trans,12/12/2011,3301413337,3295.95,Luxicars Ltd
http://statistics.data.gov.uk/id/local-authority/38,Oxfordshire County Council,Education & Early Intervention,Oxford Sth SEN Trans,Transport Related,33300,Transport (General),12/12/2011,3301413338,571.41,Luxicars Ltd
http://statistics.data.gov.uk/id/local-authority/38,Oxfordshire County Council,Education & Early Intervention,Wantage SEN Trans,Transport Related,33101,Home to School Trans,12/12/2011,3301413339,2823.66,Luxicars Ltd
http://statistics.data.gov.uk/id/local-authority/38,Oxfordshire County Council,Education & Early Intervention,FE Special Trans,Transport Related,33101,Home to School Trans,12/12/2011,3301413340,2420.25,Luxicars Ltd
http://statistics.data.gov.uk/id/local-authority/38,Oxfordshire County Council,Education & Early Intervention,FE Special Trans,Transport Related,33300,Transport (General),12/12/2011,3301413341,525,Luxicars Ltd
http://statistics.data.gov.uk/id/local-authority/38,Oxfordshire County Council,SCS Pooled Budgets,LD CMPB - City Transport,Transport Related,34200,Client Journeys,12/12/2011,3301413342,519.75,Luxicars Ltd
http://statistics.data.gov.uk/id/local-authority/38,Oxfordshire County Council,Education & Early Intervention,Witney SEN Trans,Transport Related,33101,Home to School Trans,12/12/2011,3301413343,2068,Luxicars Ltd
http://statistics.data.gov.uk/id/local-authority/38,Oxfordshire County Council,Education & Early Intervention,Witney SEN Trans,Transport Related,33300,Transport (General),12/12/2011,3301413344,506,Luxicars Ltd
http://statistics.data.gov.uk/id/local-authority/38,Oxfordshire County Council,Education & Early Intervention,Witney SEN Trans,Transport Related,33101,Home to School Trans,12/12/2011,3301413345,2671.46,Luxicars Ltd
http://statistics.data.gov.uk/id/local-authority/38,Oxfordshire County Council,Education & Early Intervention,Witney SEN Trans,Transport Related,33300,Transport (General),12/12/2011,3301413346,504.02,Luxicars Ltd
http://statistics.data.gov.uk/id/local-authority/38,Oxfordshire County Council,Education & Early Intervention,FE Special Trans,Transport Related,33101,Home to School Trans,12/12/2011,3301413347,1092,Luxicars Ltd
http://statistics.data.gov.uk/id/local-authority/38,Oxfordshire County Council,Education & Early Intervention,FE Special Trans,Transport Related,33300,Transport (General),12/12/2011,3301413348,546,Luxicars Ltd
http://statistics.data.gov.uk/id/local-authority/38,Oxfordshire County Council,SCS Pooled Budgets,LD CMPB - City Transport,Transport Related,34200,Client Journeys,12/12/2011,3301413349,1638,Luxicars Ltd
http://statistics.data.gov.uk/id/local-authority/38,Oxfordshire County Council,Education & Early Intervention,Zone 2 - East,Transport Related,33101,Home to School Trans,12/12/2011,3301413350,1752.66,Luxicars Ltd
http://statistics.data.gov.uk/id/local-authority/38,Oxfordshire County Council,Education & Early Intervention,Zone 2 - East,Transport Related,33101,Home to School Trans,12/12/2011,3301413351,2190.72,Luxicars Ltd
http://statistics.data.gov.uk/id/local-authority/38,Oxfordshire County Council,Education & Early Intervention,Mainstream Misc,Transport Related,33101,Home to School Trans,12/12/2011,3301413352,2628.78,Luxicars Ltd
http://statistics.data.gov.uk/id/local-authority/38,Oxfordshire County Council,Education & Early Intervention,Zone 2 - East,Transport Related,33101,Home to School Trans,12/12/2011,3301413353,1376.98,Luxicars Ltd
http://statistics.data.gov.uk/id/local-authority/38,Oxfordshire County Council,Children's Social Care,Maltfield House,WATER,25200,Metered Water,12/12/2011,3301413460,570.54,Thames Water Utilities Ltd
http://statistics.data.gov.uk/id/local-authority/38,Oxfordshire County Council,Education & Early Intervention,Wheatley Sports Cntr,WATER,25200,Metered Water,12/12/2011,3301413465,928.32,Thames Water Utilities Ltd
http://statistics.data.gov.uk/id/local-authority/38,Oxfordshire County Council,Education & Early Intervention,Hill End,WATER,25200,Metered Water,12/12/2011,3301413466,934.12,Thames Water Utilities Ltd
http://statistics.data.gov.uk/id/local-authority/38,Oxfordshire County Council,Highways & Transport,Highways General,WATER,25200,Metered Water,12/12/2011,3301413472,868.36,Thames Water Utilities Ltd
http://statistics.data.gov.uk/id/local-authority/38,Oxfordshire County Council,Highways & Transport,Thornhill P & R,WATER,25200,Metered Water,12/12/2011,3301413487,1331.05,Thames Water Utilities Ltd
http://statistics.data.gov.uk/id/local-authority/38,Oxfordshire County Council,Education & Early Intervention,East St Ctr-Premises,WATER,25200,Metered Water,12/12/2011,3301413500,605.21,Thames Water Utilities Ltd
http://statistics.data.gov.uk/id/local-authority/38,Oxfordshire County Council,Social & Community Services,"Older Pers Day Cntrs, Abingdon DC",WATER,25200,Metered Water,12/12/2011,3301413501,2131.09,Thames Water Utilities Ltd
http://statistics.data.gov.uk/id/local-authority/38,Oxfordshire County Council,SCS Pooled Budgets,LD Supported Living,Other Agency and Contracted Services,57140,Supported Living Placement,12/12/2011,3301413709,14021.17,Buckinghamshire County Council
http://statistics.data.gov.uk/id/local-authority/38,Oxfordshire County Council,Education & Early Intervention,S'Common SEN Trans,Transport Related,33101,Home to School Trans,13/12/2011,3301413964,1347,Hills Taxis
http://statistics.data.gov.uk/id/local-authority/38,Oxfordshire County Council,Education & Early Intervention,S'Common SEN Trans,Transport Related,33300,Transport (General),13/12/2011,3301413965,613,Hills Taxis
http://statistics.data.gov.uk/id/local-authority/38,Oxfordshire County Council,Education & Early Intervention,S'Common SEN Trans,Transport Related,33101,Home to School Trans,13/12/2011,3301413966,797.28,Hills Taxis
http://statistics.data.gov.uk/id/local-authority/38,Oxfordshire County Council,Education & Early Intervention,Zone 5 - South,Transport Related,33101,Home to School Trans,13/12/2011,3301413967,630,Hills Taxis
http://statistics.data.gov.uk/id/local-authority/38,Oxfordshire County Council,Education & Early Intervention,Out of County,Transport Related,33101,Home to School Trans,13/12/2011,3301413968,1260,Hills Taxis
http://statistics.data.gov.uk/id/local-authority/38,Oxfordshire County Council,Education & Early Intervention,Out of County,Transport Related,33300,Transport (General),13/12/2011,3301413969,630,Hills Taxis
http://statistics.data.gov.uk/id/local-authority/38,Oxfordshire County Council,Education & Early Intervention,S'Common SEN Trans,Transport Related,33101,Home to School Trans,13/12/2011,3301413970,1320,Hills Taxis
http://statistics.data.gov.uk/id/local-authority/38,Oxfordshire County Council,Education & Early Intervention,S'Common SEN Trans,Transport Related,33300,Transport (General),13/12/2011,3301413971,550,Hills Taxis
http://statistics.data.gov.uk/id/local-authority/38,Oxfordshire County Council,Education & Early Intervention,Oxford Sth SEN Trans,Transport Related,33101,Home to School Trans,13/12/2011,3301413972,1875.3,Hills Taxis
http://statistics.data.gov.uk/id/local-authority/38,Oxfordshire County Council,Education & Early Intervention,Abingdon SEN Trans,Transport Related,33101,Home to School Trans,13/12/2011,3301413974,968,Hills Taxis
http://statistics.data.gov.uk/id/local-authority/38,Oxfordshire County Council,Education & Early Intervention,Abingdon SEN Trans,Transport Related,33300,Transport (General),13/12/2011,3301413975,550,Hills Taxis
http://statistics.data.gov.uk/id/local-authority/38,Oxfordshire County Council,Education & Early Intervention,Out of County,Transport Related,33101,Home to School Trans,13/12/2011,3301413976,880,Hills Taxis
http://statistics.data.gov.uk/id/local-authority/38,Oxfordshire County Council,Education & Early Intervention,Oxford Sth SEN Trans,Transport Related,33101,Home to School Trans,13/12/2011,3301413979,2406.6,Hills Taxis
http://statistics.data.gov.uk/id/local-authority/38,Oxfordshire County Council,Education & Early Intervention,Oxford Sth SEN Trans,Transport Related,33300,Transport (General),13/12/2011,3301413980,756,Hills Taxis
http://statistics.data.gov.uk/id/local-authority/38,Oxfordshire County Council,SCS Pooled Budgets,LD CMPB - South Transport,Transport Related,34200,Client Journeys,13/12/2011,3301413982,480,Hills Taxis
http://statistics.data.gov.uk/id/local-authority/38,Oxfordshire County Council,Education & Early Intervention,Zone 5 - South,Transport Related,33101,Home to School Trans,13/12/2011,3301413983,1274.24,Hills Taxis
http://statistics.data.gov.uk/id/local-authority/38,Oxfordshire County Council,Education & Early Intervention,Zone 5 - South,Transport Related,33101,Home to School Trans,13/12/2011,3301413985,1147.52,Hills Taxis
http://statistics.data.gov.uk/id/local-authority/38,Oxfordshire County Council,Education & Early Intervention,FE Special Trans,Transport Related,33101,Home to School Trans,13/12/2011,3301413986,1760,Hills Taxis
http://statistics.data.gov.uk/id/local-authority/38,Oxfordshire County Council,Education & Early Intervention,Out of County,Transport Related,33101,Home to School Trans,13/12/2011,3301413989,1606.44,Express Taxis
http://statistics.data.gov.uk/id/local-authority/38,Oxfordshire County Council,Education & Early Intervention,Zone 5 - South,Transport Related,33101,Home to School Trans,13/12/2011,3301413991,3818.64,Express Taxis
http://statistics.data.gov.uk/id/local-authority/38,Oxfordshire County Council,Education & Early Intervention,Zone 5 - South,Transport Related,33101,Home to School Trans,13/12/2011,3301413993,1766.73,Express Taxis
http://statistics.data.gov.uk/id/local-authority/38,Oxfordshire County Council,Education & Early Intervention,Zone 5 - South,Transport Related,33101,Home to School Trans,13/12/2011,3301413995,1869.34,Express Taxis
http://statistics.data.gov.uk/id/local-authority/38,Oxfordshire County Council,Education & Early Intervention,Zone 5 - South,Transport Related,33101,Home to School Trans,13/12/2011,3301413997,2576.86,Express Taxis
http://statistics.data.gov.uk/id/local-authority/38,Oxfordshire County Council,Education & Early Intervention,Zone 5 - South,Transport Related,33101,Home to School Trans,13/12/2011,3301413999,3020.38,Express Taxis
http://statistics.data.gov.uk/id/local-authority/38,Oxfordshire County Council,Education & Early Intervention,Zone 4 - Vale,Transport Related,33101,Home to School Trans,13/12/2011,3301414001,3213.32,Express Taxis
http://statistics.data.gov.uk/id/local-authority/38,Oxfordshire County Council,Education & Early Intervention,Zone 2 - East,Transport Related,33101,Home to School Trans,13/12/2011,3301414003,1345.69,Express Taxis
http://statistics.data.gov.uk/id/local-authority/38,Oxfordshire County Council,Education & Early Intervention,Zone 2 - East,Transport Related,33101,Home to School Trans,13/12/2011,3301414005,1570.15,Express Taxis
http://statistics.data.gov.uk/id/local-authority/38,Oxfordshire County Council,Education & Early Intervention,Zone 2 - East,Transport Related,33101,Home to School Trans,13/12/2011,3301414007,2744.5,Express Taxis
http://statistics.data.gov.uk/id/local-authority/38,Oxfordshire County Council,Education & Early Intervention,Zone 5 - South,Transport Related,33101,Home to School Trans,13/12/2011,3301414008,997.35,Henley Taxis Ltd
http://statistics.data.gov.uk/id/local-authority/38,Oxfordshire County Council,Education & Early Intervention,Zone 5 - South,Transport Related,33101,Home to School Trans,13/12/2011,3301414010,724.5,Henley Taxis Ltd
http://statistics.data.gov.uk/id/local-authority/38,Oxfordshire County Council,Education & Early Intervention,Zone 5 - South,Transport Related,33101,Home to School Trans,13/12/2011,3301414011,1095.28,Henley Taxis Ltd
http://statistics.data.gov.uk/id/local-authority/38,Oxfordshire County Council,Education & Early Intervention,Zone 5 - South,Transport Related,33101,Home to School Trans,13/12/2011,3301414012,2486.4,Henley Taxis Ltd
http://statistics.data.gov.uk/id/local-authority/38,Oxfordshire County Council,Education & Early Intervention,Temporary Transport,Transport Related,33101,Home to School Trans,13/12/2011,3301414014,756,Henley Taxis Ltd
http://statistics.data.gov.uk/id/local-authority/38,Oxfordshire County Council,Education & Early Intervention,Zone 3 - West,Transport Related,33101,Home to School Trans,13/12/2011,3301414015,2593.5,Ridgeways Coaches Ltd
http://statistics.data.gov.uk/id/local-authority/38,Oxfordshire County Council,Education & Early Intervention,Zone 4 - Vale,Transport Related,33101,Home to School Trans,13/12/2011,3301414016,3907.68,Ridgeways Coaches Ltd
http://statistics.data.gov.uk/id/local-authority/38,Oxfordshire County Council,Education & Early Intervention,Zone 3 - West,Transport Related,33101,Home to School Trans,13/12/2011,3301414017,3181.5,Ridgeways Coaches Ltd
http://statistics.data.gov.uk/id/local-authority/38,Oxfordshire County Council,Education & Early Intervention,Zone 4 - Vale,Transport Related,33101,Home to School Trans,13/12/2011,3301414018,3461.43,Ridgeways Coaches Ltd
http://statistics.data.gov.uk/id/local-authority/38,Oxfordshire County Council,Education & Early Intervention,Zone 4 - Vale,Transport Related,33101,Home to School Trans,13/12/2011,3301414019,3382.05,Ridgeways Coaches Ltd
http://statistics.data.gov.uk/id/local-authority/38,Oxfordshire County Council,Education & Early Intervention,Abingdon SEN Trans,Transport Related,33101,Home to School Trans,13/12/2011,3301414020,701.19,C V O'Sullivan
http://statistics.data.gov.uk/id/local-authority/38,Oxfordshire County Council,Education & Early Intervention,Abingdon SEN Trans,Transport Related,33101,Home to School Trans,13/12/2011,3301414022,1467.9,C V O'Sullivan
http://statistics.data.gov.uk/id/local-authority/38,Oxfordshire County Council,Education & Early Intervention,Abingdon SEN Trans,Transport Related,33101,Home to School Trans,13/12/2011,3301414024,1374.47,C V O'Sullivan
http://statistics.data.gov.uk/id/local-authority/38,Oxfordshire County Council,Education & Early Intervention,Abingdon SEN Trans,Transport Related,33101,Home to School Trans,13/12/2011,3301414026,603.24,C V O'Sullivan
